{"text_format":"1","workbook":"xlsx","n_sheets":4,"sheets":["Calcs","Regression Data","Sheet1","Sheet2"],"not_rendered":{"charts":0,"images":1,"macros":1,"external_links":0,"defined_names":1,"comments":0,"pivot_tables":0},"unopened":[],"bounds":{"document_bytes":16777216,"sheet_cells":100000,"rows_first":2000,"rows_last":500,"rows_between":2000,"halvings":0,"cell_chars":16384,"cell_head_chars":4096},"cells_cut":0,"cells_raw":0,"read":"whole","date_system":"1900"}

{"sheet":"Calcs","index":0,"n_rows":33,"n_cols":10,"rows_kept":33,"cut":false,"hidden":false,"merged":[[0,0,0,10]]}
["Regression Analysis  Calculator"]
[]
[null,null,null,null,null,null,"Regression Value:",{"$f":"(SUMPRODUCT(C9:C27,D9:D27)+SUMPRODUCT(I9:I27,J9:J27)+IF(SUMPRODUCT(C9:C27,D9:D27)=0,0,H4))","v":0}]
[null,null,null,null,null,null,null,-2667833.1399351466]
[]
[]
[]
[null,{"$f":"IF(B9=\"\",\"\",\"Category\")","v":"Category"},null,{"$f":"IF(B9=\"\",\"\",\"Value\")","v":"Value"},null,null,null,{"$f":"IF(H9=\"\",\"\",\"Category\")","v":""},null,{"$f":"IF(H9=\"\",\"\",\"Value\")","v":""}]
[null,"GLA sqft 2",118.03102211858459]
[]
[null,"Lot Size Sq Ft2",7.3454177723155567]
[]
[null,"Baths 2",28703.636115199653]
[]
[null,"Garage 2",-13911.937715522829]
[]
[null,"closing Date2",67.511432038275402]
[]
[null,"Age of Home2",-2589.3593144739571]
[]
[null,"Kitchen Counters 2",258.93349356870749]
[]
[null,"Floors 2",-2077.4231257119682]
[]
[]
[]
[]
[]
[null,null,null,null,null,null,null,"Bedrooms",-2594.1293200646942]
[]
[null,null,null,null,null,null,null,"Fireplaces",4225.2750223775511]
[]
[null,null,null,null,null,null,null,"GarageSpaces",-2343.8304778367747]

{"sheet":"Regression Data","index":1,"n_rows":63,"n_cols":150,"rows_kept":63,"cut":false,"hidden":false,"merged":[]}
["Status","Address","List Price","Sold Price","Year Built","Sq Ft Apx","Lot Sq Ft Apx","List Date","Pending Date","Closing Date","Off Market Date","Bedrooms","Baths","Days On Market","Pool (Y/N)","DISCLOSURES-REO/Bank Owned","DISCLOSURES-Short PayTrans/Short Sale","Concessions","Status Date","Update Date","Cumulative DOMLS","Days On MLS","City","County","Building Type","Baths Partial","Garage (Y/N)","Garage Spaces","MLS #","Area","Unit","Lot Acres Apx","HOA Fee","HOA Fees Freq","Zoning","Age","Census Tract","Sale/Rent","Stories","DISCLOSURES-Probate/Court Approval","DISCLOSURES-Probate/Independent Adm","DISCLOSURES-Rent Control","DISCLOSURES-Special Assmt/Bonds","DISCLOSURES-Special Flood Haz Area","DISCLOSURES-Special Hazards Zone","Buyer Agent 1 - Address 1","Buyer Agent 1 - Agent Name","Buyer Agent 1 - Agent Name and Phone","Buyer Agent 1 - City State Zip","Buyer Agent 1 - E-mail","Buyer Agent 1 - Mail Address 1","Buyer Agent 1 - Phone Number","Buyer Agent 1 - Preferred Phone Area","Buyer Agent 1 - Preferred Phone Number","Co-List Agent - Address 1","Co-List Agent - Agent Name and Phone","Co-List Agent - City State Zip","Co-List Agent - E-mail","Co-List Agent - Preferred Phone Area","Co-List Agent - Preferred Phone Number","Listing Agent - Address 1","Listing Agent - Agent Name and Phone","Listing Agent - City State Zip","Listing Agent - E-mail","Listing Agent - Preferred Phone Area","Listing Agent - Preferred Phone Number","Listing Office - Address 1","Listing Office - City State Zip","Listing Office - Office Name and Phone","Listing Office - Phone Number","WATER/SEWER-None","WATER/SEWER-Other","WATER/SEWER-Septic Tank","WATER/SEWER-Sewer System - Private","WATER/SEWER-Sewer System - Public","WATER/SEWER-Spring(s)","WATER/SEWER-Storage Tank","WATER/SEWER-Sump Pump","ROOF-Metal","ROOF-Slate","ROOF-Tar and Gravel","ROOF-Tile","VIEWS-Other","POOL-Above Ground","KITCHEN FEATURES-Counter - Solid Surface","KITCHEN FEATURES-Counter - Stone","KITCHEN FEATURES-Counter - Tile","KITCHEN FEATURES-Counter - Laminate","FLOORING-Concrete Slab","FLOORING-Hardwood Floors","FLOORING-Hardwood Flrs Throughout","FLOORING-Laminate","FLOORING-Linoleum","FLOORING-Other","FLOORING-Parquet","FLOORING-Stone (Marble, Slate etc.","FLOORING-Tile","FLOORING-Vinyl","FLOORING-Carpet","FLOORING-Wood","COOLING-Central 1 Zone A/C","COOLING-Central 2 Or 2+ Zones A/C","COOLING-No Air Conditioning","Fireplaces","3rd Party Synd. Remarks","Sales Office Info Remarks","Special Information","Confidential Remarks 1000","How Sold","Zip","State","COOLING","HEATING","GARAGE/PARKING","TERMS","VIEWS","YARD DESCRIPTION","STYLE","FIREPLACES","POOL","HOA","Public Remarks","SOLAR-Solar Electrical Leased","SOLAR-Solar Electrical Owned","SOLAR",null,null,null,null,null,"*****SOLD PRICE 2***************","GLA sqft 2","Lot Size Sq Ft2","Baths 2",null,"Garage 2","closing Date2","Age of Home2","Kitchen Counters 2","Floors 2","Bedrooms 2","Fireplaces2","Storys 2"]
["Sold","263 Woodfield Lane",319000,330000,2001,1224,6840,"2015-07-11","2015-08-14","2015-10-02","2015-08-14",2,2,34,"No","No","No",null,"2015-10-02","2017-02-28",35,35,"BRENTWOOD","Contra Costa","Detached",0,"Yes",2,40706940,"Brentwood",null,0.157,null,null,1001,14,3031.03,"For Sale","One Story","No","No","No","No","No","No","201 Normandy Lane","Dolores Miric","Dolores Miric - Agt: 925-4574348","Walnut Creek CA 94598","dolores.miric@gmail.com","4691 A Clayton Road","Agt: 925-4574348",null,-4574348,null,null,null,null,null,null,"1330 Aberdeen Ct.","John D Vander Meulen - Agt: 925-7984663","Concord CA 94518","john@johnsellscaliforniahomes.com",null,-7984663,"2950 Buskirk Ave. #140","Walnut Creek CA 94597","RE/MAX Accord - Off: 925-9370100","Off: 925-9370100","No","No","No","No","Yes","No","No","No","No","No","No","Yes","Yes","No","No","No","Yes","No","No","No","No","No","No","No","No","No","Yes","Yes","Yes","No","Yes","No","No",1,"John D Vander Meulen - Agt: 925-798-4663 - Awesome starter home! Spacious rooms with vaulted ceilings. Large great room has fireplace. Eat-in kitchen boasts ample cabinetry, tile counters, gas range and pantry! Master bathroom has walk-in closet and soaking tub. Indoor laundry with cabinets and gas hook-up.",null,"None","Buyer to cooperate in Sellers IRC 1031 exchange at no cost to Buyer. Escrow with Old Republic Title in Orinda. Some Brentwood schools/grades are impacted, so do check with school district.","VA",94513,"CA","Ceiling Fan(s), Central 1 Zone A/C","Forced Air 1 Zone, Gas","Attached Garage, Int Access From Garage, Off Street Parking, Side Yard Access","Cash, Conventional, FHA, VA","Other","Back Yard, Fenced, Front Yard, Patio Covered, Side Yard, Sprinklers Automatic, Sprinklers Back, Sprinklers Front","Contemporary","Living Room, Woodburning","Possible Pool Site","No","Awesome starter home! Spacious rooms with vaulted ceilings. Large great room has fireplace. Eat-in kitchen boasts ample cabinetry, tile counters, gas range and pantry! Master bathroom has walk-in closet and soaking tub. Indoor laundry with cabinets and gas hook-up.","No","No",null,null,null,null,null,null,{"$f":"D2","v":330000},{"$f":"F2","v":1224},6840,{"$f":"M2","v":2},{"$f":"IF(ISNUMBER(SEARCH(\"Community Fclty\",DP2)),0,IF(ISNUMBER(SEARCH(\"In Ground\",DP2)),1,IF(ISNUMBER(SEARCH(\"Gunite\",DP2)),1,0)))","v":0},{"$f":"IF(AA2=\"Yes\", AB2, 0)","v":2},{"$f":"J2","v":42279},{"$f":"2018-E2","v":17},{"$f":"IF(ISNUMBER(SEARCH(\"Yes\",CJ2)),1,IF(ISNUMBER(SEARCH(\"Yes\",CI2)),2,IF(ISNUMBER(SEARCH(\"Yes\",CH2)),3,IF(ISNUMBER(SEARCH(\"Yes\",CG2)),3,0))))","v":2},{"$f":"IF(ISNUMBER(SEARCH(\"Yes\",CU2)),1,IF(ISNUMBER(SEARCH(\"Yes\",CT2)),1,IF(ISNUMBER(SEARCH(\"Yes\",CO2)),1,IF(ISNUMBER(SEARCH(\"Yes\",CS2)),2,IF(ISNUMBER(SEARCH(\"Yes\",CN2)),3,IF(ISNUMBER(SEARCH(\"Yes\",CM2)),3,IF(ISNUMBER(SEARCH(\"Yes\",CL2)),3,IF(ISNUMBER(SEARCH(\"Yes\",CR2)),4,0))))))))","v":1},{"$f":"L2","v":2},{"$f":"CZ2","v":1},{"$f":"IF(ISNUMBER(SEARCH(\"One Story\",AM2)),1,IF(ISNUMBER(SEARCH(\"Two Story\",AM2)),2,IF(ISNUMBER(SEARCH(\"Three Story\",AM2)),3,0)))","v":1},{"$f":"IF(ISNUMBER(SEARCH(\"Yes\",DS2)),1,0)","v":0},0,{"$f":"DV2","v":0},{"$f":"IF(ISNUMBER(SEARCH(\"Bay\",DL2)),1,IF(ISNUMBER(SEARCH(\"Carquinez\",DL2)),1,IF(ISNUMBER(SEARCH(\"Water\",DL2)),1,IF(ISNUMBER(SEARCH(\"Mountains\",DL2)),1,IF(ISNUMBER(SEARCH(\"Hills\",DL2)),1,IF(ISNUMBER(SEARCH(\"Wooded\",DL2)),1,IF(ISNUMBER(SEARCH(\"Mt Diablo\",DL2)),1,0)))))))","v":0},{"$f":"IF(AND(Q2=\"No\",P2=\"No\"), 0, 1)","v":0},{"$f":"IF(ISNUMBER(SEARCH(\"forced air\",DI2)),1,0)","v":1},{"$f":"IF(ISNUMBER(SEARCH(\"central\",DH2)),1,0)","v":1}]
["Sold","1865 Gingerwood Ter",449950,449950,1985,1297,6760,"2019-02-07","2019-03-08","2019-03-27","2019-03-08",3,2,18,"Yes","No","No",null,"2019-03-27","2019-03-27",18,18,"BRENTWOOD","Contra Costa","Detached",0,"Yes",2,40852572,"Brentwood",null,0.16,123,"Monthly",null,34,null,"For Sale","One Story","No","No","No","No","No","No","6207 SELLERS AVENUE","EMILY MOORE","EMILY MOORE - 925-783-3169","OAKLEY CA 94561","emoore@hhandassociates.com",null,"925-783-3169",925,"783-3169",null,null,null,null,null,null,"2220 TRINITY DRIVE","LAURIE WEXNER - 925-383-8732","BRENTWOOD CA 94513","wexnerl@gmail.com",925,"383-8732","5887 A LONE TREE WAY","ANTIOCH CA 94531","BHG REAL ESTATE ROYAL & ASSOC. - Off: 925-776-2740","Off: 925-776-2740","No","No","No","No","Yes","No","No","No","No","No","No","No","No","No","No","No","No","No","No","No","No","Yes","No","No","No","Yes","No","No","Yes","No","Yes","No","No",1,"LAURIE WEXNER - 925-383-8732 - Wow Nicely updated home in culdesac with new kitchen cabinets, granite counters, stainless steel appliances, 2 panel doors, laminate flooring, 5 1/4 baseboards, mirrored closet doors, updated bathroom vanities, sinks, faucets, shower walls, mirrors, lighting, ceiling fans, interior, and exterior paint. And More! Open Sun. March 10th 12pm-2pm",null,"None","Please call owner direct. Jerry at 925-260-6947. email all offers to 22jerrry22@comcast.net. all work done with permits. Open Sunday March 10th 12pm-2pm","Conventional",94513,"CA","Ceiling Fan(s), Central 1 Zone A/C","Forced Air 1 Zone","Attached Garage","Cash, Conventional, Trade, VA",null,"Back Yard, Front Yard","Traditional","Brick","Community Fclty","Yes","Wow Nicely updated home in culdesac with new kitchen cabinets, granite counters, stainless steel appliances, 2 panel doors, laminate flooring, 5 1/4 baseboards, mirrored closet doors, updated bathroom vanities, sinks, faucets, shower walls, mirrors, lighting, ceiling fans, interior, and exterior paint. And More! Open Sun. March 10th 12pm-2pm","No","No",null,null,null,null,null,null,449950,1297,6760,2,0,2,43551,33,0,1,3,1,1,0,0,0,0,0,1,1]
["Sold","208 CARTER PL",399950,400000,2004,1408,6316,"2015-08-10","2015-08-10","2015-08-28","2015-08-10",3,2,0,"No","No","No","none","2015-08-28","2016-04-08",0,0,"BRENTWOOD","Contra Costa","Detached",0,"Yes",2,40710908,"Brentwood",null,0.1449,null,null,1001,11,3031.03,"For Sale","One Story","No","No","No","No","No","No","190 Hartz Ave","Nicole Nicolay","Nicole Nicolay - 925-580-2260","Danville CA 94526","nicole@nicolenicolay.com",null,"925-580-2260",925,"580-2260",null,null,null,null,null,null,"830 George Ct","Tom Schieber - Agt: 925-4873172","Brentwood CA 94513","tschieber@rockcliff.com",null,-4873172,"5075 Hopyard Suite 110","Pleasanton CA 94588-","J. Rockcliff Realtors Inc. - Off: 925-2512500","Off: 925-2512500","No","No","No","No","Yes","No","No","No","No","No","No","Yes","No","No","No","Yes","No","No","No","No","No","Yes","No","No","No","No","No","No","Yes","No","Yes","No","No",1,"Tom Schieber - Agt: 925-4873172 - Stunning single story! New laminate floors, new carpet and paint throughout. Remodeled kitchen with quartz counters, glass tile back splash, stainless steel appliances and more. Close to schools, parks and downtown Brentwood. Clean, move-in condition, don't miss it!",null,"None","**Show only 9am - 7pm, ALARM after hours** Investor owned less than 90 days, check with lender for flip restrictions. Call LA for details on min down conventional financing. Pre-Sale Escrow at ORTC.","Conventional",94513,"CA","Central 1 Zone A/C","Forced Air 1 Zone","Attached Garage","Cash, Conventional, VA",null,"Patio","Traditional","Family Room","None","No","Stunning single story! New laminate floors, new carpet and paint throughout. Remodeled kitchen with quartz counters, glass tile back splash, stainless steel appliances and more. Close to schools, parks and downtown Brentwood. Clean, move-in condition, don't miss it!","No","No",null,null,null,null,null,null,400000,1408,6316,2,0,2,42244,14,3,1,3,1,1,0,0,0,0,0,1,1]
["Sold","1849 BEACHWOOD CMN",300000,305000,1984,1297,6300,"2015-03-09","2015-03-16","2015-04-17","2015-03-16",3,2,7,"No","No","No","none","2015-04-17","2018-03-16",7,7,"BRENTWOOD","Contra Costa","Detached",0,"Yes",2,40689857,"Brentwood",null,0.14462800000000001,103,"Monthly",1003,31,3031.03,"For Sale","One Story","No","No","No","Yes","No","No","65 E. 5TH STREET","CHRISTOS D SOUKOULIS","CHRISTOS D SOUKOULIS - 925-550-5028","PITTSBURG CA 94565","chris@eastbaybrokers.com",null,"925-550-5028",925,"550-5028",null,null,null,null,null,null,"4544 STONE ROAD, BOX #1584","MATTHEW P ANDERSON - Cell: 925-584-6761","BETHEL ISLAND CA 94511","matthew.anderson1@yahoo.com",925,"584-6761","50 EAGLE ROCK WAY, STE. D","BRENTWOOD CA 94513","JDK & ASSOCIATES REALTY INC - Off: 925-418-4442","Off: 925-418-4442","No","No","No","No","Yes","No","No","No","No","No","No","No","No","No","Yes","No","No","No","No","No","No","No","No","No","No","No","Yes","Yes","Yes","No","Yes","No","No",1,"MATTHEW P ANDERSON - Cell: 925-584-6761 - Move right in.  This home has new, or almost new items throughout.  New solid surface kitchen counters.  Freshly finished cabinets.  Fresh paint.  New furnace in 2012.  New A/C in 2013.  New driveway in 2014. New windows in most of home in 2014. 40 year roof installed in 2008...and more. Don't miss.",null,"None","Offers to be reviewed Monday 3/16/2015.  Pre-escrow opened with Old Republic Brentwood. If you walk into back yard, please make sure not to bring mud back into house.  Thanks.","VA",94513,"CA","Central 1 Zone A/C","Forced Air 1 Zone","Attached Garage","Cash, Conventional, FHA, VA",null,"Back Yard, Fenced, Front Yard, Garden/Play, Patio, Tool Shed","Craftsman","Living Room, Woodburning","Community Fclty","Yes","Move right in.  This home has new, or almost new items throughout.  New solid surface kitchen counters.  Freshly finished cabinets.  Fresh paint.  New furnace in 2012.  New A/C in 2013.  New driveway in 2014. New windows in most of home in 2014. 40 year roof installed in 2008...and more. Don't miss.","No","No",null,null,null,null,null,null,305000,1297,6300,2,0,2,42111,34,3,1,3,1,1,0,0,0,0,0,1,1]
["Sold","133 DUNEDIN DR",350000,365000,1994,1292,5750,"2016-05-28","2016-06-14","2016-07-15","2016-06-14",4,2,17,"No","No","No",null,"2016-07-19","2019-09-23",18,18,"BRENTWOOD","Contra Costa","Detached",null,"Yes",1,40742419,"Brentwood",null,0.13200000000000001,null,null,1001,22,3031.02,"For Sale","One Story","No","No","No","No","No","No","166 Halsey Way","Frank A Aguirre","Frank A Aguirre - Agt: 818-5904928","Pittsburg CA 94565","frank@allisonjamesestates.net","1100 Meloday Ln. #1045","Agt: 818-5904928",null,-5904928,null,null,null,null,null,null,"2604 Gazelle Ct.","Sandra Padilla - Agt: 925-3184145","Antioch CA 94531","sandra@allisonjamesestates.net",null,-3184145,"1100 Meloday Ln. #1045","Roseville CA 95678","Allison James Estates & Homes - Off: 888-4465552","Off: 888-4465552","No","No","No","No","Yes","No","No","No","No","No","No","No","No","No","No","Yes","No","No","No","No","No","No","No","No","No","No","Yes","No","No","No","Yes","No","No",0,"Sandra Padilla - Agt: 925-7270444 - Awesome corner lot home with only neighbors on 1 side.  Great floor plan with 4 bedroom and 2 full baths, large backyard with fruit trees.",null,"None","No more showings or offers at this time","FHA",94513,"CA","Central 1 Zone A/C","Forced Air 1 Zone","Attached Garage","Cash, Conventional, FHA",null,"Back Yard, Fenced, Front Yard","Ranch","None","None","No","Awesome corner lot home with only neighbors on 1 side.  Great floor plan with 4 bedroom and 2 full baths, large backyard with fruit trees.","No","No",null,null,null,null,null,null,365000,1292,5750,2,0,1,42566,24,3,2,4,0,1,0,0,0,0,0,1,1]
["Sold","207 Kayla Place",440000,440000,2003,1408,5692,"2017-08-14","2017-08-17","2017-09-14","2017-08-17",3,2,3,"No","No","No",null,"2017-09-14","2017-09-14",3,3,"BRENTWOOD","Contra Costa","Detached",null,"Yes",2,40793314,"Brentwood",null,0.13067000000000001,null,null,null,14,null,"For Sale","One Story","No","No","No","No","No","No","1561 Trawler Street","Monica R Malcuit","Monica R Malcuit - 925-784-0214","Discovery Bay CA 94505","wrpropertiesbroker@gmail.com",null,"925-784-0214",925,"784-0214",null,null,null,null,null,null,"5079 LONE TREE WAY","RICK FULLER - 925-238-0160","ANTIOCH CA 94531","questions@realtorrick.biz",null,null,"5079 LONE TREE WAY","ANTIOCH CA 94531","RICK FULLER INC. - Off: 925-238-0160","Off: 925-238-0160","No","No","No","No","Yes","No","No","No","No","No","No","Yes","No","No","Yes","No","No","No","No","No","No","Yes","No","No","No","No","No","Yes","Yes","No","Yes","No","No",1,"RICK FULLER - 925-238-0160 - Gorgeous single story home in desirable Brentwood community with new carpet, fresh paint, and stamped concrete.  Lovely kitchen with oak cabinets, stainless steel Maytag and Whirlpool appliances.   Spacious master bathroom with tub, shower enclosure, and a generous walk in closet.    Decorative ceiling fans, fixtures, and cozy fireplace.  Backyard patio with stamped concrete and palm trees.",null,"None","Offers reviewed as they arrive.  Vacant and ready to show.  Operation of spa is unknown.","FHA",94513,"CA","Ceiling Fan(s), Central 1 Zone A/C","Forced Air 1 Zone","Attached Garage","Cash, Conventional, FHA, VA",null,"Back Yard, Fenced, Front Yard, Patio, Side Yard, Sprinklers Automatic","Contemporary","Living Room","None","No","Gorgeous single story home in desirable Brentwood community with new carpet, fresh paint, and stamped concrete.  Lovely kitchen with oak cabinets, stainless steel Maytag and Whirlpool appliances.   Spacious master bathroom with tub, shower enclosure, and a generous walk in closet.    Decorative ceiling fans, fixtures, and cozy fireplace.  Backyard patio with stamped concrete and palm trees.","No","No",null,null,null,null,null,null,440000,1408,5692,2,0,2,42992,15,3,1,3,1,1,0,0,0,0,0,1,1]
["Sold","119 Pasco Dr",347000,365000,1994,1102,5500,"2017-03-30","2017-04-11","2017-05-17","2017-04-11",3,1,12,"No","No","No",null,"2017-05-18","2017-07-05",12,12,"BRENTWOOD","Contra Costa","Detached",1,"Yes",2,40775374,"Brentwood",null,0.13,null,null,null,23,null,"For Sale","One Story","No","No","No","No","No","No","194 Wright Ct.","M.Cristina Clayton","M.Cristina Clayton - Cell: 925-642-7032","Brentwood CA 94513","cahomesbycristina@gmail.com",null,"Cell: 925-642-7032",925,"642-7032",null,null,null,null,null,null,"2539 Foghorn Way","Delia Colmenares - Cell: 925-354-1404","Discovery Bay CA 94505","delia@homesbydeliac.com",925,"354-1404","9000 BRENTWOOD BLVD., STE. C","BRENTWOOD CA 94513","WEICHERT REALTORS - HH AND ASSOCIATES - Off: 925-634-4611","Off: 925-634-4611","No","No","No","No","Yes","No","No","No","No","No","No","No","No","No","Yes","No","No","No","No","No","No","No","No","Yes","No","No","No","No","No","Yes","Yes","No","No",0,"DELIA COLMENARES - Cell: 925-354-1404 - Move-In Ready Single Story on a Spacious Corner Lot!Upgraded Granite Kitchen & Bathroom Counters, New Floors, Newly Painted, Dual Pane Windows, Central HVAC, Covered Rear Patio, Stamped Concrete, 2 Storage Sheds, Large Side Yard. OPEN HOUSE SATURDAY 4/1  1-4pm",null,"None","Open House Sat. 4/1/17  1-4pm Please call Delia with any questions. Offers Due Thursday 4/6 by Noon... BACK UP OFFER ACCEPTED. ","Conventional",94513,"CA","Central 1 Zone A/C","Forced Air 1 Zone","Attached Garage, Off Street Parking","Cash, Conventional, 1031 Exchange, FHA, VA, Other",null,"Back Yard, Fenced, Front Yard, Patio, Patio Covered, Side Yard, Sprinklers Automatic, Sprinklers Front, Storage, Tool Shed, Other","Contemporary","None","None","No","Move-In Ready Single Story on a Spacious Corner Lot! Upgraded Granite Kitchen & Bathroom Counters, New Floors, Newly Painted, Dual Pane Windows, Central HVAC, Covered Rear Patio, Stamped Concrete, 2 Storage Sheds, Large Side Yard. OPEN HOUSE SATURDAY 4/1  1-4pm","No","No","None",null,null,null,null,null,365000,1102,5500,1,0,2,42872,24,3,0,3,0,1,0,0,0,0,0,1,1]
["Sold","212 Fruitwood",434950,430000,1985,1297,5456,"2019-06-07","2019-07-03","2019-07-31","2019-07-03",3,2,24,"Yes","No","No",null,"2019-08-01","2019-08-01",24,24,"BRENTWOOD","Contra Costa","Detached",null,"Yes",2,40869251,"Brentwood",null,0.13,119,"Monthly",null,34,null,"For Sale","One Story","No","No","No","No","No","No","P O Box 281","Ken Del Castillo","Ken Del Castillo - 408-356-9555","Los Gatos CA 95031","kdelcas@yahoo.com",null,"408-356-9555",408,"356-9555",null,null,null,null,null,null,"5980 Stoneridge Drive","Kathy Brunk - 925-277-0700","Pleasanton CA 94588","kathy@kathybrunk.com",null,null,"5980 Stoneridge Drive","Pleasanton CA 94588","Re/Max Accord - Off: 925-847-8900","Off: 925-847-8900","No","No","No","No","Yes","No","No","No","No","No","No","No","No","No","No","Yes","No","No","No","No","No","No","No","No","No","No","No","Yes","Yes","No","Yes","No","No",0,"Kathy Brunk - 925-277-0700 - Beautifully upgraded home! New kitchen, bathrooms, cabinets and appliances, new carpet, laminate floors, and bright rooms throughout make this house a wonderful home for first time buyers, families, or those looking for the perfect retirement retreat! Great location across from the community pool/spa. Sliding glass doors throughout the home bring the outdoors in. Enjoy your morning coffee in the atrium area off of the kitchen and entertain family and friends in your flat fenced back yard!",null,"None","Pre-escrow open with Sonja Borgna at First American Title. 5950327 (925)-750-6870.   DAMAGED FLOORING WILL BE REPAIRED BY WEDNESDAY JULY 3RD- ANY QUESTIONS PLEASE CALL 510-381-8880 ","Conventional","94513-2013","CA","Ceiling Fan(s), Central 1 Zone A/C","Forced Air 1 Zone","Attached Garage, Int Access From Garage, Off Street Parking","Cash, Conventional, FHA",null,"Fenced, Patio","Traditional","None","Community Fclty","Yes","Beautifully upgraded home! New kitchen, bathrooms, cabinets and appliances, new carpet, laminate floors, and bright rooms throughout make this house a wonderful home for first time buyers, families, or those looking for the perfect retirement retreat! Great location across from the community pool/spa. Sliding glass doors throughout the home bring the outdoors in. Enjoy your morning coffee in the atrium area off of the kitchen and entertain family and friends in your flat fenced back yard!  ","No","No",null,null,null,null,null,null,430000,1297,5456,2,0,2,43677,33,3,1,3,0,1,0,0,0,0,0,1,1]
["Sold","187 KAYLA PL",379950,389950,2004,1527,5279,"2015-08-05","2015-08-25","2015-09-21","2015-08-25",3,2,20,"No","No","No",null,"2015-09-21","2015-09-21",20,20,"BRENTWOOD","Contra Costa","Detached",0,"Yes",2,40710235,"Brentwood",null,0.121,null,null,1001,11,3031.03,"For Sale","One Story","No","No","No","No","No","No","113 Mont St. Michel Way","Cheri I Hunter","Cheri I Hunter - Agt: 925-2098211","Martinez CA 94553","cih.realtor@gmail.com","1954 Contra Costa Blvd.","Agt: 925-2098211",null,-2098211,null,null,null,null,null,null,"207 W. 6TH ST.","BOB GUNSON - Agt: 925-778-6000","ANTIOCH CA 94509","bobgun@ecis.com",925,"778-6000","320 EAST 18TH STREET STE. D","ANTIOCH CA 94509","BOB GUNSON REAL ESTATE - Off: 925-778-6000","Off: 925-778-6000","No","No","No","No","Yes","No","No","No","No","No","No","Yes","No","No","No","No","Yes","No","Yes","No","No","No","No","No","No","No","No","Yes","Yes","No","Yes","No","No",1,"BOB GUNSON - Agt: 925-778-6000 - Large living room, large kitchen. Laundry room on way to garage. Double sinks, tub and shower in spacious master bath. Fresh paint inside and out.",null,"None","Pre-escrow with North American Title, escrow #1372031 Clarice Wessman.","FHA",94513,"CA","Central 1 Zone A/C","Forced Air 1 Zone, Gas","Attached Garage, Garage Parking, Int Access From Garage, Enclosed Garage","Cash, Conventional, FHA","City Lights","Back Yard, Fenced, Front Yard, Sprinklers Automatic, Sprinklers Back, Sprinklers Front","Contemporary","Living Room","None","No","Large living room, large kitchen. Laundry room on way to garage. Double sinks, tub and shower in spacious master bath. Fresh paint inside and out.","No","No","None",null,null,null,null,null,389950,1527,5279,2,0,2,42268,14,2,1,3,1,1,0,0,0,0,0,1,1]
["Sold","173 COTTONWOOD CMN",339950,355000,1985,1480,5148,"2016-05-09","2016-05-18","2016-06-30","2016-05-18",3,2,9,"Yes","No","No",null,"2016-07-01","2016-07-01",9,9,"BRENTWOOD","Contra Costa","Detached",1,"Yes",2,40739626,"Brentwood",null,0.1,110,"Monthly",1003,31,3031.03,"For Sale","Two Story","No","No","No","No","No","No","PO BOX 1355","JAMES N CARLSON","JAMES N CARLSON - Agt: 925-719-1062","DISCOVERY BAY CA 94505","jim@jcarlsonteam.com",null,"Agt: 925-719-1062",925,"719-1062",null,null,null,null,null,null,"3811 E. Castro Valley Blvd","Timothy Ambrose - 510-258-8909","Castro Valley CA 94552","timambroserealtor@timambrose.com",510,"258-8909","3811 E. Castro Valley Blvd","Castro Valley CA 94552","Berkshire Hathaway HomeServ - Off: 510-537-9800","Off: 510-537-9800","Yes","No","No","No","Yes","No","No","No","No","No","No","No","No","No","No","No","No","No","No","No","No","No","No","No","No","No","No","Yes","Yes","No","Yes","No","No",1,"Timothy Ambrose - 510-258-8909 - Completely updated home located in a quiet community with a pool and spa. Updates include new paint, new carpets, appliances, granite counter tops, new dual pane windows, and a new roof. Fenced in back yard with a patio that's great for entertaining friends and family. Stop by and take a look.",null,"None","Please email agent for offer instructions and disclosure packet before submitting an offer.","CalHFA",94513,"CA","Ceiling Fan(s), Central 1 Zone A/C","Central Gravity","Attached Garage, Int Access From Garage","Conventional, FHA, VA",null,"Back Yard, Fenced, Patio Covered","Contemporary","Family Room","Community Fclty","Yes","Completely updated home located in a quiet community with a pool and spa. Updates include new paint, new carpets, appliances, granite counter tops, new dual pane windows, and a new roof. Fenced in back yard with a patio that's great for entertaining friends and family. Stop by and take a look.","No","No","None",null,null,null,null,null,355000,1480,5148,2,0,2,42551,33,0,1,3,1,2,0,0,0,0,0,0,1]
["Sold","129 HAVENWOOD AVE",395000,405000,2002,1408,5100,"2016-05-06","2016-05-18","2016-06-16","2016-05-18",3,2,8,"No","No","No",null,"2016-06-16","2018-06-08",8,8,"BRENTWOOD","Contra Costa","Detached",0,"Yes",2,40739503,"Brentwood",null,0,null,null,1001,14,3031.03,"For Sale","One Story","No","No","No","No","No","No","602 Doolittle Way","Alex Santos","Alex Santos - Agt: 510-7032458","Antioch CA 94509","alex.santos@compass.com","1646 N. California Blvd. #101","Agt: 510-7032458",null,-7032458,null,null,null,null,null,null,"P.O. Box 72","Cyndy Glieden - Agt: 925-216-5544","Knightsen CA 95458","cyndyglieden@aol.com",925,"216-5544","6035 SELLERS AVENUE","OAKLEY CA 94561","ASSIST 2 SELL REALTY - Off: 925-625-4663","Off: 925-625-4663","No","No","No","No","Yes","No","No","No","No","No","No","No","No","No","No","No","Yes","No","No","No","No","Yes","Yes","No","No","No","No","No","No","No","Yes","No","No",1,"CYNDY GLIEDEN - Agt: 925-625-7774 - Beautiful Single story home features 3 bedrooms 2 baths, crown molding,laminate wood flooring, living room with fireplace with mantle,solar by solar city buyer to make application to assume, central heat & Air. 2 car garage.",null,"None","Pre escrow already opened back on market no fault of propertyEasy to show, offers reviewed as they come in. Owner always home in home daycare.","FHA",94513,"CA","Ceiling Fan(s), Central 1 Zone A/C","Forced Air 1 Zone","Attached Garage","Cash, Conventional, 1031 Exchange, VA",null,"Back Yard, Front Yard","Ranch","Living Room","No Heat","No","Beautiful Single story home features 3 bedrooms 2 baths, crown molding,laminate wood flooring, living room with fireplace with mantle,solar by solar city buyer to make application to assume, central heat & Air. 2 car garage.","No","No",null,null,null,null,null,null,405000,1408,5100,2,0,2,42537,16,2,1,3,1,1,0,0,0,0,0,1,1]
["Sold","227 CARTER PL",400000,405000,2003,1527,5075,"2016-04-03","2016-04-13","2016-05-09","2016-04-13",3,2,10,"No","No","No",null,"2016-05-09","2016-05-09",10,10,"BRENTWOOD","Contra Costa","Detached",0,"Yes",2,40734777,"Brentwood",null,0.11600000000000001,null,null,1001,13,3031.03,"For Sale","One Story","No","No","No","No","No","No","1631 O'HARA AVENUE","DEDE HAYS","DEDE HAYS - Cell: 925-890-4158","OAKLEY CA 94561","dede.hays@sbcglobal.net",null,"Cell: 925-890-4158",925,"890-4158",null,null,null,null,null,null,"1631 O'HARA AVENUE","DEDE HAYS - Cell: 925-890-4158","OAKLEY CA 94561","dede.hays@sbcglobal.net",925,"890-4158","141 SAND CREEK ROAD STE. E","BRENTWOOD CA 94513","BHHS DRYSDALE PROPERTIES - Off: 925-634-3200","Off: 925-634-3200","No","No","No","No","Yes","No","No","No","No","No","No","Yes","No","No","No","No","Yes","No","No","No","No","No","No","No","No","No","No","Yes","Yes","No","Yes","No","No",1,"DEDE HAYS - Cell: 925-890-4158 - Delightful single story just freshened up with new carpet and new paint.  Home features a good floor plan and has been well maintained. Combo living room/dining room.  Eat in kitchen with large pantry.  Access to patio from kitchen and master bedroom. Appliances are included.",null,"None","Seller's will be reviewing offers on Wednesday morning, submit by Tuesday. Wipe feet - new carpet.  Please lv. business card. Broken key in lock has been fixed - sorry & thanks so much! Open House on 4-10.","Cash",94513,"CA","Central 1 Zone A/C","Forced Air 1 Zone","Attached Garage","Cash, Conventional, FHA",null,"Back Yard, Fenced, Patio, Sprinklers Back, Sprinklers Front","Contemporary","Living Room","None","No","Delightful single story just freshened up with new carpet and new paint.  Home features a good floor plan and has been well maintained. Combo living room/dining room.  Eat in kitchen with large pantry.  Access to patio from kitchen and master bedroom. Appliances are included.","No","No",null,null,null,null,null,null,405000,1527,5075,2,0,2,42499,15,2,1,3,1,1,0,0,0,0,0,1,1]
["Sold","302 Grovewood Loop",449000,464000,1985,1480,5044,"2018-04-23","2018-05-01","2018-06-04","2018-05-01",3,2,8,"Yes","No","No",null,"2018-06-04","2018-06-04",8,8,"BRENTWOOD","Contra Costa","Detached",1,"Yes",2,40818644,"Brentwood",null,0.12,110,"Monthly",null,33,null,"For Sale","Two Story","No","No","No","No","No","No","723 Anderson Ave.","Maria Toleran","Maria Toleran - Agt: 925-550-5915","Brentwood CA 94513","maria.toleran@redfin.com","655 Montgomery, Ste 1500","Agt: 925-550-5915",925,"550-5915",null,null,null,null,null,null,"26 Vignola Ct.","Brianna Salinas - 925-237-0010","Oakley CA 94561","briannasalinas@kw.com",925,"237-0010","191 SAND CREEK ROAD, STE. 100","BRENTWOOD CA 94513","KELLER WILLIAMS - Off: 925-634-0033","Off: 925-634-0033","No","No","No","No","Yes","No","No","No","No","No","No","No","No","No","Yes","No","No","No","No","No","No","Yes","No","No","No","No","No","No","Yes","No","Yes","No","No",1,"BRIANNA SALINAS - 925-237-0010 - Updated Open Concept Starter Home located in quiet community with a pool and other amenities. Updated kitchen includes newer appliances, solid counters, tile flooring and is open to great room with beautiful vaulted ceilings and a wood burning fireplace. Laminate flooring through out downstairs including in the downstairs master retreat. Half bath for guest down stairs with two large sized bedrooms and a full bath upstairs. One of the largest back yards in the community with a covered patio and room to play! (Garbage Area is NOT shared with neighbor) Close to Shopping Centers, Downtown Brentwood and Brentwood Schools!",null,"None","Garbage Area is NOT shared with neighbor. Owner out of area for showings from Monday 4/23 to Saturday 4/28. Text agent then go and show. After Sunday Appt only call agent, 2 hour notice appreciated. Escrow opened with First American #5685244. Offers due Monday by 12pm.","Conventional",94513,"CA","Central 1 Zone A/C","Forced Air 1 Zone","Attached Garage, Guest Parking, Parking Area","CalHFA, Cash, Conventional, FHA, VA, Other",null,"Back Yard, Fenced, Front Yard, Patio, Patio Covered, Side Yard, Sprinklers Front, Other","Traditional","Family Room, Woodburning","Possible Pool Site","Yes","Updated Open Concept Starter Home located in quiet community with a pool and other amenities. Updated kitchen includes newer appliances, solid counters, tile flooring and is open to great room with beautiful vaulted ceilings and a wood burning fireplace. Laminate flooring through out downstairs including in the downstairs master retreat. Half bath for guest down stairs with two large sized bedrooms and a full bath upstairs. One of the largest back yards in the community with a covered patio and room to play! (Garbage Area is NOT shared with neighbor) Close to Shopping Centers, Downtown Brentwood and Brentwood Schools!","No","No",null,null,null,null,null,null,464000,1480,5044,2,0,2,43255,33,3,1,3,1,2,0,0,0,0,0,1,1]
["Sold","302 GROVEWOOD LOOP",364900,365000,1985,1480,5044,"2016-03-29","2016-04-14","2016-05-20","2016-04-14",3,2,13,"No","No","No",null,"2016-05-20","2017-10-05",13,13,"BRENTWOOD","Contra Costa","Detached",1,"Yes",2,40734060,"Brentwood",null,0.11579399999999999,110,"Monthly",1003,31,3031.03,"For Sale","Two Story","No","No","No","No","No","No","PO BOX 1355","JAMES N CARLSON","JAMES N CARLSON - Agt: 925-719-1062","DISCOVERY BAY CA 94505","jim@jcarlsonteam.com",null,"Agt: 925-719-1062",925,"719-1062",null,null,null,null,null,null,"4075 PIER POINT","KRISTA MASHORE - 925-325-4663","DISCOVERY BAY CA 94505","Krista@KristaHomes.com",925,"325-4663","5149 LONE TREE WAY","ANTIOCH CA 94531","HOMES BY KRISTA - Off: 925-595-0217","Off: 925-595-0217","No","No","No","No","Yes","No","No","No","No","No","No","No","No","No","Yes","No","No","No","No","No","No","Yes","No","No","No","No","No","No","No","No","Yes","No","No",1,"KRISTA MASHORE - 925-325-4663 - Cute & cozy home located in a quiet community w/ pool & spa. No rear neighbors. Upgraded kitchen includes a reverse osmosis and all new black appliances, tiled flooring & solid counters. Backyard has covered patio. Fireplace & open floor plan. Master bed downstairs. New water softener & heater.",null,"None","Call Veronica when making an appointment - 925.381.6396 No showings before 10:30 AM or after 6:30 PM.","VA",94513,"CA","Central 1 Zone A/C","Forced Air 1 Zone","Attached Garage","Cash, Conventional, FHA, VA","Mt Diablo","Back Yard, Fenced, Front Yard","Contemporary","Living Room, Woodburning","Community Fclty","Yes","Cute & cozy home located in a quiet community w/ pool & spa. No rear neighbors. Upgraded kitchen includes a reverse osmosis and all new black appliances, tiled flooring & solid counters. Backyard has covered patio. Fireplace & open floor plan. Master bed downstairs. New water softener & heater.","No","No","None",null,null,null,null,null,365000,1480,5044,2,0,2,42510,33,3,3,3,1,2,0,0,0,1,0,1,1]
["Sold","199 Kayla Pl",474950,475000,2003,1527,5016,"2017-05-07","2017-06-06","2017-07-21","2017-06-06",3,2,29,"No","No","No",null,"2017-07-31","2017-12-20",30,30,"BRENTWOOD","Contra Costa","Detached",0,"Yes",2,40780425,"Brentwood",null,0.12,null,null,null,14,null,"For Sale","One Story","No","No","No","No","No","No","2482-A Bonifacio St","Gabriele Orbell","Gabriele Orbell - Agt: 925-639-7450","Concord CA 94520","gabriele.orbell@kw.com","201 N. Civic Dr. Ste. 130","Agt: 925-639-7450",925,"639-7450",null,null,null,null,null,null,"383 Grenadier Way","Cynthia Reynolds - 925-240-7355","Brentwood CA 94513","cindy@cindyreynolds.net",925,"240-7355","4605 ROSE AVE","OAKLEY CA 94561","MORNING STAR PROPERTIES - Off: 925-679-2100","Off: 925-679-2100","No","No","No","No","Yes","No","No","No","No","No","No","Yes","No","No","No","No","Yes","No","No","No","No","No","No","No","No","No","Yes","Yes","Yes","No","Yes","No","No",1,"CYNTHIA REYNOLDS - Agt: 925-240-7355 - Lovely Home in Pristine Condition, Open Floor Plan, 3 Beds & 2 Baths, Beautiful Kitchen With Nook, Gas Stove & Pantry, Gas Fireplace in Great Room (or Liv/Din Rm), New Exterior Paint, Master Bedrm w/Sliding Door, Detailed Landscaping, Backyd w/Stamp Concrete, Artificial Grass, Waterfall & Pond, Shed, Solar Panels, Laundry Room w/Cabinets, Come & See, Enjoy Brentwood Community!",null,"None","Call Home Owner or Realtor - Must have Appointment, Small Dog. Sellers need time to find home of choice.","Conventional",94513,"CA","Ceiling Fan(s), Central 1 Zone A/C","Forced Air 1 Zone","Attached Garage, Guest Parking","Cash, Conventional, FHA",null,"Back Yard, Fenced, Front Yard, Patio, Side Yard, Sprinklers Back, Sprinklers Front, Tool Shed","Contemporary","Gas Burning","None","No","Lovely Home in Pristine Condition, Open Floor Plan, 3 Beds & 2 Baths, Beautiful Kitchen With Nook, Gas Stove & Pantry, Gas Fireplace in Great Room (or Liv/Din Rm), New Exterior Paint, Master Bedrm w/Sliding Door, Detailed Landscaping, Backyd w/Stamp Concrete, Artificial Grass, Waterfall & Pond, Shed, Solar Panels, Laundry Room w/Cabinets, Come & See, Enjoy Brentwood Community!","No","No",null,null,null,null,null,null,475000,1527,5016,2,0,2,42937,15,2,1,3,1,1,0,0,0,0,0,1,1]
["Sold","1888 Connor Way",499900,501000,2004,1527,5000,"2018-05-11","2018-05-24","2018-06-27","2018-05-24",3,2,12,"No","No","No",null,"2018-06-28","2018-06-28",12,12,"BRENTWOOD","Contra Costa","Detached",0,"Yes",2,40821353,"Brentwood",null,0.12,null,null,null,14,null,"For Sale","One Story","No","No","No","No","No","No","39560 Stevenson Pl","Abby Khan","Abby Khan - 510-453-8913","Fremont CA 94538","abbyskhan@gmail.com",null,"510-453-8913",510,"453-8913",null,null,null,null,null,null,"4647 WINCHESTER DRIVE","CLIFFORD OLSON - 925-864-4012","OAKLEY CA 94561","olsonfam@sbcglobal.net",925,"864-4012","50 EAGLE ROCK WAY, STE. D","BRENTWOOD CA 94513","JDK & ASSOCIATES REALTY INC - Off: 925-418-4442","Off: 925-418-4442","No","No","No","No","Yes","No","No","No","No","No","No","Yes","No","No","Yes","No","No","No","Yes","No","No","Yes","No","No","No","No","No","No","Yes","No","Yes","No","No",1,"CLIFFORD OLSON - 925-864-4012 - Like new single story in desirable Brentwood neighborhood.  3 Bedroom, 2 full bathrooms with upgrades galore!  New laminate flooring, carpet, and new paint inside and out.  Updated kitchen with granite counters and new dishwasher and microwave, along with walk-in pantry.  Spacious master bedroom with walk-in closet.  New recessed lighting in living room.  No direct rear or side neighbors.  Close to park / dog park.  Open House Saturday & Sunday, 5/19 and 5/20 - 1-4PM",null,"None","Back on market, no fault of seller.  Contact Listing agent - Cliff 925-864-4012 - Sellers prefer showings late afternoon or later.  After 3:30 PM is preferred.","Conventional",94513,"CA","Ceiling Fan(s), Central 1 Zone A/C","Forced Air 1 Zone, Gas","Attached Garage","Cash, Conventional, FHA, VA",null,"Back Yard, Fenced, Patio, Sprinklers Front","Other","Woodburning","None","No","Like new single story in desirable Brentwood neighborhood.  3 Bedroom, 2 full bathrooms with upgrades galore!  New laminate flooring, carpet, and new paint inside and out.  Updated kitchen with granite counters and new dishwasher and microwave, along with walk-in pantry.  Spacious master bedroom with walk-in closet.  New recessed lighting in living room.  No direct rear or side neighbors.  Close to park / dog park.  Open House Saturday & Sunday, 5/19 and 5/20 - 1-4PM","No","No","None",null,null,null,null,null,501000,1527,5000,2,0,2,43278,14,3,1,3,1,1,0,0,0,0,0,1,1]
["Sold","1888 CONNOR WAY",415000,413800,2004,1527,5000,"2016-04-01","2016-04-09","2016-05-06","2016-04-09",3,2,8,"No","No","No",null,"2016-05-18","2018-10-19",8,8,"BRENTWOOD","Contra Costa","Detached",0,"Yes",2,40734670,"Brentwood",null,0.11477999999999999,null,null,1001,12,3031.03,"For Sale","One Story","No","No","No","No","No","No","4647 WINCHESTER DRIVE","CLIFFORD OLSON","CLIFFORD OLSON - 925-864-4012","OAKLEY CA 94561","olsonfam@sbcglobal.net",null,"925-864-4012",925,"864-4012",null,null,null,null,null,null,"7581 OxBox Ln.","John F Murphy - Agt: 925-2506003","Dublin CA 94568","jmurphy@ctwfinancial.com",null,-2506003,"4230 Lilac Ridge Rd","San Ramon CA 94582","CTW Financial Services, Inc. - Off: 925-4784333","Off: 925-4784333","No","No","No","No","Yes","No","No","No","No","No","No","No","No","No","Yes","No","No","No","No","No","No","Yes","No","No","No","No","No","No","Yes","No","Yes","No","No",1,"John F Murphy - Agt: 866-582-6691 - This newly updated brentwood home is ideal for anyone starting out or looking to move up.  From new floors and granite kitchen, to some updates in the baths and landscape, this home has it all.  Easy commute in and out of the area and close to all shopping and schools",null,"None","Bring your clients this week April 6th, 7th, or 8th anytime no appointment.  Please email listing agent any and all questions.  All reasonable offers considered","Conventional",94513,"CA","Central 1 Zone A/C","Forced Air 1 Zone","Attached Garage","Cash, Conventional, FHA",null,"Back Yard, Fenced, Front Yard, Side Yard","Ranch","Family Room","None","No","This newly updated brentwood home is ideal for anyone starting out or looking to move up.  From new floors and granite kitchen, to some updates in the baths and landscape, this home has it all.  Easy commute in and out of the area and close to all shopping and schools","No","No","None",null,null,null,null,null,413800,1527,5000,2,0,2,42496,14,3,1,3,1,1,0,0,0,0,0,1,1]
["Sold","190 KAYLA PL",389000,395000,2003,1527,4930,"2015-08-03","2015-08-12","2015-09-11","2015-08-12",3,2,9,"No","No","No",null,"2015-09-15","2017-04-14",9,9,"BRENTWOOD","Contra Costa","Detached",0,"Yes",2,40709982,"Brentwood",null,0.11,null,null,1001,12,3031.03,"For Sale","One Story","No","No","No","No","No","No","2355 San Ramon Valley Blvd","Priscilla M Alfonso","Priscilla M Alfonso - 925-413-9510","San Ramon CA 94583","priscilla.m.alfonso@gmail.com",null,"925-413-9510",925,"413-9510",null,null,null,null,null,null,"635 RUTHERFORD CIRCLE","STEVE GURSKY - Agt: 925-240-6683","BRENTWOOD CA 94513","sgursky@sbcglobal.net",925,"240-6683","320 FAIRVIEW AVENUE","BRENTWOOD CA 94513","SHARP REALTY - Off: 925-240-6683","Off: 925-240-6683","No","No","No","No","Yes","No","No","No","No","No","No","Yes","No","No","No","No","Yes","No","Yes","No","No","Yes","No","No","No","No","Yes","No","Yes","No","Yes","No","No",1,"STEVE GURSKY - Agt: 925-584-8708 - Great single story floor plan! Spacious kitchen w/tile counters & stainless appliances; Kitchen Nook; Attic Storage; Updated Flooring; Surround Sound; Wood Fireplace; LARGE Master Suite; Recessed Lighting; Ceiling Fans; Crown Molding; Wood Blinds; Fresh Ext Paint; Clean Landscaping....A MUST SEE!",null,"None","Open Sat/Sun 08/08 & 08/09 1-4 PM. Offers, if any, reviewed Wed 08/12 at 9:00 AM. Call or text LA 1 hour prior to showing. Washer/Dryer negotiable. Garage heater not included.","FHA",94513,"CA","Ceiling Fan(s), Central 1 Zone A/C","Forced Air 1 Zone","Attached Garage, Int Access From Garage","Cash, Conventional, FHA, VA",null,"Back Yard, Dog Run, Fenced, Front Yard, Garden/Play, Patio, Side Yard, Sprinklers Automatic, Sprinklers Back, Sprinklers Front","Contemporary","Family Room, Stone, Woodburning","None","No","Great single story floor plan! Spacious kitchen w/tile counters & stainless appliances; Kitchen Nook; Attic Storage; Updated Flooring; Surround Sound; Wood Fireplace; LARGE Master Suite; Recessed Lighting; Ceiling Fans; Crown Molding; Wood Blinds; Fresh Ext Paint; Clean Landscaping....A MUST SEE!","No","No","None",null,null,null,null,null,395000,1527,4930,2,0,2,42258,15,2,1,3,1,1,0,0,0,0,0,1,1]
["Sold","158 TRENT PL",369900,359900,2003,1527,4930,"2015-08-24","2015-09-08","2015-09-30","2015-09-08",3,2,15,"No","No","No",null,"2015-10-15","2015-10-15",15,15,"BRENTWOOD","Contra Costa","Detached",0,"Yes",2,40712859,"Brentwood",null,0.113,null,null,1001,12,3031.03,"For Sale","One Story","No","No","No","No","No","No","1561Traveler","Angela Martinez","Angela Martinez - Agt: 925-8991432","Discovery Bay CA 94505","Angela@dudum.com","1910 Olympic Blvd # 100","Agt: 925-8991432",null,-8991432,null,null,null,null,null,null,"90 Jasmine Court","Gail Knight - Agt: 925-759-4800","Oakley CA 94561","morningstarproperties@msn.com",925,"759-4800","4605 ROSE AVE","OAKLEY CA 94561","MORNING STAR PROPERTIES - Off: 925-679-2100","Off: 925-679-2100","No","No","No","No","Yes","No","No","No","No","No","No","Yes","Yes","No","Yes","No","No","No","No","No","No","No","Yes","Yes","No","No","No","No","No","No","Yes","No","No",1,"GAIL KNIGHT - Agt: 925-759-4800 - Adorable single story! Formal living w/ custom sitting windows, cozy tile fireplace with decorative columns & spacious dining room. Eat-in kitchen nook area with slider to rear yard, pantry & white appliances. Laminate flooring throughout with lots of ceiling fans, washroom, double sink bath & more!",null,"None","Be careful not to let cats out. Dog is friendly. Call 1st then go. If no answer leave a message and go. Sellers are highly motivated. OPEN HOUSE 9/5 1-4!!!","Cash",94513,"CA","Central 1 Zone A/C","Forced Air 1 Zone","Attached Garage, Off Street Parking","Cash, Conventional, FHA, VA","Other","Back Yard, Fenced, Front Yard","Traditional","Woodburning","None","No","Adorable single story! Formal living w/ custom sitting windows, cozy tile fireplace with decorative columns & spacious dining room. Eat-in kitchen nook area with slider to rear yard, pantry & white appliances. Laminate flooring throughout with lots of ceiling fans, washroom, double sink bath & more!","No","No","None",null,null,null,null,null,359900,1527,4930,2,0,2,42277,15,3,1,3,1,1,0,0,0,0,0,1,1]
["Sold","166 Trent Place",349950,350000,2003,1527,4930,"2015-02-04","2015-02-11","2015-03-30","2015-02-11",3,2,7,"No","No","No",null,"2015-03-31","2019-09-12",7,7,"BRENTWOOD","Contra Costa","Detached",null,"Yes",2,40686217,"Brentwood",null,0.11,null,null,null,12,null,"For Sale","One Story","No","No","No","No","No","No","331 Foothill Rd.","Albert Garibaldi","Albert Garibaldi - 408-309-7206","Beverly Hills CA 90210","agaribaldi@theagencyre.com",null,"408-309-7206",408,"309-7206",null,null,null,null,null,null,"5112 Olive Dr.","Ryan Taylor - Agt: 925-5186108","Concord CA 94521","Ryan@Taylor4re.com",null,-5186108,"7901 Stoneridge Dr","Pleasanton CA 94588","Excel Realty - Off: 925-398-6808","Off: 925-398-6808","No","No","No","No","Yes","No","No","No","No","No","No","Yes","Yes","No","No","Yes","No","No","No","No","No","Yes","Yes","No","No","No","No","No","Yes","No","Yes","No","No",1,"Ryan Taylor - Agt: 925-518-6108 - You'll love this beautiful one story home! Clean & ready to move right in! The kitchen has granite counters, upgraded cabinets and walk in pantry.  Large master bathroom with dual sinks. Indoor laundry.  Lots of parking including RV side yard parking!  Must see! OPEN HOUSE 1-4pm 2/8",null,"None","Easy to show, call then go.  Owner is at work during the week and out of town 2/7-2/8.  Please email offers to ryan@taylor4re.com","FHA",94513,"CA","Ceiling Fan(s), Central 1 Zone A/C","Forced Air 1 Zone","Attached Garage, Garage Parking, Off Street Parking, RV/Boat Parking, Side Yard Access","CalHFA, Cash, Conventional, 1031 Exchange, FHA, VA, Other","Other","Back Yard, Dog Run, Fenced, Front Yard, Side Yard, Storage","Contemporary","Brick, Woodburning","None","No","You'll love this beautiful one story home! Clean & ready to move right in! The kitchen has granite counters, upgraded cabinets and walk in pantry.  Large master bathroom with dual sinks. Indoor laundry.  Lots of parking including RV side yard parking!  Must see! OPEN HOUSE 1-4pm 2/8","No","No",null,null,null,null,null,null,350000,1527,4930,2,0,2,42093,15,3,1,3,1,1,0,0,0,0,0,1,1]
["Sold","182 KAYLA PL",420000,410000,2004,1527,4930,"2016-10-05","2016-10-30","2016-11-30","2016-10-30",3,2,25,"No","No","No",null,"2017-01-17","2019-09-12",25,25,"BRENTWOOD","Contra Costa","Detached",0,"Yes",2,40759799,"Brentwood",null,0.113,null,null,1001,13,3031.03,"For Sale","One Story","No","No","No","No","No","No","715 BLAKE CT.","CATHERINE L CASTILLO","CATHERINE L CASTILLO - Cell: 925-437-2367","DISCOVERY BAY CA 94505","catherinecastillo73@gmail.com",null,"Cell: 925-437-2367",925,"437-2367",null,null,null,null,null,null,"5112 Olive Dr.","Ryan Taylor - Agt: 925-5186108","Concord CA 94521","Ryan@Taylor4re.com",null,-5186108,"7901 Stoneridge Dr","Pleasanton CA 94588","Excel Realty - Off: 925-398-6808","Off: 925-398-6808","No","No","No","No","Yes","No","No","No","No","No","No","Yes","Yes","No","Yes","No","No","No","No","No","No","No","No","No","No","No","No","Yes","Yes","No","Yes","No","No",1,"Ryan Taylor - Agt: 925-518-6108 - Beautiful home with 3 bedrooms and 2 bathrooms, only 12 years old! Open spacious floor plan. Dual pane windows. Indoor laundry. Ceiling fans and recessed lights throughout. Built in speakers and wiring. Large kitchen with walk in pantry. Large master bedroom with walk in closet.",null,"None","Please email offers. Reviewed as received. Vacant, easy to show.","VA",94513,"CA","Ceiling Fan(s), Central 1 Zone A/C","Forced Air 1 Zone, Gas","Attached Garage, Side Yard Access","Cash, Conventional, 1031 Exchange, FHA, VA, Other","Other","Back Yard, Fenced, Patio, Side Yard","Traditional","Gas Burning, Gas Starter, Living Room","None","No","Beautiful home with 3 bedrooms and 2 bathrooms, only 12 years old! Open spacious floor plan. Dual pane windows. Indoor laundry. Ceiling fans and recessed lights throughout. Built in speakers and wiring. Large kitchen with walk in pantry. Large master bedroom with walk in closet.","No","No","None",null,null,null,null,null,410000,1527,4930,2,0,2,42704,14,3,1,3,1,1,0,0,0,0,0,1,1]
["Sold","1853 Beachwood Commons",350000,340000,1984,1025,4920,"2019-09-20","2019-10-11","2019-11-05","2019-10-11",2,2,21,"Yes","No","No",null,"2019-11-05","2019-11-05",21,21,"BRENTWOOD","Contra Costa","Detached",null,"Yes",2,40883032,"Brentwood",null,0.11,119,"Monthly",null,35,null,"For Sale","One Story","No","No","No","No","No","No","100 NEROLY RD.","WENDY A GREGORICH","WENDY A GREGORICH - Agt: 925-759-9594","OAKLEY CA 94561","wendy@teamgrealestate.com",null,"Agt: 925-759-9594",925,"759-9594","1844 BUCK MOUNTAIN CT","BRIAN DONNALLY - 925-852-8506","ANTIOCH CA 94531-9098","brian@rickfuller.com",null,null,"5079 LONE TREE WAY","RICK FULLER - 925-238-0160","ANTIOCH CA 94531","questions@realtorrick.biz",null,null,"5079 LONE TREE WAY","ANTIOCH CA 94531","RICK FULLER INC. - Off: 925-238-0160","Off: 925-238-0160","No","No","No","No","Yes","No","No","No","No","No","No","No","No","No","No","No","No","Yes","No","No","No","No","No","No","No","No","Yes","No","Yes","No","Yes","No","No",1,"RICK FULLER - 925-238-0160 - Cute & Clean 2 Bedroom, 2 Bath located in desirable Brentwood w/ access to a Gorgeous Community Pool, Hot Tub and Outdoor area.Fresh Paint and New Carpet throughout that makes this Home move-in ready. The Tile entryway Welcomes you into the spacious Living Room with Gas Fireplace, Vaulted Ceiling, Ceiling Fan and Sliding Glass Door. The Dining area is Light and Bright with numerous Windows including two Sliding Glass Doors, Tile Flooring and views of the Backyard. You will find numerous Cabinets in the Kitchen with Tile Flooring, a Black Frigidaire Dishwasher, Stainless Steel Frigidaire Refrigerator, Samsung Microwave and Stainless Steel Frigidaire Stove. This Lovely Home boasts 2 Bedrooms with Canned Lighting and Ceiling Fans and two Bathrooms. The Hall Bath has a Shower over Tub and the Master Bathroom has a spacious Shower. Indoor Laundry with Linen Cabinets. Come and Enjoy the spacious Private Backyard with its Patio and Screened Porch.",null,"None","Thank you for showing!  Pre Escrow open with Fidelity National Title. Any questions, contact LISTING AGENT/BRIAN DONNALLY at (925) 852-8506.  When submitting offers,  please provide C.A.R. Form Confirmation of Real Estate Agency Relationships (sample located in Associated Docs). Submit offers to LISTING AGENT/BRIAN DONNALLY at Brian@Rickfuller.com .   Offers being reviewed in the order received..  HOA is Havenwood Village Homeowners Association c/o Homeowner Association services","Conventional",94513,"CA","Ceiling Fan(s), Central 1 Zone A/C","Forced Air 1 Zone, Gas","Attached Garage, Parking Area","CalHFA, Cash, Conventional, FHA, VA",null,"Back Yard, Fenced, Patio, Patio Covered, Sprinklers Automatic, Sprinklers Back, Sprinklers Front","Contemporary","Gas Burning, Living Room","Community Fclty, Hot Tub","Yes","Cute & Clean 2 Bedroom, 2 Bath located in desirable Brentwood w/ access to a Gorgeous Community Pool, Hot Tub and Outdoor area.Fresh Paint and New Carpet throughout that makes this Home move-in ready. The Tile entryway Welcomes you into the spacious Living Room with Gas Fireplace, Vaulted Ceiling, Ceiling Fan and Sliding Glass Door. The Dining area is Light and Bright with numerous Windows including two Sliding Glass Doors, Tile Flooring and views of the Backyard. You will find numerous Cabinets in the Kitchen with Tile Flooring, a Black Frigidaire Dishwasher, Stainless Steel Frigidaire Refrigerator, Samsung Microwave and Stainless Steel Frigidaire Stove. This Lovely Home boasts 2 Bedrooms with Canned Lighting and Ceiling Fans and two Bathrooms. The Hall Bath has a Shower over Tub and the Master Bathroom has a spacious Shower. Indoor Laundry with Linen Cabinets. Come and Enjoy the spacious Private Backyard with its Patio and Screened Porch.","No","No",null,null,null,null,null,null,340000,1025,4920,2,0,2,43774,34,1,1,2,1,1,0,0,0,0,0,1,1]
["Sold","438 Grovewood Loop",449900,490000,1985,1480,4888,"2018-06-16","2018-07-08","2018-08-18","2018-07-08",3,3,22,"Yes","No","No",null,"2018-08-20","2018-08-20",22,22,"BRENTWOOD","Contra Costa","Detached",1,"Yes",2,40826563,"Brentwood",null,0.14000000000000001,110,"Monthly",null,33,null,"For Sale","Two Story","No","No","No","No","No","No","5032 WINCHESTER DRIVE","RICHARD HOLMES","RICHARD HOLMES - 925-337-3838","OAKLEY CA 94561","richard.holmes@comcast.net",null,"925-337-3838",925,"337-3838",null,null,null,null,null,null,"426 First St.","Michele Lane - 408-806-0340","Benicia CA 94510","michele_lanerealtor@hotmail.com",408,"806-0340","181 Sand Creek Rd.","Brentwood CA 94513","Equity RE Solutions - Off: 888-515-9283","Off: 888-515-9283","No","No","No","No","Yes","No","No","No","No","No","No","No","Yes","No","No","No","Yes","No","No","No","No","Yes","No","No","No","No","Yes","No","Yes","No","Yes","No","No",1,"Michele Lane - 408-806-0340 - Cute and affordable with low HOA's.  This home is ready for you year around. Nice neighborhood pool for those hot summer afternoons, and fireplace in the living room to snuggle up in front of on those cold winter nights.  New deck in the private backyard waiting for you to enjoy. Plenty of room to BBQ or hang out with family and friends. High ceilings in the living room, extra storage closet at the top of the stairs. Good size master bedroom which is located on the main level. Roof is less than 3 years old. You don't want to miss this opportunity.",null,"None","Please call homeowner for viewing appointment. 1 hour notice required Call agent before writing offer. Alarm code may be set, you must set an appointment. If no answer from homeowner call agent.","Conventional",94513,"CA","Central 1 Zone A/C","Forced Air 1 Zone","Attached Garage, Off Street Parking","Cash, Conventional, FHA, VA","Other","Back Yard, Fenced, Front Yard, Patio, Side Yard","Traditional","Brick, Living Room, Woodburning","Community Fclty, In Ground","Yes","Cute and affordable with low HOA's.  This home is ready for you year around. Nice neighborhood pool for those hot summer afternoons, and fireplace in the living room to snuggle up in front of on those cold winter nights.  New deck in the private backyard waiting for you to enjoy. Plenty of room to BBQ or hang out with family and friends. High ceilings in the living room, extra storage closet at the top of the stairs. Good size master bedroom which is located on the main level. Roof is less than 3 years old. You don't want to miss this opportunity. ","No","No","None",null,null,null,null,null,490000,1480,4888,3,0,2,43330,33,2,1,3,1,2,0,0,0,0,0,1,1]
["Sold","93 Cottonwood Cmn",445000,450000,1985,1480,4888,"2020-05-27","2020-05-30","2020-07-20","2020-05-30",3,2,3,"Yes","No","No",null,"2020-07-21","2020-07-21",3,3,"BRENTWOOD","Contra Costa","Detached",1,"Yes",2,40906234,"Brentwood",null,0.11,127,"Monthly",null,35,null,"For Sale","Two Story","No","No","No","No","No","No","10 Oliveglen Ct.","Marilou B Ignacio","Marilou B Ignacio - Agt: 925-2079168","Pittsburg CA 94565","dreamhouserealty@aol.com","10 Oliveglen","Agt: 925-2079168",null,-2079168,null,null,null,null,null,null,"6300 Sellers Ave","Jaime Garcia - Agt: 925-6795760","Brentwood CA 94513","jaimegre@yahoo.com",null,-6795760,"3350 Clayton Rd #100","Concord CA 94519","HomeSmart Optima Realty, Inc - Off: 925-270-0520","Off: 925-270-0520","No","No","No","No","Yes","No","No","No","No","No","No","No","No","No","No","No","No","No","No","No","No","No","No","No","No","No","Yes","Yes","Yes","No","Yes","No","No",1,"Jaime Garcia - Agt: 925-6795760 - Beautiful single-family home situated in the family-oriented desirable community of Brentwood with quality schools. This property features a nice community pool this modern 2 story floor plan with a very spacious Loft of over 240 sq sq ft 3 large bedrooms with master bedroom downstairs with full bath a total of 2.5 bath and fireplace in the living room with high vaulted ceilings living room and kitchen combo. Spacious private backyard with no rear neighbors with various mature fruit trees including multiple citrus trees, figs, grapes, avocado, and guava fruit trees  with a very nicely designed Deck with plentiful storage space in the backyard and side yard new new roof.  There's affordable home  is situated near Parks schools, shopping malls, grocery stores and easy freeway access and only 14 minutes to the E BART train heading to the San Francisco Bay.",null,"None",null,"FHA",94513,"CA","Central 1 Zone A/C","Forced Air 1 Zone","Attached Garage","Cash, Conventional, FHA, VA",null,"Back Yard, Front Yard, Garden/Play, Sprinklers Back, Sprinklers Front, Tool Shed","Contemporary","Fireplace Insert","Community Fclty, Gunite, In Ground","Yes","Beautiful single-family home situated in the family-oriented desirable community of Brentwood with quality schools. This property features a nice community pool this modern 2 story floor plan with a very spacious Loft of over 240 sq sq ft 3 large bedrooms with master bedroom downstairs with full bath a total of 2.5 bath and fireplace in the living room with high vaulted ceilings living room and kitchen combo. Spacious private backyard with no rear neighbors with various mature fruit trees including multiple citrus trees, figs, grapes, avocado, and guava fruit trees  with a very nicely designed Deck with plentiful storage space in the backyard and side yard new new roof.  There's affordable home  is situated near Parks schools, shopping malls, grocery stores and easy freeway access and only 14 minutes to the E BART train heading to the San Francisco Bay.","No","No","None",null,null,null,null,null,450000,1480,4888,2,0,2,44032,33,0,1,3,1,2,0,0,0,0,0,1,1]
["Sold","264 Woodfield Ln",384000,420000,2001,1224,4880,"2018-04-24","2018-04-28","2018-05-30","2018-04-28",2,2,4,"No","No","No",null,"2018-06-01","2018-06-01",4,4,"BRENTWOOD","Contra Costa","Detached",0,"Yes",2,40818825,"Brentwood",null,0.11,null,null,null,17,null,"For Sale","One Story","No","No","No","No","No","No","191 Sand Creek Rd. #100","Dana Huelga","Dana Huelga - Agt: 925-4877322","Brentwood CA 94513-","Dana@DanaHuelga.com","191 Sand Creek Rd. #100","Agt: 925-4877322",null,-4877322,null,null,null,null,null,null,"2162 Connie Lane","Michael Gordon - Agt: 925-3826109","Oakley CA 94561","michael@e3realty.com",null,null,"1185 2nd St. Ste. G","Brentwood CA 94513","One80 Realty - Off: 925-2159030","Off: 925-2159030","No","No","No","No","Yes","No","No","No","No","No","No","Yes","No","No","No","No","No","No","No","No","No","Yes","No","No","No","No","Yes","No","Yes","No","Yes","No","No",1,"Michael Gordon - Agt: 925-3826109 - A beautiful starter home under $400K in Brentwood? Thatâ€™s right, here it is! This adorable home has an open living space lit up by natural light as soon as you walk in the front door. With a backyard ready to entertain or enjoy a relaxing evening, you will feel right at home. This price for a cute Brentwood single story is too sweet to pass up! Welcome home.",null,"None","Call or Text Agent to schedule showings. Dogs on premises. Easy to show, 1-hour notice appreciated. Showing times available between 9AM and 8:00PM. Contingent on seller finding replacement home. Offers reviewed as submitted. Email ally@one80realty.com for Disclosures and Reports. Open House 04/28 from 1-4PM","Conventional",94513,"CA","Central 1 Zone A/C","Forced Air 1 Zone, Gas","Attached Garage","Cash, Conventional, FHA, VA",null,"Back Yard, Fenced, Front Yard, Patio, Side Yard, Sprinklers Automatic, Sprinklers Front","Traditional","Living Room","None","No","A beautiful starter home under $400K in Brentwood? Thatâ€™s right, here it is! This adorable home has an open living space lit up by natural light as soon as you walk in the front door. With a backyard ready to entertain or enjoy a relaxing evening, you will feel right at home. This price for a cute Brentwood single story is too sweet to pass up! Welcome home.","No","No","None",null,null,null,null,null,420000,1224,4880,2,0,2,43250,17,0,1,2,1,1,0,0,0,0,0,1,1]
["Sold","264 WOODFIELD LN",359000,345000,2001,1224,4880,"2016-04-04","2016-04-13","2016-05-27","2016-04-13",2,2,9,"No","No","No",null,"2016-06-13","2017-07-05",9,9,"BRENTWOOD","Contra Costa","Detached",0,"Yes",2,40734822,"Brentwood",null,0.11,null,null,1001,15,3031.03,"For Sale","One Story","No","No","No","No","No","No","2162 Connie Lane","Michael Gordon","Michael Gordon - Agt: 925-3826109","Oakley CA 94561","michael@e3realty.com","3125 Clayton Suite 202","Agt: 925-3826109",null,null,null,null,null,null,null,null,"1222 marina circle","Nick Lorusso - Agt: 925-354-2778","Discovery CA 94505","nicklorussore@comcast.net",925,"354-2778","50 EAGLE ROCK WAY, STE. D","BRENTWOOD CA 94513","JDK & ASSOCIATES REALTY INC - Off: 925-418-4442","Off: 925-418-4442","No","No","No","No","No","No","No","No","No","No","No","Yes","No","No","No","No","Yes","No","Yes","No","No","Yes","No","No","No","No","No","No","No","No","Yes","No","No",1,"NICK LORUSSO - Agt: 925-354-2778 - Great start home In awesome Brentwood!  Great location to shops and downtown! 2-beds, 2 full baths.1224 square feet. With a great backyard that includes a practically new hot tub(only used once), fire pit, built in BBQ island and lots of room for entertaining!",null,"None","On week day show 1:00-7:00pm, weekend anytime. Must make contact with home owner prior to showing.Please text Nick with any questions 925-354-2778. Offers reviewed as received.","Conventional",94513,"CA","Central 1 Zone A/C","Forced Air 1 Zone","Attached Garage","Cash, Conventional, FHA, VA",null,"Back Yard, Fenced, Front Yard, Patio, Sprinklers Front","Contemporary","Family Room","None","No","Great start home In awesome Brentwood!  Great location to shops and downtown! 2-beds, 2 full baths.1224 square feet. With a great backyard that includes a practically new hot tub(only used once), fire pit, built in BBQ island and lots of room for entertaining!","No","No","None",null,null,null,null,null,345000,1224,4880,2,0,2,42517,17,2,3,2,1,1,0,0,0,0,0,1,1]
["Sold","143 Trent Pl",485000,485000,2003,1408,4844,"2019-03-14","2019-03-21","2019-05-03","2019-03-21",3,2,7,"No","No","No",null,"2019-05-06","2019-05-06",7,7,"BRENTWOOD","Contra Costa","Detached",0,"Yes",2,40856928,"Brentwood",null,0.11,null,null,null,16,null,"For Sale","One Story","No","No","No","No","No","No","524 EDGEFIELD ST","Cathy Cross","Cathy Cross - Agt: 925-325-5400","BRENTWOOD CA 94513","Cathycrossrealestate@gmail.com",null,"Agt: 925-325-5400",925,"325-5400","123 Christel Oaks Dr.","Jeff Gray - 408-663-0196","Scotts Valley CA 95066-","jgray5055@yahoo.com",null,null,"123 Christel Oaks Dr.","Maureen Prince - 510-882-1030","Scotts Valley CA 95066","maureen@maureenprince.net",null,null,"123 Christel Oaks Dr.","Scotts Valley CA 95066","Flat Rate Realty - Off: 408-627-0030","Off: 408-627-0030","No","No","No","No","Yes","No","No","No","No","No","No","Yes","No","No","No","Yes","No","No","No","No","No","Yes","No","No","No","No","Yes","No","No","No","Yes","No","No",1,"Maureen Prince - 510-882-1030 - OH SAT 3/16 11-2 - MOVE IN READY - SINGLE STORY CLOSE TO SUNSET PARK! Open floor plan w/high ceilings - Tile & Laminate flooring throughout - Update kitchen w/Quartz counter tops & glass accent back splash, Newer painted cabinets & hardware, SS Samsung Appliances: 5 burner gas stove, convection micro & dishwasher, over sized sink - Spacious Great room w/raised hearth fireplace, Built-in TV cabinet w/shelves & Dining area - Master bedroom w/walk in closet, bath offers:long vanity w/dual sinks, soaking tub & separate shower w/upgraded clear glass enclosure - All bedrooms w/added shelving in closets - Second bath w/tub/shower combo & upgraded etched doors - Backyard with patio area & raised planter box, side yard with Tool Shed - ALL THIS AND MORE...",null,"None","PLEASE GIVE 1 HOUR NOTICE FOR SHOWING - MAKE APPOINTMENT W/ JEFF GRAY 408-663-0196 - PRE ESCROW W/FIDELITY NATIONAL TITLE ELIZABETH STOOPS","Conventional",94513,"CA","Ceiling Fan(s), Central 1 Zone A/C","Forced Air 1 Zone","Attached Garage","Cash, Conventional, FHA, VA",null,"Back Yard, Fenced, Front Yard, Patio, Tool Shed","Traditional","Family Room, Raised Hearth","None","No","OH SAT 3/16 11-2 - MOVE IN READY - SINGLE STORY CLOSE TO SUNSET PARK! Open floor plan w/high ceilings - Tile & Laminate flooring throughout - Update kitchen w/Quartz counter tops & glass accent back splash, Newer painted cabinets & hardware, SS Samsung Appliances: 5 burner gas stove, convection micro & dishwasher, over sized sink - Spacious Great room w/raised hearth fireplace, Built-in TV cabinet w/shelves & Dining area - Master bedroom w/walk in closet, bath offers:long vanity w/dual sinks, soaking tub & separate shower w/upgraded clear glass enclosure - All bedrooms w/added shelving in closets - Second bath w/tub/shower combo & upgraded etched doors - Backyard with patio area & raised planter box, side yard with Tool Shed - ALL THIS AND MORE...","No","No",null,null,null,null,null,null,485000,1408,4844,2,0,2,43588,15,3,2,3,1,1,0,0,0,0,0,1,1]
["Sold","143 Trent Pl",439500,455000,2003,1408,4844,"2017-07-14","2017-07-20","2017-08-21","2017-07-20",3,2,6,"No","No","No","1315-Thank you Jaz!!!","2017-08-21","2017-08-21",6,6,"BRENTWOOD","Contra Costa","Detached",0,"Yes",2,40789422,"Brentwood",null,0.11,null,null,null,14,null,"For Sale","One Story","No","No","No","No","No","No","3809 La Miranda Pl","Jaz Chand","Jaz Chand - Agt: 925-250-9611","Pittsburg CA 94565","Jaz@TheJazTeam.com","14850 Hwy. 4, Ste.C","Agt: 925-250-9611",925,"250-9611",null,null,null,null,null,null,"1758 Corte Vista Street","Nancy M Gonzales - 925-200-3585","Brentwood CA 94513","nancy@homes4ubynancy.com",925,"200-3585","191 SAND CREEK ROAD, STE. 100","BRENTWOOD CA 94513","KELLER WILLIAMS - Off: 925-634-0033","Off: 925-634-0033","No","No","No","No","Yes","No","No","No","No","No","No","Yes","No","No","No","No","Yes","No","No","No","No","Yes","No","No","No","No","Yes","No","Yes","No","Yes","No","No",1,"NANCY M GONZALES - 925-200-3585 -  What a perfect start to home ownership! Great curb appeal including an inviting porch. This nicely maintained single story shows very well and is ready for a new homeowner to call their own. Located in Brentwood's Sunset Crossing development, you will enjoy the easy care wood laminate and tile floors in the main living areas and master bedroom. Ceiling fans to help with air flow. Newer dishwasher and microwave in the kitchen. Master Bathroom suite has a stall shower and bathtub. Exterior and interior have recently been adorned with fresh paint. Fully landscaped including automatic sprinklers. Hurry on over to see this adorable home before it's gone.",null,"None","Please be sure to make an appointment before going. 1 hour notice. Appreciate the use of the escrow pre-opened with Chicago Title Brentwood-3901700610. Leave card and secure house. Sun shades in backyard excluded from sale.  Offers if any, due on Wednesday 7/ 19 at 5pm","FHA",94513,"CA","Ceiling Fan(s), Central 1 Zone A/C","Forced Air 1 Zone","Attached Garage, Int Access From Garage","Cash, Conventional, FHA, VA",null,"Back Yard, Fenced, Front Yard, Sprinklers Automatic","Contemporary","Family Room, Woodburning","None","No"," What a perfect start to home ownership! Great curb appeal including an inviting porch. This nicely maintained single story shows very well and is ready for a new homeowner to call their own. Located in Brentwood's Sunset Crossing development, you will enjoy the easy care wood laminate and tile floors in the main living areas and master bedroom. Ceiling fans to help with air flow. Newer dishwasher and microwave in the kitchen. Master Bathroom suite has a stall shower and bathtub.  Exterior and interior have recently been adorned with fresh paint. Fully landscaped including automatic sprinklers. Hurry on over to see this adorable home before it's gone.","No","No",null,null,null,null,null,null,455000,1408,4844,2,0,2,42968,15,2,1,3,1,1,0,0,0,0,0,1,1]
["Sold","120 Pasco Dr",425000,405000,1995,1102,4800,"2019-08-28","2019-09-20","2019-10-15","2019-09-20",3,1,23,"No","No","No",null,"2019-10-23","2020-01-14",23,23,"BRENTWOOD","Contra Costa","Detached",1,"Yes",2,40879887,"Brentwood",null,0.11,null,null,null,24,null,"For Sale","One Story","No","No","No","No","No","No","7251 BRENTWOOD BLVD., #254","PATRICIA P ZUNIGA","PATRICIA P ZUNIGA - Cell: 925-783-7810","BRENTWOOD CA 94513","pattizunigasellshomes@gmail.com",null,"Cell: 925-783-7810",925,"783-7810",null,null,null,null,null,null,"1203 JASMINE CT.","KIMBERLY M LINN - Agt: 925-634-3200","BRENTWOOD CA 94513","kim@kimlinn.com",925,"634-3200","141 SAND CREEK ROAD STE. E","BRENTWOOD CA 94513","BHHS DRYSDALE PROPERTIES - Off: 925-634-3200","Off: 925-634-3200","No","No","No","No","No","No","No","No","No","No","No","No","No","No","No","Yes","No","No","No","No","No","No","No","No","No","No","Yes","No","Yes","No","Yes","No","No",0,"KIMBERLY M LINN - Agt: 925-525-1135 - Beautiful, single story home in a desirable, Brentwood neighborhood. Updated kitchen with granite counters, pecan finish cabinets and newer gas range/oven.  Freshly painted interior, brand new carpet! Updated baths, tasteful decorator finishes throughout.  Private, shady backyard with patio. No rear neighbors. Walk to school and parks. Just minutes to downtown, shopping and easy freeway access. NO HOA!  Don't miss it!",null,"None","Thank you for showing!","FHA",94513,"CA","Central 1 Zone A/C","Forced Air 1 Zone","Attached Garage","Cash, Conventional, FHA",null,"Back Yard, Fenced, Front Yard, Patio, Sprinklers Automatic, Tool Shed","Contemporary","None","None","No","Beautiful, single story home in a desirable, Brentwood neighborhood. Updated kitchen with granite counters, pecan finish cabinets and newer gas range/oven.  Freshly painted interior, brand new carpet! Updated baths, tasteful decorator finishes throughout.  Private, shady backyard with patio. No rear neighbors. Walk to school and parks. Just minutes to downtown, shopping and easy freeway access. NO HOA!  Don't miss it!","No","No","None",null,null,null,null,null,405000,1102,4800,1,0,2,43753,23,3,1,3,0,1,0,0,0,0,0,1,1]
["Sold","120 Pasco Dr",350000,347400,1995,1102,4800,"2017-01-11","2017-01-18","2017-02-15","2017-01-18",3,1,7,"No","No","No",null,"2017-02-16","2017-02-16",7,7,"BRENTWOOD","Contra Costa","Detached",1,"Yes",1,40767242,"Brentwood",null,0.11,null,null,null,22,null,"For Sale","One Story","No","No","No","No","No","No","1203 JASMINE CT.","KIMBERLY M LINN","KIMBERLY M LINN - Agt: 925-634-3200","BRENTWOOD CA 94513","kim@kimlinn.com",null,"Agt: 925-634-3200",925,"634-3200",null,null,null,null,null,null,"222 PCH 10th Floor","Polly Watts - 310-963-7766","El Segundo CA 90245-","deana@sundae.com",null,null,"2015 Manhattan Beach Blvd","Redondo Beach CA 90278","Maxim Properties - Off: 310-640-3040","Off: 310-640-3040","No","No","No","No","Yes","No","No","No","No","No","No","No","No","No","No","No","No","No","No","No","No","No","No","No","No","No","Yes","No","Yes","No","Yes","No","No",0,"Polly Watts - 310-640-3040 - Beautiful, single-story home off the beaten path in quiet, residential neighborhood close to schools! Has new carpet, paint and designer-selected fixtures throughout. Brand new stainless steel gas stove/oven, quartz countertop, hardwareâ€¦the list goes on and on. A definite must see!","Seller has a list of preferred lenders. Contact Maxim for more info!; OH not Maxim affiliated.","None","Keyless & Supra. Call 866-640-3040 7:30 â€“ 5:30 OR EMAIL jcastro@maximproperties.net ); Offers: maximoffers@maximproperties.net; List Broker has partial owner int. Seller to begin offer review 1/19 daily until accpt.","Conventional",94513,"CA","Ceiling Fan(s), Central 1 Zone A/C","Central Gravity","Attached Garage, Off Street Parking","Cash, Conventional, FHA, VA",null,"Back Yard, Front Yard, Sprinklers Back, Sprinklers Front","Traditional","None","None","No","Beautiful, single-story home off the beaten path in quiet, residential neighborhood close to schools! Has new carpet, paint and designer-selected fixtures throughout. Brand new stainless steel gas stove/oven, quartz countertop, hardwareâ€¦the list goes on and on. A definite must see!","No","No",null,null,null,null,null,null,347400,1102,4800,1,0,1,42781,23,0,1,3,0,1,0,0,0,0,0,0,1]
["Sold","204 Fruitwood Cmn",385000,385000,1984,1026,4795,"2020-05-07","2020-05-21","2020-06-24","2020-05-21",2,2,14,"Yes","No","No",null,"2020-06-30","2020-06-30",14,14,"BRENTWOOD","Contra Costa","Detached",0,"Yes",2,40903928,"Brentwood",null,0.11,127,"Monthly",null,36,null,"For Sale","One Story","No","No","No","No","No","No","65 E. 5TH STREET","CHRISTOS D SOUKOULIS","CHRISTOS D SOUKOULIS - 925-550-5028","PITTSBURG CA 94565","chris@eastbaybrokers.com",null,"925-550-5028",925,"550-5028",null,null,null,null,null,null,"26 Vignola Ct.","Brianna Salinas - 925-237-0010","Oakley CA 94561","briannasalinas@kw.com",925,"237-0010","191 SAND CREEK ROAD, STE. 100","BRENTWOOD CA 94513","KELLER WILLIAMS - Off: 925-634-0033","Off: 925-634-0033","No","No","No","No","Yes","No","No","No","No","No","No","No","Yes","No","No","No","No","Yes","No","No","No","Yes","No","No","No","No","No","Yes","Yes","No","Yes","No","No",0,"BRIANNA SALINAS - 925-237-0010 - Now Accepting Virtual Showings! Welcome to 204 Fruitwood Common in the quaint Havenwood Village neighborhood, must drive by to appreciate the location within the neighborhood! This home is a 2 bedroom 2 bath, just under 1100 sqft although it feels much bigger thanks to gorgeous high vaulted cielings and beautiful laminate floors upon walking in. Features include an updated kitchen with modern gray color scheme and backsplash to match, new master bedroom flooring, fresh paint and laminate floors to name a few. This home is a perfect starter home or downsizing home especially with its premium location within the communityâ€”featuring plenty of off-street parking and steps from the community pool. Enjoy your days on the nearby trails, parks, active Downtown, Farmers Market, Summer concert series, movie nights, restaurants, shopping and more! Contact your agent now this adorable yet affordable home is a great investment and opportunity! Stay safe & healthy!",null,"None","Owner-occupied appointment only, please follow all current COVID-19 protocols including emailing PEAD prior to showing. Text agent to schedule showing and for combo box code.  BOM at no fault to seller- COVID restrictions did not previously allow showings and Sellers had accepted an offer prior to viewing thus BOM.    Pre-escrow open with Anthony Penloza First American Title.","Conventional",94513,"CA","Central 1 Zone A/C","Forced Air 1 Zone","Attached Garage, Off Street Parking, Other, Guest Parking","Cash, Conventional, FHA, Other","Other","Back Yard, Fenced, Front Yard, Garden/Play, Patio, Patio Covered, Tool Shed","Ranch","Decorative Only","Community Fclty","Yes","Now Accepting Virtual Showings! Welcome to 204 Fruitwood Common in the quaint Havenwood Village neighborhood, must drive by to appreciate the location within the neighborhood! This home is a 2 bedroom 2 bath, just under 1100 sqft although it feels much bigger thanks to gorgeous high vaulted cielings and beautiful laminate floors upon walking in. Features include an updated kitchen with modern gray color scheme and backsplash to match, new master bedroom flooring, fresh paint and laminate floors to name a few. This home is a perfect starter home or downsizing home especially with its premium location within the communityâ€”featuring plenty of off-street parking and steps from the community pool. Enjoy your days on the nearby trails, parks, active Downtown, Farmers Market, Summer concert series, movie nights, restaurants, shopping and more! Contact your agent now this adorable yet affordable home is a great investment and opportunity! Stay safe & healthy!","No","No","None",null,null,null,null,null,385000,1026,4795,2,0,2,44006,34,1,1,2,0,1,0,0,0,0,0,1,1]
["Sold","161 Fruitwood Common",349000,365000,1985,1511,4795,"2016-11-04","2017-01-06","2017-01-06",null,3,2,"[Listing Date Or Off Market Date or DOM Freeze Date Is Null]","Yes","No","No",null,"2017-01-06","2017-04-21","[Input Date Or Off Market Date or DOM Freeze Date Is Null]","[Input Date Or Off Market Date or DOM Freeze Date Is Null]","BRENTWOOD","Contra Costa","Detached",1,"Yes",2,"ML81630932","All Other Counties/States",null,0,110,null,"Resi",31,null,"For Sale",null,"No","No","No","No","No","No","190 Hartz Ave","Joel Engel","Joel Engel",94526,"joel@theengels.com","190 Hartz Ave",null,null,null,null,null,null,null,null,null,"702 Brown Rd","Mansoor Chandiwala",94539,"mansoorytc@gmail.com",null,null,null,null,"MLSListingsX - ",null,"No","No","No","No","Yes","No","No","No","No","No","No","No","No","No","No","No","Yes","No","No","Yes","No","No","No","No","No","No","No","No","Yes","No","Yes","No","No",1,null,null,null,"Home is owner occupied, contact LA Mansoor for showings: 510-754-9223 | Submit offers to mansoorytc@gmail.com with Pre-Approval & Proof of Funds. Thank you for showing.","Conventional",94513,"CA","Ceiling Fan(s), Central 1 Zone A/C","Forced Air 1 Zone","Attached Garage",null,null,"Fenced",null,"Gas Burning","Community Fclty","Yes","Bright and Spacious Two Story Home with Hardwood Flooring, White Kitchen Cabinetry and Wrap Around Views of the Back Yard from Dining Area & Family Room. Featuring a gas log fireplace and elegant white mantle creating a warm and inviting Great Room. Two covered patios in a serene backyard with mature landscape and quaint pond. Three large bedrooms upstairs, each offering their own unique charm, ceiling fans & ample natural light. Private HOA pool right next door, perfect for the hot summer time but no maintenance required!","No","No",null,null,null,null,null,null,365000,1511,4795,2,0,2,42741,33,2,1,3,1,0,0,0,0,0,0,1,1]
["Sold","161 Fruitwood Cmn",459950,450000,1984,1589,4794,"2020-01-22","2020-01-29","2020-02-28","2020-01-29",3,2,7,"Yes","No","No",null,"2020-02-28","2020-02-28",7,7,"BRENTWOOD","Contra Costa","Detached",1,"Yes",2,40893047,"Brentwood",null,0.11,119,"Monthly",null,36,null,"For Sale","Two Story","No","No","No","No","No","No","1215 Greenbrook Dr.","Lynda Gann","Lynda Gann - Agt: 925-7665329","Danville CA 94526","Lynda@LyndaGann.com","190 Hartz Ave.","Agt: 925-7665329",null,-7665329,null,null,null,null,null,null,"190 Hartz Ave","Joel E Engel - 925-580-5106","Danville CA 94526","joel@theengels.com",925,"580-5106","190 Hartz Ave","Danville CA 94526-","Compass - Off: 925-726-4829","Off: 925-726-4829","No","No","No","No","Yes","No","No","No","No","No","No","No","No","No","No","Yes","No","No","No","Yes","No","No","No","No","No","No","Yes","No","Yes","No","Yes","No","No",1,"Joel E Engel - 925-580-5106 -  Perfect move-in condition with beautiful wood floors, modern white kitchen, newer stainless steel appliances, quartz counters and gas fireplace. The kitchen and family rooms have views to the private backyard. All the work is done! Newer items include roof, gutters, interior paint, carpet, millwork and light fixtures (including fans in each bedroom and pergola). This is the perfect home offering great space & lots of natural light. Donâ€™t miss this opportunity to view this single family home in a premium location adjacent to open space, the community center & pool. Easy access for commuters plus close to all the local amenities - quaint downtown, excellent schools and spacious parks!",null,"None","Presale open at Fidelity.","FHA",94513,"CA","Ceiling Fan(s), Central 1 Zone A/C","Forced Air 1 Zone","Attached Garage, Int Access From Garage, Space Per Unit - 2","Cash, Conventional",null,"Back Yard, Fenced, Front Yard, Patio, Patio Covered, Side Yard, Sprinklers Automatic, Sprinklers Back, Sprinklers Front, Sprinklers Side","Traditional","Family Room, Gas Burning","Community Fclty","Yes"," Perfect move-in condition with beautiful wood floors, modern white kitchen, newer stainless steel appliances, quartz counters and gas fireplace. The kitchen and family rooms have views to the private backyard. All the work is done! Newer items include roof, gutters, interior paint, carpet, millwork and light fixtures (including fans in each bedroom and pergola). This is the perfect home offering great space & lots of natural light. Donâ€™t miss this opportunity to view this single family home in a premium location adjacent to open space, the community center & pool. Easy access for commuters plus close to all the local amenities - quaint downtown, excellent schools and spacious parks!","No","No","None",null,null,null,null,null,450000,1589,4794,2,0,2,43889,34,3,1,3,1,2,0,0,0,0,0,1,1]
["Sold","161 Fruitwood Common",349000,365000,1985,1511,4794,"2016-11-03","2016-11-21","2016-12-22","2016-11-21",3,2,18,"Yes","No","No",null,"2016-12-22","2016-12-22",18,18,"BRENTWOOD","Contra Costa","Detached",1,"Yes",2,40762957,"Brentwood",null,0.11,110,"Monthly",null,31,null,"For Sale","Two Story","No","No","No","No","No","No","190 Hartz Ave","Joel E Engel","Joel E Engel - 925-580-5106","Danville CA 94526","joel@theengels.com",null,"925-580-5106",925,"580-5106",null,null,null,null,null,null,"702 Brown Rd","Mansoor Chandiwala - 510-754-9223","Fremont CA 94539-","mansoorytc@gmail.com",510,"754-9223","702 Brown Rd","Fremont CA 94539","Home Advantage Corp - Off: 510-795-2200","Off: 510-795-2200","No","No","No","No","No","No","No","No","No","No","No","No","No","No","No","No","Yes","No","No","No","Yes","No","No","No","No","No","Yes","No","Yes","No","Yes","No","No",1,"Mansoor Chandiwala - 510-754-9223 - Bright and Spacious Two Story Home with Hardwood Flooring, White Kitchen Cabinetry and Two Covered Patios in a Serene Backyard with Mature Landscape and Quaint Pond. Featuring a gas log fireplace and elegant white mantle creating a warm and inviting Great Room. Private HOA pool next door!",null,"None","OFFERS DUE DATE 11/14/2016 BY 5:00PM. Home is owner occupied, contact LA Mansoor for showings: 510-754-9223 | Submit offers to mansoorytc@gmail.com with Pre-Approval & Proof of Funds. Thank you for showing.","Conventional","94513-2012","CA","Ceiling Fan(s), Central 1 Zone A/C","Forced Air 1 Zone","Attached Garage","Cash, Conventional, FHA, VA",null,"Back Yard, Fenced, Front Yard, Patio Covered","Traditional","Family Room, Gas Burning","Community Fclty","Yes","Bright and Spacious Two Story Home with Hardwood Flooring, White Kitchen Cabinetry and Two Covered Patios in a Serene Backyard with Mature Landscape and Quaint Pond. Featuring a gas log fireplace and elegant white mantle creating a warm and inviting Great Room. Private HOA pool next door!","No","No",null,null,null,null,null,null,365000,1511,4794,2,0,2,42726,33,2,1,3,1,2,0,0,0,0,0,1,1]
["Sold","420 Grovewood Loop",453000,450000,1985,1480,4784,"2020-02-28","2020-04-16","2020-05-15","2020-04-16",4,2,30,"Yes","No","No",null,"2020-05-15","2020-05-15",30,30,"BRENTWOOD","Contra Costa","Detached",1,"Yes",2,40897257,"Brentwood",null,0.11,127,"Monthly",null,35,null,"For Sale","Two Story","No","No","No","No","No","No","12 KEARSTI CT.","LAURA J FRANKE","LAURA J FRANKE - 925-550-5283","OAKLEY CA 94561","lfranke@kw.com",null,"925-550-5283",925,"550-5283",null,null,null,null,null,null,"525 Nottingham Dr","Sharleen M Milland - Agt: 925-550-4461","Brentwood CA 94513","sharleen@sharleenmilland.com",925,"550-4461","191 SAND CREEK ROAD, STE. 100","BRENTWOOD CA 94513","KELLER WILLIAMS - Off: 925-634-0033","Off: 925-634-0033","No","No","No","No","Yes","No","No","No","No","No","No","No","Yes","No","No","No","No","Yes","No","No","No","No","Yes","No","No","No","Yes","No","Yes","No","Yes","No","No",1,"SHARLEEN M MILLAND - Agt: 925-550-4461 - Great Havenwood Home with Master bedroom downstairs, remodeled bathrooms down to the new plumbing. New AC, Florida room added for extra living space and great for entertaining.  Kitchen offers a great view of the front yard, solid laminate countertops, double stainless steel sinks, ample cupboard space for all your needs, refrigerator included. Nice size bedrooms upstairs one with a skylight for that extra light.  Upstairs laundry or in garage laundry area access of your choice.  Finished walls in garage makes this perfect for Mr.Clean.  Enjoy the low maintenance backyard and flagstone walkway.  Walk/bike to downtown Brentwood Farmers Market, music & movie in the park, restaurants, close to schools, community pool.",null,"None","SHOWING DONE BY VIRTUAL TOUR ONLY!  WRITE OFFER SUBJECT  TO ENTRY AT LATER DATE. STAY SAFE AND HEALTHY!  Price reflects appraised value -  Public Records show 3 bedrooms home has 4 bedrooms buyer to verify.  Florida room added per seller city of Brentwood did not need to be permitted as it is not attached. Pre-escrow opened with Chicago Title not required but appreciated prior work being done on title. Offers reviewed as they come in email to sharleen@sharleenmilland.com","Conventional",94513,"CA","Central 1 Zone A/C","Forced Air 1 Zone","Attached Garage, Parking Spaces, Guest Parking","Builder's Lender - FHA, Builder's Lender - VA, Cash, Conventional","Other","Fenced, Front Yard, Patio, Sprinklers Automatic, Sprinklers Front","Contemporary","Brick, Living Room","Community Fclty","Yes","Great Havenwood Home with Master bedroom downstairs, remodeled bathrooms down to the new plumbing. New AC, Florida room added for extra living space and great for entertaining.  Kitchen offers a great view of the front yard, solid laminate countertops, double stainless steel sinks, ample cupboard space for all your needs, refrigerator included. Nice size bedrooms upstairs one with a skylight for that extra light.  Upstairs laundry or in garage laundry area access of your choice.  Finished walls in garage makes this perfect for Mr.Clean.  Enjoy the low maintenance backyard and flagstone walkway.  Walk/bike to downtown Brentwood Farmers Market, music & movie in the park, restaurants, close to schools, community pool.","No","No","None",null,null,null,null,null,450000,1480,4784,2,0,2,43966,33,1,1,4,1,2,0,0,0,0,0,1,1]
["Sold","183 Cottonwood Cmn",409888,409888,1985,1480,4750,"2019-07-22","2019-08-22","2019-09-23","2019-08-22",3,2,31,"Yes","No","No",null,"2019-09-23","2019-09-23",31,31,"BRENTWOOD","Contra Costa","Detached",1,"Yes",2,40875293,"Brentwood",null,0.11,119,"Monthly",null,34,null,"For Sale","Two Story","No","No","No","No","No","No","900 Main St","Robin Young","Robin Young - 510-757-5901","Pleasanton CA 94566","robin.young@compass.com",null,"510-757-5901",510,"757-5901",null,null,null,null,null,null,"2162 Norris Rd","Chad Cabral - 707-373-9438","Walnut Creek CA 94596","chadcabral73@gmail.com",707,"373-9438","39 N Front St","Rio Vista CA 94571","Century 21 MM - 707-374-3900","707-374-3900","No","No","No","No","Yes","No","No","No","No","No","No","No","No","No","No","No","Yes","No","No","No","No","Yes","Yes","No","No","No","No","No","Yes","No","Yes","No","No",1,"Chad Cabral - 707-373-9438 - This one is priced to sell!  PErfect for the 1st time home buyer who wants to come in and make this home their own. Brand new carpet installed on stairs and upstairs, huge bedrooms and great corner location directly across from the pool!  This one won't last don't miss out!!",null,"None","Easy to show but pleases allow at least one hour notice so the dogs can be taken on a walk.  Call listing agent for all appointments 925/588-5660","FHA",94513,"CA","Central 1 Zone A/C","Forced Air 1 Zone","Attached Garage","Builder's Lender - FHA, Cash, Conventional",null,"Back Yard, Fenced","Traditional","Fireplace Insert","Community Fclty","Yes","This one is priced to sell!  PErfect for the 1st time home buyer who wants to come in and make this home their own. Brand new carpet installed on stairs and upstairs, huge bedrooms and great corner location directly across from the pool!  This one won't last don't miss out!!","No","No",null,null,null,null,null,null,409888,1480,4750,2,0,2,43731,33,2,1,3,1,2,0,0,0,0,0,1,1]
["Sold","52 Applewood Cmn",449999,450000,1985,1511,4747,"2020-05-28","2020-07-21","2020-08-11","2020-07-21",3,2,32,"Yes","No","No",8000,"2020-08-11","2020-08-11",32,32,"BRENTWOOD","Contra Costa","Detached",1,"Yes",2,40906310,"Brentwood",null,0.11,127,"Monthly",null,35,null,"For Sale","Two Story","No","No","No","No","No","No","2322 Spartan Terrace","Jeff A Carter","Jeff A Carter - Agt: 925-7192464","Brentwood CA 94513","jeffreysells@msn.com","9040 Brentwood Blvd","Agt: 925-7192464",null,-7192464,null,null,null,null,null,null,"7251 BRENTWOOD BLVD., #254","PATRICIA P ZUNIGA - Cell: 925-783-7810","BRENTWOOD CA 94513","pattizunigasellshomes@gmail.com",925,"783-7810","191 SAND CREEK ROAD, STE. 100","BRENTWOOD CA 94513","KELLER WILLIAMS - Off: 925-634-0033","Off: 925-634-0033","No","No","No","No","Yes","No","No","No","No","No","No","No","No","No","Yes","No","No","No","No","No","No","No","No","No","No","No","No","No","Yes","No","Yes","No","No",1,"PATRICIA P ZUNIGA - Cell: 925-783-7810 - Spacious  3 bedroom 2.5 bath home in the Havenwood neighborhood. Home has been recently partial remolded. Some features include ,new interior paint, carpet, baseboards, granite counter tops, new dishwasher, refurnished white cabinets. Great size backyard for you to add your personal touches and creativity.  Perfect for entertaining,garden, summer bbq's and more. HOA amenities include a community swimming pool for you to enjoy this summer. Centrally located just minutes away from downtown Brentwood, eateries,farmers market, schools, shopping, LMC college, trails, parks and freeway access. Great for investment, first time buyer or downsizing.",null,"None","BOM! Go show & sell. Must EMAIL PEAD FOR ACCESS. ALL Agents and their clients must complete and return to me the PEAD-V prior to showing. Agents must follow all safety protocols and social distancing guidelines. No more than one agent and two clients at one time. Wear masks, gloves, and shoe covers, wipe down surfaces call/text LA with any questions.Pre-escrow opened with Sylvia at Fidelity National Title. Serious buyers please email me for disclosure and inspection link.","Conventional",94513,"CA","Central 1 Zone A/C","Forced Air 1 Zone","Attached Garage, Garage Parking, Side Yard Access","Cash, Conventional, FHA",null,"Back Yard, Fenced, Front Yard, Patio Covered, Side Yard","Contemporary","Living Room","Community Fclty","Yes","Spacious  3 bedroom 2.5 bath home in the Havenwood neighborhood. Home has been recently partial remolded. Some features include ,new interior paint, carpet, baseboards, granite counter tops, new dishwasher, refurnished white cabinets. Great size backyard for you to add your personal touches and creativity.   Perfect for entertaining,garden, summer bbq's and more. HOA amenities include a community swimming pool for you to enjoy this summer. Centrally located just minutes away from downtown Brentwood, eateries,farmers market, schools, shopping, LMC college, trails, parks and freeway access. Great for investment, first time buyer or downsizing.","No","No","None",null,null,null,null,null,450000,1511,4747,2,0,2,44054,33,3,1,3,1,2,0,0,0,0,0,1,1]
["Sold","400 GROVEWOOD LOOP",298000,298000,1985,1480,4680,"2015-02-10","2015-02-13","2015-03-13","2015-02-13",3,2,3,"No","No","No",2500,"2015-03-13","2017-12-07",3,3,"BRENTWOOD","Contra Costa","Detached",1,"Yes",2,40686691,"Brentwood",null,0.11,105,"Monthly",1003,30,3031.03,"For Sale","Two Story","No","No","No","No","No","No","145 El Toyonal","Diane E Petek","Diane E Petek - Agt: 925-876-1195","Orinda CA 94563","diane.petek@cbnorcal.com","5 Moraga Way","Agt: 925-876-1195",925,"876-1195",null,null,null,null,null,null,"652 MAAYAN PLACE","LYNN D VALINTIS - Cell: 925-699-9278","BRENTWOOD CA 94513","lynn@calhomesbylynn.com",925,"699-9278","320 FAIRVIEW AVENUE","BRENTWOOD CA 94513","SHARP REALTY - Off: 925-240-6683","Off: 925-240-6683","No","No","No","No","Yes","No","No","No","No","No","No","No","No","No","No","No","No","No","No","No","No","No","No","No","No","No","Yes","No","Yes","No","Yes","No","No",1,"LYNN D VALINTIS - Cell: 925-699-9278 - Entry, great room, dining area, kitchen and powder room all have tile floors.Newer carpet, installed 01/15, throughout the rest of the home. Interior freshly painted in 01/15.  Kitchen features free-standing electric range with hood, stainless steel sink and refrigerator stays. 1st floor master.",null,"None","REGULAR SALE!  Wood-burning fireplace in family room. Washer and dryer stay. Private backyard, with small patio, just waiting for your landscaping ideas. Community swimming pool just around the corner.","Conventional","94513-2021","CA","Central 1 Zone A/C","Forced Air 1 Zone","Attached Garage, Int Access From Garage","Cash, Conventional, FHA, VA",null,"Fenced, Sprinklers Automatic","Contemporary","Living Room, Woodburning","Community Fclty","Yes","Entry, great room, dining area, kitchen and powder room all have tile floors. Newer carpet, installed 01/15, throughout the rest of the home. Interior freshly painted in 01/15.  Kitchen features free-standing electric range with hood, stainless steel sink and refrigerator stays. 1st floor master.","No","No",null,null,null,null,null,null,298000,1480,4680,2,0,2,42076,33,0,1,3,1,2,0,0,0,0,0,1,1]
["Sold","410 Grovewood Loop",429900,432000,1985,1480,4576,"2019-08-30","2019-10-01","2019-12-10","2019-10-01",3,2,32,"No","No","No",7000,"2019-12-17","2019-12-17",32,32,"BRENTWOOD","Contra Costa","Detached",1,"Yes",2,40880230,"Brentwood",null,0.11,119,"Monthly",null,34,null,"For Sale","Two Story","No","No","No","No","No","No","5097 WAGON WHEEL","FOLAKE OTTI-BRAIMAH","FOLAKE OTTI-BRAIMAH - 925-206-1552","ANTIOCH CA 94531","halifaxmtg@gmail.com",null,"925-206-1552",null,null,"2726 Overlook Drive","Keenan Howard - Agt: 510-7736099","Vallejo CA 94591","KH@KHR.REALTOR",null,-7736099,"127 Boblink","Pa Pa Correa - Agt: 415-710-6817","Hercules CA 94547","jpkicorrea@gmail.com",415,"710-6817","2643 Appian Way Suite C","Pinole CA 94564","Keenan Howard Realty, Inc. - Off: 510-3980002","Off: 510-3980002","No","No","No","No","Yes","No","No","No","No","No","No","No","No","No","No","No","No","No","No","Yes","No","No","No","No","No","No","Yes","No","Yes","No","Yes","No","No",1,"Pa Pa Correa - Agt: 415-710-6817 - Beautiful and updated 3 bedrooms, 2.5 baths with lots of natural lighting, sits on a large lot. Inviting living room has a high ceiling, fireplace, and hardwood floor. Dining area with patio slider to the side yard,  good sized kitchen with appliances. Master suite is conveniently located on the street level with his and her closet, direct access to the patio. Spacious bedrooms and full bath on the second level. 2 laundry areas of your choice, one in the garage and one on the second level. Lots of storage area interior and exterior. Low maintenance yard with 2 storage sheds. 2 car garage. A few steps away from the community pool and hot-tub. Close to shopping and much more!",null,"None","Seller preferred at least 1 hour ahead for an appointment, if you can't hold off seller please call listing agent 415 710 6817. Video Surveillance. Review offer as they come. Seller will not considered an offer not lower than asking price.","FHA",94513,"CA","Central 1 Zone A/C","Forced Air 1 Zone","Attached Garage, Guest Parking","Cash, Conventional, 1031 Exchange, FHA, VA",null,"Back Yard, Fenced, Side Yard, Storage","Contemporary","Living Room, Woodburning","Community Fclty","Yes","Beautiful and updated 3 bedrooms, 2.5 baths with lots of natural lighting, sits on a large lot. Inviting living room has a high ceiling, fireplace, and hardwood floor. Dining area with patio slider to the side yard,  good sized kitchen with appliances. Master suite is conveniently located on the street level with his and her closet, direct access to the patio. Spacious bedrooms and full bath on the second level. 2 laundry areas of your choice, one in the garage and one on the second level. Lots of storage area interior and exterior. Low maintenance yard with 2 storage sheds. 2 car garage. A few steps away from the community pool and hot-tub. Close to shopping and much more!","No","No",null,null,null,null,null,null,432000,1480,4576,2,0,2,43809,33,0,1,3,1,2,0,0,0,0,0,1,1]
["Sold","410 GROVEWOOD LOOP",315000,305000,1985,1480,4576,"2015-07-15","2015-07-30","2015-09-14","2015-07-30",3,2,15,"Yes","No","No",null,"2015-09-14","2020-07-15",15,15,"BRENTWOOD","Contra Costa","Detached",1,"Yes",2,40707401,"Brentwood",null,0.11,103,"Monthly",1003,30,3031.03,"For Sale","Two Story","No","No","No","No","No","No","2010 Crow Canyon Place","Waheed Popal","Waheed Popal - 510-396-9233","San Ramon CA 94583","wtpopal@yahoo.com",null,"510-396-9233",510,"396-9233",null,null,null,null,null,null,"13 Clare Court","Kristina M Palomo - Agt: 925-864-3763","Oakley CA 94561","kristinapalomo@gmail.com",925,"864-3763","50 EAGLE ROCK WAY, STE. D","BRENTWOOD CA 94513","JDK & ASSOCIATES REALTY INC - Off: 925-418-4442","Off: 925-418-4442","No","No","No","No","Yes","No","No","No","No","No","No","No","No","No","Yes","No","No","No","Yes","No","No","Yes","No","Yes","No","No","Yes","No","Yes","No","Yes","No","No",1,"KRISTINA M PALOMO - Fax: 888-851-4246 - Nice home in quiet neighborhood. Good size yard, no rear neighbors, view of hills, community pool, master bedroom downstairs, laundry can be upstairs or in garage hookups in both.  New laminate flooring in family room, nice open floor plan. Possible carpet credit to buyers.",null,"None","?'s call KRISTINA 925-864-3763. Please email offers to kristinapalomo@gmail.com. Escrow opened with Old Republic Title escrow #0120018658. Phone #925-634-1010 Cece Siino.","FHA",94513,"CA","Central 1 Zone A/C","Forced Air 1 Zone","Attached Garage","Cash, Conventional, FHA, VA, Other",null,"Back Yard, Fenced, Front Yard, Other","Other","Family Room","Community Fclty","Yes","Nice home in quiet neighborhood. Good size yard, no rear neighbors, view of hills, community pool, master bedroom downstairs, laundry can be upstairs or in garage hookups in both.  New laminate flooring in family room, nice open floor plan. Possible carpet credit to buyers.","No","No",null,null,null,null,null,null,305000,1480,4576,2,0,2,42261,33,3,1,3,1,2,0,0,0,0,0,1,1]
["Sold","1840 Beachwood Common",399900,399900,1985,1511,4532,"2017-10-13","2017-11-03","2017-11-30","2017-11-03",3,2,21,"Yes","No","No",null,"2018-01-08","2018-01-08",21,21,"BRENTWOOD","Contra Costa","Detached",1,"Yes",2,40800614,"Brentwood",null,0.1,110,"Monthly",null,33,null,"For Sale","Two Story","No","No","No","No","No","No","105 SPRUCE STREET","LAURA GATLIN","LAURA GATLIN - 907-887-1208","BRENTWOOD CA 94513","lauragatlin@mac.com",null,"907-887-1208",null,null,null,null,null,null,null,null,"1667 Liana Ln","Larry M Daly - Agt: 925-7686350","Concord CA 94519","larryjr@larrydaly.com",null,null,"1220 Diamond Way Ste 220","Concord CA 94520-","Larry Daly & Associates - Off: 925-8257283","Off: 925-8257283","No","No","No","No","Yes","No","No","No","No","No","No","No","No","No","No","No","No","Yes","No","No","No","Yes","No","No","No","No","No","No","Yes","No","Yes","No","No",1,"Larry M Daly - Agt: 925-7686350 - Nice 3 bedroom 2.5 bath home located in the desirable Havenwood Common neighborhood. This home is 1511 sq ft and has new carpet, fresh paint, new linoleum in upstairs baths & laundry closet,  new blinds, several new light  fixtures, central air & heat, 2 car garage, large master bedroom, good size backyard with patio, community pool, close to shopping & dining and move in ready!",null,"None","See associated docs for disclosures","Conventional",94513,"CA","Central 1 Zone A/C","Forced Air 1 Zone","Attached Garage","Cash, Conventional",null,"Back Yard, Fenced, Front Yard, Patio, Sprinklers Front","Traditional","Living Room","Community Fclty","Yes","Nice 3 bedroom 2.5 bath home located in the desirable Havenwood Common neighborhood. This home is 1511 sq ft and has new carpet, fresh paint, new linoleum in upstairs baths & laundry closet,  new blinds, several new light  fixtures, central air & heat, 2 car garage, large master bedroom, good size backyard with patio, community pool, close to shopping & dining and move in ready!","No","No",null,null,null,null,null,null,399900,1511,4532,2,0,2,43069,33,1,1,3,1,2,0,0,0,0,0,1,1]
["Sold","1790 Cedarwood Terrace",399000,415800,1985,1511,4218,"2020-07-25","2020-07-25","2020-08-26","2020-07-25",3,2,0,"No","No","No",null,"2020-08-28","2020-08-28",0,0,"BRENTWOOD","Contra Costa","Detached",1,"Yes",2,40913946,"Brentwood",null,9.6799999999999997E-2,125,"Monthly","SFR",35,null,"For Sale","Two Story","No","No","No","No","No","No","2373 Cobalt Lane","Lorraine Tulipano","Lorraine Tulipano - Agt: 925-5953560","Brentwood CA 94513","lorrainetulipano@hotmail.com","2373 Cobalt Lane","Agt: 925-5953560",null,-5953560,null,null,null,null,null,null,"1910 Corbin Lane","Laura M Anderson - 209-712-8361","Lodi CA 95242-0000","laurarealtor@yahoo.com",209,"712-8361","11 S. Church Street Ste. A","Lodi CA 95240","Laber Enterprises - 209-649-9134","209-649-9134","No","No","No","No","Yes","No","No","No","No","No","No","No","Yes","No","No","No","Yes","No","No","No","No","Yes","No","No","No","No","No","No","Yes","No","Yes","No","No",1,"Laura M Anderson - 209-712-8361 - Spacious 3 bedroom 2.5 bath home in the Havenwood neighborhood. Home has some updates in the master bath, upstairs laundry, and nice patio area perfect for family gatherings. Backyard also features separate dog run.  Second bedroom upstairs features an extended nook area which is a perfect retreat space. Kitchen features tiled counter tops and painted cabinets. With the right buyer this property can shine to it's full potential. Must See, won't Last! Welcome Home! Sold As Is",null,"None","This property is being sold as is, seller to do no repairs. No inspections completed at this time. There is a fireplace in living room that has been covered up, not sure of condition. Lockbox installed by 11am 7/25","Conventional","94513-2034","CA","Central 1 Zone A/C","Forced Air 1 Zone","Attached Garage","Cash, Conventional","Other","Back Yard, Dog Run, Fenced, Patio, Tool Shed","Contemporary","Family Room","Community Fclty","Yes","Spacious 3 bedroom 2.5 bath home in the Havenwood neighborhood. Home has some updates in the master bath, upstairs laundry, and nice patio area perfect for family gatherings. Backyard also features separate dog run.  Second bedroom upstairs features an extended nook area which is a perfect retreat space. Kitchen features tiled counter tops and painted cabinets. With the right buyer this property can shine to it's full potential. Must See, won't Last! Welcome Home! Sold As Is","No","No","None",null,null,null,null,null,415800,1511,4218,2,0,2,44069,33,2,1,3,1,2,0,0,0,0,0,1,1]
["Sold","1649 WINDSOR WAY",310000,330000,2001,1224,4150,"2015-09-30","2015-11-02","2015-12-18","2015-11-02",2,2,24,"No","No","No",null,"2015-12-18","2018-03-14",24,24,"BRENTWOOD","Contra Costa","Detached",0,"Yes",2,40717616,"Brentwood",null,0.1,null,null,1001,14,3031.03,"For Sale","One Story","No","No","No","No","No","No","4398 TRAVALE RD.","MARGARET L HURTADO","MARGARET L HURTADO - 925-634-4611","OAKLEY CA 94561","margarethurtado@sbcglobal.net",null,"925-634-4611",925,"634-4611",null,null,null,null,null,null,"663 PRINCE ALBERT WAY","C. RENEE MOGLIA - Agt: 925-852-4475","BRENTWOOD CA 94513","renee.moglia@bhgroyal.com",925,"852-4475","5887 A LONE TREE WAY","ANTIOCH CA 94531","BHG REAL ESTATE ROYAL & ASSOC. - Off: 925-776-2740","Off: 925-776-2740","No","No","No","No","Yes","No","No","No","No","No","No","Yes","No","No","No","No","Yes","No","No","No","No","No","No","No","No","No","No","No","Yes","No","Yes","No","No",1,"C. RENEE MOGLIA - Agt: 925-852-4475 - Perfect for 1st time buyer. New Paint and New Carpet. Vaulted ceilings, indoor laundry room, good sized bedrooms, back yard patio.  Front and back landscape needed but ready to move in.",null,"None","Ready to show, Call Renee 925-852-4475 with questions, seller in process of getting everything out of garage.","Conventional",94513,"CA","Ceiling Fan(s), Central 1 Zone A/C","Forced Air 1 Zone","Attached Garage","Cash, Conventional",null,"Back Yard","Contemporary","Family Room","None","No","Perfect for 1st time buyer. New Paint and New Carpet. Vaulted ceilings, indoor laundry room, good sized bedrooms, back yard patio.  Front and back landscape needed but ready to move in.","No","No",null,null,null,null,null,null,330000,1224,4150,2,0,2,42356,17,2,1,2,1,1,0,0,0,0,0,1,1]
["Sold","1609 WINDSOR WAY",342000,355000,2001,1224,4140,"2016-06-10","2016-06-15","2016-07-25","2016-06-15",2,2,5,"No","No","No","None","2016-07-26","2016-07-26",5,5,"BRENTWOOD","Contra Costa","Detached",0,"Yes",2,40744352,"Brentwood",null,0.1,null,null,1001,15,3031.03,"For Sale","One Story","No","No","No","No","No","No","4200 Canyon Way","Tom Coleman","Tom Coleman - Agt: 925-2288026","Martinez CA 94553","tikitnt@sonic.net","1734 Alhambra Ave.","Agt: 925-2288026",null,-2288026,null,null,null,null,null,null,"120 Kearny St.","Ralph Martinez - 925-595-0392","San Francisco CA 94104","ralph.martinez@redfin.com",925,"595-0392","120 Kearny St.","San Francisco CA 94104","Redfin - Off: 877-973-3346","Off: 877-973-3346","No","No","No","No","Yes","No","No","No","No","No","No","Yes","No","No","No","Yes","No","No","No","No","No","Yes","No","No","No","No","Yes","No","Yes","No","Yes","No","No",1,"Ralph Martinez - 925-595-0392 - Beautifully updated kitchen and baths.  Kitchen features granite counter tops, stainless and black appliances. Large great room has laminate flooring, wood burning fireplace and sliding glass door that opens to fully landscaped backyard. Master suite has updated bath, sunken tub and walk in closet.",null,"None","Please use First American Title-Brentwood. Escrow#5183167.  As of 6/14/16 7 offers presented to seller. Sellers have chosen an offer waiting for confirmation from the buyers.","Conventional",94513,"CA","Central 1 Zone A/C","Forced Air 1 Zone","Attached Garage, Int Access From Garage","Cash, Conventional, FHA",null,"Back Yard, Fenced, Front Yard, Garden/Play, Patio","Contemporary","Family Room","None","No","Beautifully updated kitchen and baths.  Kitchen features granite counter tops, stainless and black appliances. Large great room has laminate flooring, wood burning fireplace and sliding glass door that opens to fully landscaped backyard. Master suite has updated bath, sunken tub and walk in closet.","No","No",null,null,null,null,null,null,355000,1224,4140,2,0,2,42576,17,3,1,2,1,1,0,0,0,0,0,1,1]
["Sold","1688 Windsor Way",418000,418000,2002,1224,4140,"2019-05-15","2019-05-24","2019-07-02","2019-05-24",2,2,9,"No","No","No","no","2019-07-03","2019-07-03",9,9,"BRENTWOOD","Contra Costa","Detached",0,"Yes",2,40865799,"Brentwood",null,0.1,null,null,null,17,null,"For Sale","One Story","No","No","No","No","No","No","4561 Pacific Rim Way","Martha Muniz","Martha Muniz - 408-772-4734","San Jose CA 95121","rmmuniz@sbcglobal.net",null,"408-772-4734",408,"772-4734",null,null,null,null,null,null,"5 Bayside Ct","Steven Lederman - 925-375-0063","Sacramento CA 95831","steve@bayselect.net",925,"375-0063","1090 Adams Street, Suite J","Benicia CA 94510","Bay Select Realty - 925-375-0063","925-375-0063","No","No","No","No","Yes","No","No","No","No","No","No","Yes","No","No","No","No","Yes","No","No","No","No","No","Yes","No","No","No","No","No","Yes","No","Yes","No","No",1,"Steven Lederman - 925-375-0063 - Pride of Ownership & Move in Ready! Fully landscaped Backyard.  Fireplace in living room.  Ceiling fans. Bright & Airy. Eat in kitchen with gas stove and tile counters tops, NEW linoleum in kitchen.  Mater bath has large oval tub, indoor laundry, Tile roof. Close to shopping.",null,"None","Please CALL Rob (not text) for appointment at 925-755-6611 No offer due date. No disclosures or report on file","FHA",94513,"CA","Ceiling Fan(s), Central 1 Zone A/C","Forced Air 1 Zone","Attached Garage","Cash, Conventional, FHA, VA",null,"Fenced, Patio Enclosed, Sprinklers Back","Contemporary","Living Room","None","No","Pride of Ownership & Move in Ready! Fully landscaped Backyard.  Fireplace in living room.  Ceiling fans. Bright & Airy. Eat in kitchen with gas stove and tile counters tops, NEW linoleum in kitchen.  Mater bath has large oval tub, indoor laundry, Tile roof. Close to shopping.","No","No","None",null,null,null,null,null,418000,1224,4140,2,0,2,43648,16,2,1,2,1,1,0,0,0,0,0,1,1]
["Sold","277 Woodfield Ln",420000,420000,2001,1224,4040,"2018-11-01","2018-11-11","2019-01-10","2018-11-11",2,2,10,"No","No","No","none","2019-01-10","2019-01-10",10,10,"BRENTWOOD","Contra Costa","Detached",0,"Yes",2,40844615,"Brentwood",null,0.09,null,null,null,18,null,"For Sale","One Story","No","No","No","No","No","No","1347 WILLOWWOOD CT","LISA DUKELLIS-MITCHENER","LISA DUKELLIS-MITCHENER - 925-775-8060","BRENTWOOD CA 94513","lisa@dukellis.com",null,"925-775-8060",925,"775-8060","91 CUNHA CT.","ALEXIS WHITTEN - Agt: 925-776-2740","OAKLEY CA 94561","lexbill@aol.com",925,"776-2740","91 CUNHA CT","WILLIAM STANGER - 925-813-1182","OAKLEY CA 94561","Bill.Stanger@BHGRoyal.com",925,"813-1182","5887 A LONE TREE WAY","ANTIOCH CA 94531","BHG REAL ESTATE ROYAL & ASSOC. - Off: 925-776-2740","Off: 925-776-2740","No","No","No","No","Yes","No","No","No","No","No","No","Yes","No","No","No","No","Yes","No","No","No","No","Yes","Yes","No","No","No","No","No","Yes","No","Yes","No","No",1,"WILLIAM STANGER - 925-813-1182 - Move in condition, fully landscaped with patio in backyard. Fireplace in living room. Ceiling fans. Eat in kitchen with gas stove and tile counter tops. Master bath has large oval tub. Indoor laundry. Tile roof. Close to shopping.",null,"None","Close of escrow to be on or after December 26, 2018. Seller needs possible rent back till January 11, 2019, due to active military relocation. Please always make appointment to show due to dog! Please call agent for appointment if showing on Saturday 11/10/18","FHA",94513,"CA","Ceiling Fan(s), Central 1 Zone A/C","Forced Air 1 Zone","Attached Garage","Cash, Conventional, FHA, VA",null,"Back Yard, Fenced, Front Yard, Patio","Contemporary","Living Room","None","No","Move in condition, fully landscaped with patio in backyard. Fireplace in living room. Ceiling fans. Eat in kitchen with gas stove and tile counter tops. Master bath has large oval tub. Indoor laundry. Tile roof. Close to shopping.","No","No","None",null,null,null,null,null,420000,1224,4040,2,0,2,43475,17,2,1,2,1,1,0,0,0,0,0,1,1]
["Sold","277 Woodfield Ln",365000,365000,2001,1224,4040,"2016-11-21","2016-11-29","2016-12-23","2016-11-29",2,2,8,"No","No","No",7500,"2017-01-01","2017-02-27",8,8,"BRENTWOOD","Contra Costa","Detached",0,"Yes",2,40764429,"Brentwood",null,0.09,null,null,null,16,null,"For Sale","One Story","No","No","No","No","No","No","91 CUNHA CT","WILLIAM STANGER","WILLIAM STANGER - 925-813-1182","OAKLEY CA 94561","Bill.Stanger@BHGRoyal.com",null,"925-813-1182",925,"813-1182",null,null,null,null,null,null,"331Barrow Court","Cheryl Hammond - Agt: 925-6288220","Walnut Creek CA 94598","cheryl@cherylhammond.com",null,-6288220,"201 N Civic Drive, Suite 130","Walnut Creek CA 94596","Keller Williams Realty - Off: 925-934-2900","Off: 925-934-2900","No","No","No","No","Yes","No","No","No","No","No","No","Yes","No","No","No","No","Yes","No","No","No","No","Yes","No","No","No","No","No","No","Yes","No","Yes","No","No",1,"Cheryl Hammond - Agt: 925-628-8220 - Brentwoods finest at an affordable price!! Pride of ownership here!! Great single story floorplan! Vaulted ceilings! Ceiling fans! Fireplace! Window coverings! Laminate flooring! New carpet! Neutral colors! Indoor laundry! Fireplace! Landscaped backyard with patio! 2 car garage!",null,"None","Go show and sell!! Please email all offers to cheryl@cherylhammond.com","VA",94513,"CA","Ceiling Fan(s), Central 1 Zone A/C","Forced Air 1 Zone","Attached Garage","Cash, Conventional, FHA, VA",null,"Back Yard, Front Yard, Patio","Contemporary","Gas Starter, Living Room","Possible Pool Site","No","Brentwoods finest at an affordable price!! Pride of ownership here!! Great single story floorplan! Vaulted ceilings! Ceiling fans! Fireplace! Window coverings! Laminate flooring! New carpet! Neutral colors! Indoor laundry! Fireplace! Landscaped backyard with patio! 2 car garage!","No","No",null,null,null,null,null,null,365000,1224,4040,2,0,2,42727,17,2,1,2,1,1,0,0,0,0,0,1,1]
["Sold","1849 Gingerwood Ter",330000,325000,1985,1297,4028,"2017-01-30","2017-02-11","2017-03-29","2017-02-11",3,2,12,"No","No","No",null,"2017-03-29","2017-03-29",12,12,"BRENTWOOD","Contra Costa","Detached",0,"Yes",2,40768792,"Brentwood",null,0.09,110,"Monthly",null,32,null,"For Sale","One Story","No","No","No","No","No","No","1338 Tiffany Drive","Duane Newberry","Duane Newberry - Agt: 925-890-3949","Brentwood CA 94513","duanenewberry@yahoo.com",null,"Agt: 925-890-3949",925,"890-3949",null,null,null,null,null,null,"3413 DEER VALLEY RD.","DANI ARCHULETA - 925-727-7220","ANTIOCH CA 94531","homeswithdani@gmail.com",null,null,"3413 DEER VALLEY RD.","ANTIOCH CA 94531","BETTER HOMES/MANN & ASSC - Off: 925-779-0600","Off: 925-779-0600","No","No","No","No","No","No","No","No","No","No","No","No","No","No","No","No","No","Yes","No","No","No","Yes","No","No","No","No","No","No","Yes","No","Yes","No","No",1,"DANI ARCHULETA - Nice 3 bedroom 2 bath home in a quiet court location close to park.",null,"None","Client has verbally accepted an offer waiting for signatures for pending.","FHA",94513,"CA","Central 1 Zone A/C","Forced Air 1 Zone","Attached Garage","Cash, Conventional, FHA",null,"Back Yard, Fenced","Other","Living Room","Other","Yes","Nice 3 bedroom 2 bath home in a quiet court location close to park.","No","No",null,null,null,null,null,null,325000,1297,4028,2,0,2,42823,33,1,1,3,1,1,0,0,0,0,0,1,1]
["Sold","242 Grovewood Loop",334000,335000,1985,1026,3675,"2017-02-23","2017-03-08","2017-04-11","2017-03-08",2,2,13,"Yes","No","No",null,"2017-04-12","2017-04-12",13,13,"BRENTWOOD","Contra Costa","Detached",null,"Yes",2,40771153,"Brentwood",null,8.4400000000000003E-2,110,"Monthly",null,32,null,"For Sale","One Story","No","No","No","No","No","No","5285 Grasswood Court","Cindy R Harrison","Cindy R Harrison - Agt: 925-8085870","Concord CA 94521","cindyharrisonhomes@gmail.com","1801 N. California Bl.Ste. 100","Agt: 925-8085870",null,-8085870,null,null,null,null,null,null,"1300 Vallerand Road","Hiraneory Arrona - 209-879-3299","Tracy CA 95376","Patricia.Arrona@comcast.net",209,"879-3299","60 W 10th Street","Tracy CA 95376","Keller Williams Realty - 209-451-5454","209-451-5454","No","No","No","No","No","No","No","No","No","No","No","No","No","No","No","No","No","No","No","No","No","Yes","No","No","No","No","Yes","No","No","No","Yes","No","No",1,"Hiraneory Arrona - 209-879-3299 - Adorable One Story Home. Ready to move in! Open Floor plan with Fireplace.Master Bedroom with Master Bath. New Laminate Flooring, New Bathroom Fixtures, New Ceiling Fans in Dining Room & Master Bedroom. New Stainless Steel Range Hood, Front Door Security Screen Door. Interior Recently Painted.",null,"None","During week Showings after 6pm.  Please give 2hr notice, cats in home. Call L/A Patricia Arrona @209-879-3299 for Appt. Open House Sat 3/4 & Sun 3/5 12-4pm. Offers Due 3/7 Please Email To: Patricia.Arrona@comcast.net","Conventional","94513-2014","CA","Ceiling Fan(s), Central 1 Zone A/C","Forced Air 1 Zone","Attached Garage","Cash, Conventional, FHA",null,"Back Yard","Contemporary","Living Room","Community Fclty","Yes","Adorable One Story Home. Ready to move in! Open Floor plan with Fireplace. Master Bedroom with Master Bath. New Laminate Flooring, New Bathroom Fixtures, New Ceiling Fans in Dining Room & Master Bedroom. New Stainless Steel Range Hood, Front Door Security Screen Door. Interior Recently Painted.","No","No",null,null,null,null,null,null,335000,1026,3675,2,0,2,42836,33,0,2,2,1,1,0,0,0,0,0,1,1]
["Sold","1811 Cedarwood Ter",345000,380000,1985,1026,3536,"2019-03-21","2019-03-26","2019-04-19","2019-03-26",2,2,5,"Yes","No","No",null,"2019-04-19","2019-04-19",5,5,"BRENTWOOD","Contra Costa","Detached",0,"Yes",2,40857739,"Brentwood",null,0.08,115,"Monthly",null,34,null,"For Sale","One Story","No","No","No","No","No","No","2162 Norris Rd","Chad Cabral","Chad Cabral - 707-373-9438","Walnut Creek CA 94596","chadcabral73@gmail.com",null,"707-373-9438",707,"373-9438",null,null,null,null,null,null,"484 Milford St","Jessica N Lopez - Agt: 925-3604533","Brentwood CA 94513","jessica@homesbyjlo.com",null,-3604533,"1700 N. Main St.","Walnut Creek CA 94596","J. Rockcliff Realtors Inc. - Office: 925-280-8500","Office: 925-280-8500","No","No","No","No","Yes","No","No","No","No","No","No","No","No","No","No","Yes","No","No","No","No","No","Yes","No","No","No","No","Yes","No","No","No","Yes","No","No",1,"Jessica N Lopez - Agt: 925-3604533 - Beautiful updated single story home with 2 spacious bedrooms, 2 full baths and 1,026sq.ft. of living space. Walk in to an open floorpan living room featuring high vaulted ceilings, cozy fireplace, and new laminate flooring.The renovated kitchen has ample cabinet space, granite countertops, stainless steel appliances, & gorgeous tile flooring.The two bedrooms include a Master Bedroom with private updated bath and custom closet organizer. With brand new landscape, fresh interior paint, replaced AC Ducts & insulation, newer roof, all new screen doors, newer water heater, & more- this home is completely move-in ready! PLUS: Refrigerator, Washer, & Dryer included! Do not miss it! ((Open House Sunday, 3/24 farm 1-4pm))",null,"None","*Offer Deadline 3pm on Monday 3/25* Contact agent for disclosure packet- NHD, Prelim, & HOA Docs included. Pre-Escrow opened with Chicago Title for buyers convenience- no obligation to use. Refrigerator/Washer/Dryer included! Deep freezer does not convey, and Wine Fridge negotiable.","Conventional",94513,"CA","Central 1 Zone A/C","Forced Air 1 Zone","Attached Garage","Cash, Conventional, FHA, VA, Other",null,"Back Yard, Fenced, Front Yard, Patio Covered, Sprinklers Front","Traditional","Living Room, Woodburning","Community Fclty","Yes","Beautiful updated single story home with 2 spacious bedrooms, 2 full baths and 1,026sq.ft. of living space. Walk in to an open floorpan living room featuring high vaulted ceilings, cozy fireplace, and new laminate flooring.The renovated kitchen has ample cabinet space, granite countertops, stainless steel appliances, & gorgeous tile flooring.The two bedrooms include a Master Bedroom with private updated bath and custom closet organizer. With brand new landscape, fresh interior paint, replaced AC Ducts & insulation, newer roof, all new screen doors, newer water heater, & more- this home is completely move-in ready! PLUS: Refrigerator, Washer, & Dryer included! Do not miss it! ((Open House Sunday, 3/24 farm 1-4pm))","No","No","None",null,null,null,null,null,380000,1026,3536,2,0,2,43574,33,3,2,2,1,1,0,0,0,0,0,1,1]
["Sold","157 Cottonwood Cmn",380000,380000,1985,1026,3536,"2020-03-27","2020-04-13","2020-05-14","2020-04-13",2,2,17,"No","No","No",null,"2020-05-14","2020-05-14",17,17,"BRENTWOOD","Contra Costa","Detached",0,"Yes",2,40900307,"Brentwood",null,0.08,127,"Monthly",null,35,null,"For Sale","One Story","No","No","No","No","No","No","3700 Lyon Rd #235","Jewel Carter","Jewel Carter - 707-704-4990","Fairfield CA 94534","jewel.carter@exprealty.com",null,"707-704-4990",707,"704-4990",null,null,null,null,null,null,"59 Silverwood Dr.","Jennifer Griessel - Agt: 925-382-7484","Lafayette CA 94549","jennifer.griessel@bhhsdrysdale.com",925,"382-7484","1954 Contra Costa Blvd.","Pleasant Hill CA 94523","BHHS Drysdale Properties - Off: 925-688-1500","Off: 925-688-1500","No","No","No","No","Yes","No","No","No","No","No","No","No","No","No","No","No","Yes","No","No","No","Yes","No","No","No","No","No","No","No","No","No","Yes","No","No",1,"Jennifer Griessel - Agt: 925-382-7484 - Incredible price for single family detached home! Single story open floorplan with vaulted ceilings. Kitchen features breakfast bar and stainless steel appliances. Living room has cozy fireplace. Beautiful hardwood floors throughout! Two car garage plus central heat and air. Fully landscaped backyard with patio is private and perfect for summer BBQ's. Neighborhood has community pool. Refrigerator, washer, dryer included. Own for less than rent! Nothing to do but move in!",null,"None","As of Friday, April 10th seller has accepted an offer. Waiting for signatures and then will put the property pending. Call or text agent with any questions 925-382-7484.","FHA",94513,"CA","Central 1 Zone A/C","Forced Air 1 Zone","Attached Garage","Conventional, FHA, VA",null,"Back Yard, Fenced, Front Yard, Garden/Play, Patio, Side Yard","Ranch","Living Room","Community Fclty","Yes","Incredible price for single family detached home! Single story open floorplan with vaulted ceilings. Kitchen features breakfast bar and stainless steel appliances. Living room has cozy fireplace. Beautiful hardwood floors throughout! Two car garage plus central heat and air. Fully landscaped backyard with patio is private and perfect for summer BBQ's. Neighborhood has community pool. Refrigerator, washer, dryer included. Own for less than rent! Nothing to do but move in!","No","No","None",null,null,null,null,null,380000,1026,3536,2,0,2,43965,33,2,3,2,1,1,0,0,0,0,0,1,1]
["Sold","106 Cottonwood Cmn",439000,420000,1985,1511,3332,"2019-04-04","2019-04-15","2019-05-03","2019-04-15",3,2,11,"No","No","No","Free rent back for 2 months","2019-05-03","2019-05-03",11,11,"BRENTWOOD","Contra Costa","Detached",1,"Yes",2,40859562,"Brentwood",null,0.08,119,"Monthly",null,34,null,"For Sale","Two Story","No","No","No","No","No","No","5135 Winchester Drive","Ali R Schneider","Ali R Schneider - Agt: 925-7842165","Oakley CA 94561","ali.schneider@redfin.com","655 Montgomery, Ste 1500","Agt: 925-7842165",null,null,"1468 Majestic Lane","Todd Chambers - Agt: 925-3017788","Brentwood CA 94513-","toddchambers.realtor@gmail.com",null,-3017788,"217 Hearthstone Cir.","Kevin Vierra - Cell: 925-595-1321","Oakley CA 94561","Kevin@soldbuyguys.com",925,"595-1321","2455 Sand Creek Rd., Ste. 104","Brentwood CA 94513","Corcoran Global Living - Off: 925-634-1116","Off: 925-634-1116","No","No","No","No","Yes","No","No","No","No","No","No","No","No","No","No","No","No","Yes","No","No","No","No","Yes","No","No","No","No","No","Yes","No","Yes","No","No",1,"KEVIN VIERRA - Cell: 925-595-1321 - Are your kids going to the best school district in the area?  Is living in Brentwood too expensive?  Well you have just found one of the least expensive homes in Brentwood and by far the best priced per square foot.  When you think about all the features that this home includes, such as a beautiful rock fireplace mantel that invites family to be close together, has a brand new A/C unit, new heating unit, newer water heater, laminate flooring in the kitchen and kitchen eating area, laundry room upstairs, and a spacious master bedroom, you would think this is a great value.  Then you add that the neighborhood has a community park and a community pool, you have an amazing value.  Stop wondering if you can afford to live where you want to live.  Won't last long!!",null,"None","Please call  1 hour before showing and if no answer, go and show.  Pre-escrow open with Chicago Title but is buyers choice.  All Disclosures are in Associated Docs.  HOA docs are available upon request.  Please email Nicole@interodb.com for copy of HOA docs if needed.  Seller may need rent back until kids are out of school first week of June.  Please send any questions to Kevin@vierrateam.com or Toddchambers.realtor@gmail.com","Conventional",94513,"CA","Central 1 Zone A/C","Forced Air 1 Zone","Attached Garage, Int Access From Garage","Cash, Conventional, 1031 Exchange, FHA, VA",null,"Back Yard, Dog Run, Fenced, Front Yard","Traditional","Family Room, Raised Hearth, Stone","Community Fclty","Yes","Are your kids going to the best school district in the area?  Is living in Brentwood too expensive?  Well you have just found one of the least expensive homes in Brentwood and by far the best priced per square foot.  When you think about all the features that this home includes, such as a beautiful rock fireplace mantel that invites family to be close together, has a brand new A/C unit, new heating unit, newer water heater, laminate flooring in the kitchen and kitchen eating area, laundry room upstairs, and a spacious master bedroom, you would think this is a great value.  Then you add that the neighborhood has a community park and a community pool, you have an amazing value.  Stop wondering if you can afford to live where you want to live.  Won't last long!!","No","No","None",null,null,null,null,null,420000,1511,3332,2,0,2,43588,33,1,1,3,1,2,0,0,0,0,0,1,1]
["Sold","1806 Cedarwood Ter",399900,405000,1985,1511,3332,"2017-05-04","2017-05-12","2017-06-02","2017-05-12",3,2,8,"No","No","No",null,"2017-06-05","2017-07-14",8,8,"BRENTWOOD","Contra Costa","Detached",1,"Yes",2,40780049,"Brentwood",null,0.08,110,"Monthly",null,32,null,"For Sale","Two Story","No","No","No","No","No","No","705 RIO GRANDE COURT","JODI MARFIA","JODI MARFIA - Agt: 925-354-8919","BRENTWOOD CA 94513","jodi@dreamhomesbyjodi.com",null,"Agt: 925-354-8919",925,"354-8919",null,null,null,null,null,null,"762 SUNSHINE CT.","MELANIE AKEY - Cell: 925-354-0515","BRENTWOOD CA 94513","melanieakey@comcast.net",925,"354-0515","60 EAGLE ROCK WAY","BRENTWOOD CA 94513","DUDUM REAL ESTATE GROUP INC. - Off: 925-937-4000","Off: 925-937-4000","No","No","No","No","Yes","No","No","No","No","No","No","No","No","No","No","Yes","No","No","No","Yes","No","No","No","No","No","No","Yes","No","No","No","Yes","No","No",1,"MELANIE AKEY - Cell: 925-937-4000 - Open house Friday, 5/5, 3-6 pm and Saturday, 5/6, 12-3.  Welcome to 1806 Cedarwood Terrace! Tastefully appointed and ready to move in, this home features newer wood flooring throughout the downstairs and in all bedrooms, as well as newer interior paint, for a fresh, inviting feel.  The beautifully updated, modern kitchen includes newer stainless steel appliances, granite counter tops, plenty of storage and ample natural light. The two and one half baths have been elegantly remodeled, while the three spacious bedrooms are light and bright.  Fabulous backyard with a deck is ideal for entertaining friends and family. This fantastic opportunity is not to be missed!",null,"None","Please call or text Melanie at (925) 354-0515 for showing. Some notice is good as there are dogs on property.  Offers reviewed as received.  PreEscrow opened with Jake at Chicago Title Brentwood.  Seller's warranty placed with First American.","FHA",94513,"CA","Central 1 Zone A/C","Forced Air 1 Zone","Attached Garage","Cash, Conventional, FHA, VA",null,"Deck(s), Fenced, Front Yard, Patio, Sprinklers Automatic, Sprinklers Back, Sprinklers Front","Traditional","Living Room","Community Fclty","Yes","Open house Friday, 5/5, 3-6 pm and Saturday, 5/6, 12-3.  Welcome to 1806 Cedarwood Terrace! Tastefully appointed and ready to move in, this home features newer wood flooring throughout the downstairs and in all bedrooms, as well as newer interior paint, for a fresh, inviting feel.  The beautifully updated, modern kitchen includes newer stainless steel appliances, granite counter tops, plenty of storage and ample natural light. The two and one half baths have been elegantly remodeled, while the three spacious bedrooms are light and bright.  Fabulous backyard with a deck is ideal for entertaining friends and family. This fantastic opportunity is not to be missed!","No","No",null,null,null,null,null,null,405000,1511,3332,2,0,2,42888,33,3,2,3,1,2,0,0,0,0,0,1,1]
["Sold","1806 CEDARWOOD TERRACE",349888,365000,1985,1511,3332,"2016-04-01","2016-04-03","2016-05-03","2016-04-03",3,2,2,"No","No","No",null,"2016-05-23","2016-05-23",2,2,"BRENTWOOD","Contra Costa","Detached",1,"Yes",2,40734627,"Brentwood",null,7.5999999999999998E-2,110,"Monthly","Res",31,null,"For Sale","Two Story","No","No","No","No","No","No","762 SUNSHINE CT.","MELANIE AKEY","MELANIE AKEY - Cell: 925-354-0515","BRENTWOOD CA 94513","melanieakey@comcast.net",null,"Cell: 925-354-0515",925,"354-0515",null,null,null,null,null,null,"785 CROCKET CT.","DARIUS SARKARI - 925-497-6490","BRENTWOOD CA 94513","darius@sharphomesonline.com",925,"497-6490","320 FAIRVIEW AVENUE","BRENTWOOD CA 94513","SHARP REALTY - Off: 925-240-6683","Off: 925-240-6683","No","No","No","No","Yes","No","No","No","No","No","No","No","No","No","No","Yes","No","No","No","No","No","Yes","No","No","No","No","Yes","No","Yes","No","Yes","No","No",1,"DARIUS SARKARI - 925-497-6490 - MOVE-IN READY! Immaculate home on court location w/open & spacious floor plan. Living room w/cozy fireplace. Kitchen updated w/stainless steel appliances, granite & reverse osmosis. Laundry upstairs. Ceiling fans, alarm sys & water softener. Sunny backyard w/newer redwood deck. Community pool/spa.",null,"None","Please call owner prior to showing due to dogs who need to be put in the kennel in the garage.  Speak with Amanda at (443) 955-4399.  EZ to show.","Conventional",94513,"CA","Ceiling Fan(s), Central 1 Zone A/C","Forced Air 1 Zone","Attached Garage, Off Street Parking, Guest Parking","Cash, Conventional, FHA, VA",null,"Back Yard, Fenced, Front Yard, Side Yard","Contemporary","Living Room, Woodburning","Community Fclty, In Ground, Spa","Yes","MOVE-IN READY! Immaculate home on court location w/open & spacious floor plan. Living room w/cozy fireplace. Kitchen updated w/stainless steel appliances, granite & reverse osmosis. Laundry upstairs. Ceiling fans, alarm sys & water softener. Sunny backyard w/newer redwood deck. Community pool/spa.","No","No","None",null,null,null,null,null,365000,1511,3332,2,0,2,42493,33,3,1,3,1,2,0,0,0,0,0,1,1]
["Sold","228 Grovewood Loop",320000,325000,1985,1026,3332,"2016-08-26","2016-09-30","2016-11-04","2016-09-30",2,2,35,"Yes","No","No",null,"2016-11-04","2016-11-04",35,35,"BRENTWOOD","Contra Costa","Detached",null,"Yes",2,40755115,"Brentwood",null,7.0000000000000007E-2,103,"Monthly",null,31,null,"For Sale","One Story","No","No","No","No","No","No","44836 S. Grimmer Blvd","Bilal Salimi","Bilal Salimi - 925-469-0500","Fremont CA 94538","bilalsalimi@gmail.com",null,"925-469-0500",925,"469-0500",null,null,null,null,null,null,"5079 LONE TREE WAY","RICK FULLER - 925-238-0160","ANTIOCH CA 94531","questions@realtorrick.biz",null,null,"5079 LONE TREE WAY","ANTIOCH CA 94531","RICK FULLER INC. - Off: 925-238-0160","Off: 925-238-0160","No","No","No","No","Yes","No","No","No","No","No","No","No","No","No","No","No","No","Yes","No","No","No","No","No","No","No","No","Yes","No","No","No","Yes","No","No",1,"RICK FULLER - Open house Sun 12-1 pm. Stunning Brentwood Single Story Home With Cozy Fireplace.  Spacious Kitchen with Nook,GE Electric Glass Top Range, Whirlpool Dishwasher, & Broan Hood.  Elegant Porcelain Tile Flooring, Decorative Ceiling Fans, &  In-Door Laundry.  Easy Maintenance Backyard and Deck!",null,"None","This property is NOT in a 55+ community and is open to all ages.  Easy to show call Wayne at 925 634-4407 to show.  As of 9/19/16, No offers in hand.  Please submit","Conventional",94513,"CA","Ceiling Fan(s), Central 1 Zone A/C","Forced Air 1 Zone","Attached Garage, Off Street Parking","Cash, Conventional, FHA, VA",null,"Back Yard, Deck(s), Front Yard, Sprinklers Front","Contemporary","Family Room, Fireplace Insert","Community Fclty","Yes","Open house Sun 12-1 pm. Stunning Brentwood Single Story Home With Cozy Fireplace.  Spacious Kitchen with Nook,GE Electric Glass Top Range, Whirlpool Dishwasher, & Broan Hood.  Elegant Porcelain Tile Flooring, Decorative Ceiling Fans, &  In-Door Laundry.  Easy Maintenance Backyard and Deck!","No","No",null,null,null,null,null,null,325000,1026,3332,2,0,2,42678,33,1,2,2,1,1,0,0,0,0,0,1,1]
["Sold","1806 CEDARWOOD TER",305000,305000,1985,1511,3332,"2015-03-01","2015-03-04","2015-04-15","2015-03-04",3,2,3,"No","No","No","$1500 credit to seller.","2015-04-17","2017-04-14",0,0,"BRENTWOOD","Contra Costa","Detached",1,"Yes",2,40695173,"Brentwood",null,0.08,103,"Monthly",1003,30,3031.03,"For Sale","Two Story","No","No","No","No","No","No","785 CROCKET CT.","DARIUS SARKARI","DARIUS SARKARI - 925-497-6490","BRENTWOOD CA 94513","darius@sharphomesonline.com",null,"925-497-6490",925,"497-6490",null,null,null,null,null,null,"635 RUTHERFORD CIRCLE","STEVE GURSKY - Agt: 925-240-6683","BRENTWOOD CA 94513","sgursky@sbcglobal.net",925,"240-6683","320 FAIRVIEW AVENUE","BRENTWOOD CA 94513","SHARP REALTY - Off: 925-240-6683","Off: 925-240-6683","No","No","No","No","No","No","No","No","No","No","No","No","No","No","Yes","No","No","No","No","No","No","Yes","No","No","No","No","No","No","Yes","No","Yes","No","No",1,"STEVE GURSKY - Agt: 925-584-8708 - Updated kitchen with newer cabinets and granite counters. Laminate flooring downstairs, fireplace in the cozy family room, and 3 bedrooms upstairs.",null,"None","For comps only. Sold before MLS.","VA",94513,"CA","Central 1 Zone A/C","Forced Air 1 Zone","Attached Garage, Off Street Parking, Parking Area","VA",null,"Back Yard, Garden/Play, Patio, Side Yard, Sprinklers Automatic, Sprinklers Back, Sprinklers Front","Traditional","Family Room","Community Fclty","Yes","Updated kitchen with newer cabinets and granite counters. Laminate flooring downstairs, fireplace in the cozy family room, and 3 bedrooms upstairs.","No","No",null,null,null,null,null,null,305000,1511,3332,2,0,2,42109,33,3,1,3,1,2,0,0,0,0,0,1,1]
["Sold","228 Grovewood Loop",289999,294000,1985,1026,3332,"2015-08-13","2015-09-03","2015-11-12","2015-09-03",2,2,21,"Yes","No","No","$4000 closing cost credit","2015-11-16","2015-11-16",21,21,"BRENTWOOD","Contra Costa","Detached",null,"Yes",1,40711382,"Brentwood",null,7.0000000000000007E-2,103,"Monthly",null,30,null,"For Sale","One Story","No","No","No","No","No","No","13 Clare Court","Kristina M Palomo","Kristina M Palomo - Agt: 925-864-3763","Oakley CA 94561","kristinapalomo@gmail.com",null,"Agt: 925-864-3763",925,"864-3763",null,null,null,null,null,null,"3687 Yacht Drive","Kelly C Murdock - 925-518-8064","Discovery Bay CA 94505","kellymurdock@comcast.net",925,"518-8064","4234 Hacienda Dr #110","Pleasanton CA 94588","United Realty Partners - 925-271-2707","925-271-2707","No","No","No","No","Yes","No","No","No","No","No","No","No","No","No","No","No","No","Yes","No","No","No","Yes","No","No","No","No","Yes","No","No","No","Yes","No","No",1,"Kelly C Murdock - 925-518-8064 - Great starter home. Close to schools and shops with community pool.",null,"None","Owner has dogs. Please text Janet @ 360-723-8943 to set appointment. She will give you the combo code to access the house. Combo box is on the screen door. Please email offers to kellymurdock@comcast.net","FHA",94513,"CA","Ceiling Fan(s), Central 1 Zone A/C","Forced Air 1 Zone","Attached Garage, Off Street Parking","Cash, Conventional, FHA",null,"Back Yard, Deck(s), Front Yard, Sprinklers Front","Contemporary","Family Room, Fireplace Insert","Community Fclty","Yes","Great starter home. Close to schools and shops with community pool.","No","No",null,null,null,null,null,null,294000,1026,3332,2,0,1,42320,33,1,2,2,1,1,0,0,0,0,0,1,1]
["Sold","105 Fruitwood Cmn",459000,450000,1985,1511,3298,"2018-05-18","2018-06-11","2018-07-10","2018-06-11",3,2,24,"Yes","No","No","As-is sale - $1500 seller credit","2018-07-11","2018-07-11",24,24,"BRENTWOOD","Contra Costa","Detached",1,"Yes",2,40822571,"Brentwood",null,0.08,110,"Monthly",null,33,null,"For Sale","Two Story","No","No","No","No","No","No","1873 EAGLE PEAK AVE","SHELBY SEELEY","SHELBY SEELEY - Fax: 925-238-0170","CLAYTON CA 94517","shelby@realtorrick.biz",null,"Fax: 925-238-0170",925,"238-0170",null,null,null,null,null,null,"1789 4th St.","Ryan I Anderson - 925-371-7926","Livermore CA 94550","ryan@371ryan.com",925,"371-7926","1789 4th St.","Livermore CA 94550","Vintage Real Estate - Off: 925-382-9057","Off: 925-382-9057","No","No","No","No","Yes","No","No","No","No","No","No","No","No","No","Yes","No","No","No","No","No","No","Yes","No","No","No","No","Yes","No","Yes","No","Yes","No","No",1,"Ryan I Anderson - 925-371-7926 - Updated 3 bdrm 2.5 bath with brand new floors, brand new slab granite, brand new stainless steel appliances delivered 5/17.  New roof installed May 2018!  Updated fixtures and fireplace.  Turn key home ready to move in.  2 car garage with nice yard/setting.",null,"None","Sold - As-Is sale, seller credited $1500 to buyer for NRCC.  Seller doing a 1031 exchange, no cost to buyer.  Pre-escrow - Chicago Title, Livermore - Janet Clay.","Conventional",94513,"CA","Central 1 Zone A/C","Forced Air 1 Zone","Attached Garage, Guest Parking","Cash, FHA, VA",null,"Back Yard, Front Yard, Side Yard","Contemporary","Family Room","Community Fclty","Yes","Updated 3 bdrm 2.5 bath with brand new floors, brand new slab granite, brand new stainless steel appliances delivered 5/17.  New roof installed May 2018!  Updated fixtures and fireplace.  Turn key home ready to move in.  2 car garage with nice yard/setting.","No","No",null,null,null,null,null,null,450000,1511,3298,2,0,2,43291,33,3,1,3,1,2,0,0,0,0,0,1,1]
["Sold","435 Grovewood Loop",419000,415000,1985,1511,3230,"2020-02-23","2020-06-25","2020-07-31","2020-06-25",3,2,29,"Yes","No","No",null,"2020-08-11","2020-08-11",29,29,"BRENTWOOD","Contra Costa","Detached",1,"Yes",2,40896507,"Brentwood",null,0,127,"Monthly",null,35,null,"For Sale","Two Story","No","No","No","No","No","No","439 Blackstone Court","Todd Scheid","Todd Scheid - Agt: 925-3236150","Walnut Creek CA 94598","Todd@ScheidHomes.com","1646 N. California Blvd. #101","Agt: 925-3236150",null,-3236150,null,null,null,null,null,null,"148 San Diego Ave.","Jinying Su - 650-757-0888","San Bruno CA 94066","helenjyrealtor19@gmail.com",650,"757-0888","362 Gellert Blvd.","Daly City CA 94015","BHG J.F. Finnegan Realtors - 650-757-0888","650-757-0888","No","No","No","No","Yes","No","No","No","No","No","No","No","No","No","No","Yes","No","No","No","No","No","Yes","No","No","No","No","No","No","No","No","Yes","No","No",1,"Jinying Su - 650-757-0888 - Bright 2 story home with 3 bed 2.5 Bath home for Starter or investment in a desirable and affordable Havenwood Neighborhood  with community swimming pool. New laminate flooring on living room and dinning area,  New roofing, Newer interior painting, well maintain front and backyard. Close to shopping and School.",null,"None","Please sent PEAD-V form prior to showing. Agents must follow all safety protocols and social distancing guidelines. No more than one agent and two clients at one time. Wear masks, gloves, and shoe Covers, Escrow Pre-Opened with Chicago title with Ling Lee.  Please email to Helenjyrealtor19@gmail.com or text.  Supra LB on the gas meter.  Seller is California Real Estate Agent.","Conventional",94513,"CA","Central 1 Zone A/C","Gas","Attached Garage","Cash, Conventional",null,"Sprinklers Automatic","Contemporary","Family Room","Community Fclty","Yes","Bright 2 story home with 3 bed 2.5 Bath home for Starter or investment in a desirable and affordable Havenwood Neighborhood  with community swimming pool. New laminate flooring on living room and dinning area,  New roofing, Newer interior painting, well maintain front and backyard.  Close to shopping and School.","No","No","None",null,null,null,null,null,415000,1511,3230,2,0,2,44043,33,3,3,3,1,2,0,0,0,0,0,0,1]
["Sold","99 Cottonwood Cmn",389900,425000,1985,1511,3196,"2017-04-22","2017-05-04","2017-06-08","2017-05-04",3,2,12,"Yes","No","No",null,"2017-06-08","2017-10-05",13,13,"BRENTWOOD","Contra Costa","Detached",1,"Yes",2,40778314,"Brentwood",null,7.0000000000000007E-2,110,"Monthly",null,32,null,"For Sale","Two Story","No","No","No","No","No","No","150 Avalon Court","Ana M Vasquez","Ana M Vasquez","San Ramon CA 94588","ana.diamondv@gmail.com",null,null,null,null,null,null,null,null,null,null,"4075 PIER POINT","KRISTA MASHORE - 925-325-4663","DISCOVERY BAY CA 94505","Krista@KristaHomes.com",925,"325-4663","5149 LONE TREE WAY","ANTIOCH CA 94531","HOMES BY KRISTA - Off: 925-595-0217","Off: 925-595-0217","No","No","No","No","Yes","No","No","No","No","No","No","No","No","Yes","No","No","No","Yes","No","No","No","No","Yes","No","No","No","Yes","No","Yes","No","Yes","No","No",1,"KRISTA MASHORE - 925-325-5400 - A must see! An airy floor plan with laminate flooring, a wood burning fireplace and a charming back patio with synthetic turf, low maintenance landscaping and no rear neighbors.  The kitchen in this home is immaculate. It features upgraded cabinetry, new stainless steel appliances, and new countertops. Upgraded wall to wall carpeting upstairs, and a unique pocket office with custom shelving and a built-in large desk! A nice master bathroom with upgraded cabinetry and new shower and doors. This home is walking distance to parks & schools and has a great community pool. Just minutes from freeway access and local shopping!",null,"None","Pre sale escrow open with Chicago Title Brentwood Toni Adams.","FHA",94513,"CA","Central 1 Zone A/C, Whole House Fan","Forced Air 1 Zone","Attached Garage","Cash, Conventional, FHA, VA",null,"Back Yard, Fenced, Front Yard, Garden/Play, Side Yard, Sprinklers Back, Sprinklers Front, Sprinklers Side","Contemporary","Living Room, Woodburning","Above Ground, Community Fclty, In Ground, Membership (Optional)","Yes","A must see! An airy floor plan with laminate flooring, a wood burning fireplace and a charming back patio with synthetic turf, low maintenance landscaping and no rear neighbors.  The kitchen in this home is immaculate. It features upgraded cabinetry, new stainless steel appliances, and new countertops. Upgraded wall to wall carpeting upstairs, and a unique pocket office with custom shelving and a built-in large desk! A nice master bathroom with upgraded cabinetry and new shower and doors. This home is walking distance to parks & schools and has a great community pool. Just minutes from freeway access and local shopping!","No","No",null,null,null,null,null,null,{"$f":"D61","v":425000},{"$f":"F61","v":1511},3196,{"$f":"M61","v":2},{"$f":"IF(ISNUMBER(SEARCH(\"Community Fclty\",DP61)),0,IF(ISNUMBER(SEARCH(\"In Ground\",DP61)),1,IF(ISNUMBER(SEARCH(\"Gunite\",DP61)),1,0)))","v":0},{"$f":"IF(AA61=\"Yes\", AB61, 0)","v":2},{"$f":"J61","v":42894},{"$f":"2018-E61","v":33},{"$f":"IF(ISNUMBER(SEARCH(\"Yes\",CJ61)),1,IF(ISNUMBER(SEARCH(\"Yes\",CI61)),2,IF(ISNUMBER(SEARCH(\"Yes\",CH61)),3,IF(ISNUMBER(SEARCH(\"Yes\",CG61)),3,0))))","v":1},{"$f":"IF(ISNUMBER(SEARCH(\"Yes\",CU61)),1,IF(ISNUMBER(SEARCH(\"Yes\",CT61)),1,IF(ISNUMBER(SEARCH(\"Yes\",CO61)),1,IF(ISNUMBER(SEARCH(\"Yes\",CS61)),2,IF(ISNUMBER(SEARCH(\"Yes\",CN61)),3,IF(ISNUMBER(SEARCH(\"Yes\",CM61)),3,IF(ISNUMBER(SEARCH(\"Yes\",CL61)),3,IF(ISNUMBER(SEARCH(\"Yes\",CR61)),4,0))))))))","v":1},{"$f":"L61","v":3},{"$f":"CZ61","v":1},{"$f":"IF(ISNUMBER(SEARCH(\"One Story\",AM61)),1,IF(ISNUMBER(SEARCH(\"Two Story\",AM61)),2,IF(ISNUMBER(SEARCH(\"Three Story\",AM61)),3,0)))","v":2},{"$f":"IF(ISNUMBER(SEARCH(\"Yes\",DS61)),1,0)","v":0},0,{"$f":"DV61","v":0},{"$f":"IF(ISNUMBER(SEARCH(\"Bay\",DL61)),1,IF(ISNUMBER(SEARCH(\"Carquinez\",DL61)),1,IF(ISNUMBER(SEARCH(\"Water\",DL61)),1,IF(ISNUMBER(SEARCH(\"Mountains\",DL61)),1,IF(ISNUMBER(SEARCH(\"Hills\",DL61)),1,IF(ISNUMBER(SEARCH(\"Wooded\",DL61)),1,IF(ISNUMBER(SEARCH(\"Mt Diablo\",DL61)),1,0)))))))","v":0},{"$f":"IF(AND(Q61=\"No\",P61=\"No\"), 0, 1)","v":0},{"$f":"IF(ISNUMBER(SEARCH(\"forced air\",DI61)),1,0)","v":1},{"$f":"IF(ISNUMBER(SEARCH(\"central\",DH61)),1,0)","v":1}]
["Sold","83 Cottonwood Cmn",421900,410000,1985,1511,3196,"2019-04-27","2019-10-03","2019-12-31","2019-10-03",3,2,159,"Yes","No","No",null,"2020-01-06","2020-01-06",159,159,"BRENTWOOD","Contra Costa","Detached",1,"Yes",2,40863109,"Brentwood",null,7.0000000000000007E-2,125,"Monthly",null,35,null,"For Sale","Two Story","No","No","No","No","No","No","2524 MONTGOMERY AVE","GRANT INABA","GRANT INABA - 415-992-2330","CONCORD CA 94519","Grant@goodagentre.com",null,"415-992-2330",415,"992-2330",null,null,null,null,null,null,"3900 WORTHING WAY","BRADLEY J LETOURNEAU - Cell: 925-325-0063","DISCOVERY BAY CA 94505","bradrealestate@gmail.com",925,"325-0063","3900 WORTHING WAY","DISCOVERY BAY CA 94505","PACIFIC CALIFORNIA PROPERTIES - Off: 925-325-0063","Off: 925-325-0063","No","No","No","No","Yes","No","No","No","No","No","No","No","No","No","No","Yes","No","No","No","No","No","Yes","No","No","No","No","Yes","No","Yes","No","Yes","No","No",1,"BRADLEY J LETOURNEAU - Cell: 925-325-0063 - Attention Investors and Home buyers. Awesome Price on this remodeled home with new onyx counter tops and new cabinets, Updated Baths, New flooring throughout. New interior and exterior paint. Leased solar for super low PGE bills. VA/FHA ok. Hurry on this one.",null,"None","Seller anxious- This is a GREAT deal. Look at the comps.   Please contact LA with any questions.  Seller ready to sell ! Thanks for showing.","FHA",94513,"CA","Central 1 Zone A/C","Gas","Attached Garage","Cash, Conventional, VA",null,"Sprinklers Automatic","Contemporary","Family Room","Community Fclty","Yes","Attention Investors and Home buyers. Awesome Price on this remodeled home with new onyx counter tops and new cabinets, Updated Baths, New flooring throughout. New interior and exterior paint. Leased solar for super low PGE bills. VA/FHA ok. Hurry on this one.","No","No",null,null,null,null,null,null,410000,1511,3196,2,0,2,43830,33,3,1,3,1,2,0,0,0,0,0,0,1]
["Sold","83 Cottonwood Cmn",368800,375001,1985,1511,3196,"2019-03-13","2019-03-14","2019-03-27","2019-03-14",3,2,1,"No","No","No",null,"2019-03-27","2019-03-27",2,2,"BRENTWOOD","Contra Costa","Detached",1,"Yes",2,40856485,"Brentwood",null,7.0000000000000007E-2,115,"Monthly",null,34,null,"For Sale","Two Story","No","No","No","No","No","No","3900 WORTHING WAY","BRADLEY J LETOURNEAU","BRADLEY J LETOURNEAU - Cell: 925-325-0063","DISCOVERY BAY CA 94505","bradrealestate@gmail.com",null,"Cell: 925-325-0063",925,"325-0063",null,null,null,null,null,null,"2677 PRESIDIO DRIVE","MELISSA AMORES - 415-505-9653","BRENTWOOD CA 94513","melissajoy.amores@gmail.com",415,"505-9653","5887 A LONE TREE WAY","ANTIOCH CA 94531","BHG REAL ESTATE ROYAL & ASSOC. - Off: 925-776-2740","Off: 925-776-2740","No","No","No","No","Yes","No","No","No","No","No","No","No","No","No","Yes","No","No","No","No","No","No","No","No","No","No","No","Yes","No","Yes","No","Yes","No","No",1,"MELISSA AMORES - 415-505-9653 - Handyman Special! This property has lots of potential.Needs TLC. Close to school, shopping center.Will be Sold As is condition.Great for Investors and firts time home buyers.Don't miss this opportunity!!!",null,"None"," HOA Notice of Trustee sale- April 3. House is sold AS is condition.  PLS Call/text Heather 925-329-7917  (1) hour before showing. Will review offer as it comes! Contact Listing Agent for information Melissa Joy Amores 415-505-9653 Melissa.Amores@Bhgroyal.com or Melissajoy.amores@Gmail.com","Cash",94513,"CA","Central 1 Zone A/C","Gas","Attached Garage","Cash, Conventional, FHA, VA",null,"Back Yard, Fenced, Front Yard, Side Yard, Storage","Traditional","Brick","None","Yes","Handyman Special! This property has lots of potential.Needs TLC. Close to school, shopping center.Will be Sold As is condition.Great for Investors and firts time home buyers. Don't miss this opportunity!!!","Yes","No","Solar Electrical Leased",null,null,null,null,null,375001,1511,3196,2,0,2,43551,33,3,1,3,1,2,1,0,0,0,0,0,1]

{"sheet":"Sheet1","index":2,"n_rows":63,"n_cols":37,"rows_kept":63,"cut":false,"hidden":false,"merged":[]}
["Regression Analysis of *****SOLD PRICE 2***************",null,null,null,null,null,null,"X'X inverse",null,null,null,null,null,null,null,null,null,null,null,null,"Fits","Resids","Durbin-Watson",null,"*****SOLD PRICE 2***************","Intercept","GLA sqft 2","Lot Size Sq Ft2","Baths 2","Garage 2","closing Date2","Age of Home2","Kitchen Counters 2","Floors 2","Bedrooms 2","Fireplaces2","Storys 2"]
[null,null,null,null,null,null,null,{"$f":"MINVERSE(MMULT(TRANSPOSE(Z2:AK63),Z2:AK63))","v":103.82282625560546},-3.2273407744691763E-3,-3.7551288934155092E-4,0.2702534582351,1.7475876057287532,-2.3884455302672588E-3,7.7725274157264762E-3,-0.10927939945174257,-5.5362496232087242E-2,0.42519648226525036,-1.2160258854921411,0.8649758155966728,null,{"$f":"MMULT(Z2:AK2,$B$19:$B$30)","v":349935.43876808794},{"$f":"Y2-U2","v":-19935.438768087944},null,null,330000,1,1224,6840,2,2,42279,17,2,1,2,1,1]
["Regression equation:",{"$f":" \"Y\" & \" = \" & ROUND(B19,2) & IF(SIGN(B20)=-1, \" \",\" + \") & ROUND(B20, 2) & \" \" & A20 & IF(SIGN(B21)=-1, \" \",\" + \") & ROUND(B21, 2) & \" \" & A21 & IF(SIGN(B22)=-1, \" \",\" + \") & ROUND(B22, 2) & \" \" & A22 & IF(SIGN(B23)=-1, \" \",\" + \") & ROUND(B23, 2) & \" \" & A23 & IF(SIGN(B24)=-1, \" \",\" + \") & ROUND(B24, 2) & \" \" & A24 & IF(SIGN(B25)=-1, \" \",\" + \") & ROUND(B25, 2) & \" \" & A25 & IF(SIGN(B26)=-1, \" \",\" + \") & ROUND(B26, 2) & \" \" & A26 & IF(SIGN(B27)=-1, \" \",\" + \") & ROUND(B27, 2) & \" \" & A27 & IF(SIGN(B28)=-1, \" \",\" + \") & ROUND(B28, 2) & \" \" & A28 & IF(SIGN(B29)=-1, \" \",\" + \") & ROUND(B29, 2) & \" \" & A29 & IF(SIGN(B30)=-1, \" \",\" + \") & ROUND(B30, 2) & \" \" & A30","v":"Y = -2586629.4 + 56.5 GLA sqft 2 + 2.8 Lot Size Sq Ft2 + 44809.32 Baths 2 + 6649.29 Garage 2 + 65.11 closing Date2 -3083.12 Age of Home2 -1259.75 Kitchen Counters 2 -1408 Floors 2 + 26176.43 Bedrooms 2 -5645.95 Fireplaces2 + 2033.48 Storys 2"},null,null,null,null,null,-3.2273407744660633E-3,3.7420953588295117E-6,6.0056445972347824E-8,-3.9005599158398223E-4,-4.1432444735498854E-4,5.4537404577902777E-8,2.1051309179725718E-5,-4.1835069303195651E-5,1.1562811553129587E-4,-8.9491654983835263E-4,-5.8935204392068135E-4,-3.9010831980166308E-4,null,416027.0768644085,33922.923135591496,{"$f":"(V3-V2)^2","v":2900723146.9477091},null,449950,1,1297,6760,2,2,43551,33,0,1,3,1,1]
[null,null,null,null,null,null,null,-3.7551288934145567E-4,6.0056445972354349E-8,3.6107966098409039E-8,-2.9829021961178744E-5,-3.4395292574506165E-5,6.4185713069171334E-9,1.1431324546613766E-6,4.8373699376141499E-6,6.9738681034765105E-6,-3.9715489771396543E-5,2.1386931501659791E-5,1.4389713903394473E-5,null,390751.97126068996,9248.0287393100443,608850413.46764183,null,400000,1,1408,6316,2,2,42244,14,3,1,3,1,1]
[null,"Sum of","Degrees of","Mean",null,null,null,0.27025345823380476,-3.9005599158397009E-4,-2.9829021961177114E-5,0.4770791781221464,5.7869899826966519E-2,-1.5307825904108658E-5,-4.4850353827877191E-3,-4.6468376649015271E-3,-2.72534197480843E-2,0.10300526182148541,-0.18079211043182594,3.3339417683507885E-2,null,314113.48177845759,-9113.4817784575862,337145068.49409133,null,305000,1,1297,6300,2,2,42111,34,3,1,3,1,1]
["Source of Variation","Squares","Freedom","Square","F","P-value",null,1.7475876057279045,-4.1432444735504319E-4,-3.4395292574507188E-5,5.786989982698483E-2,0.6230091851048839,-6.0574427399538903E-5,-2.9576521080915681E-3,-2.8472274441294042E-2,4.5664638846391929E-2,0.16101578857125157,-0.15194510572894229,1.7220564475137888E-2,null,396515.4812635688,-31515.481263568799,501849580.93092304,null,365000,1,1292,5750,2,1,42566,24,3,2,4,0,1]
["Regression",{"$f":"B9-B8","v":123428790354.02699},11,{"$f":"B7/C7","v":11220799123.093363},{"$f":"D7/D8","v":16.049844086760498},{"$f":"FDIST(E7,C7,C8)","v":8.0025122641129972E-13},null,-2.388445530267228E-3,5.4537404577975979E-8,6.418571306919394E-9,-1.5307825904138839E-5,-6.0574427399558622E-5,5.7207028416652807E-8,-5.030481118509938E-7,3.3603422015627567E-6,-3.5735177047183225E-6,-1.1301263468684997E-5,3.831536101555146E-5,-1.5801715339685917E-5,null,434628.47308510408,5371.5269148959196,1360651372.3581231,null,440000,1,1408,5692,2,2,42992,15,3,1,3,1,1]
["Error",{"$f":"SUMSQ($V$2:$V$63)","v":34956100079.34404},50,{"$f":"B8/C8","v":699122001.5868808},null,null,null,7.7725274157457291E-3,2.1051309179724458E-5,1.1431324546613173E-6,-4.4850353827873652E-3,-2.9576521080909289E-3,-5.0304811185145713E-7,5.9871571166687733E-4,6.8964825744119137E-4,-3.1677026410224638E-4,-5.20841830550553E-3,6.5729157957909084E-4,-6.1715911053954794E-3,null,343486.10001365433,21513.89998634567,260576208.37786606,null,365000,1,1102,5500,1,2,42872,24,3,0,3,0,1]
["Total",{"$f":"DEVSQ($Y$2:$Y$63)","v":158384890433.37103},61,null,null,null,null,-0.10927939945175788,-4.1835069303190386E-5,4.8373699376143904E-6,-4.6468376649028108E-3,-2.8472274441295516E-2,3.3603422015631316E-6,6.8964825744121565E-4,2.0155569632104596E-2,-9.4454869095717611E-3,-5.0215067456511383E-3,2.8640442738593713E-2,3.7981276986906792E-3,null,422450.02956782118,7549.9704321788158,194991328.59373453,null,430000,1,1297,5456,2,2,43677,33,3,1,3,0,1]
[null,null,null,null,null,null,null,-5.5362496231992422E-2,1.1562811553129136E-4,6.9738681034759947E-6,-2.7253419748083315E-2,4.5664638846394663E-2,-3.5735177047205489E-6,-3.1677026410225083E-4,-9.4454869095719207E-3,6.7064205975931379E-2,-1.0031239706643078E-2,-4.434627418239441E-2,-2.7494886649028958E-3,null,397396.44097730337,-7446.4409773033694,224892355.16244745,null,389950,1,1527,5279,2,2,42268,14,2,1,3,1,1]
[null,"s",{"$f":"SQRT(D8)","v":26440.915294045342},"Determinant",{"$f":"MDETERM($H$28:$R$38)","v":9.0960673598517727E-3},null,null,0.42519648226442791,-8.9491654983834298E-4,-3.9715489771394449E-5,0.10300526182148084,0.16101578857123267,-1.130126346866537E-5,-5.2084183055057971E-3,-5.0215067456497184E-3,-1.0031239706644057E-2,0.33684212529413698,0.14850765495206136,2.9303072816777749E-2,null,358775.58926248335,-3775.5892624833505,13475152.312197074,null,355000,1,1480,5148,2,2,42551,33,0,1,3,1,2]
[null,"R-sq",{"$f":"B7/B9","v":0.77929649738875006},"DW",{"$f":"SUM($W$3:$W$63)/$B$8","v":1.813426551346081},null,null,-1.2160258854919914,-5.8935204392063906E-4,2.1386931501662075E-5,-0.1807921104318444,-0.15194510572895642,3.831536101554858E-5,6.5729157957933641E-4,2.8640442738593848E-2,-4.4346274182393126E-2,0.1485076549520471,0.54172381966490479,3.7501658368189585E-3,null,401521.9718077365,3478.028192263504,52614966.179808237,null,405000,1,1408,5100,2,2,42537,16,2,1,3,1,1]
[null,"R-Sq(adj)",{"$f":"1-$D$8/($B$9/$C$8)","v":0.77929649738875006},null,null,null,null,0.86497581559650805,-3.9010831980168108E-4,1.4389713903393973E-5,3.333941768351853E-2,1.7220564475141028E-2,-1.5801715339682288E-5,-6.171591105395678E-3,3.7981276986910305E-3,-2.7494886649037874E-3,2.9303072816783095E-2,3.750165836818118E-3,0.18776273624235076,null,408783.96086055768,-3783.9608605576796,52736485.003294714,null,405000,1,1527,5075,2,2,42499,15,2,1,3,1,1]
[null,null,null,null,null,null,null,"Variance-covariance matrix",null,null,null,null,null,null,null,null,null,null,null,null,400545.72808440268,63454.271915597317,4520979946.860404,null,464000,1,1480,5044,2,2,43255,33,3,1,3,1,2]
[null,null,null,null,null,null,null,{"$f":"$D$8*H2","v":72584822102.225845},-2256304.9420498447,-262529.32281813794,188940138.6570996,1221776944.8655107,-1669814.8198016849,5433944.9242716003,-76399632.476914555,-38705139.178622976,297264215.74898249,-850150451.0467248,604723623.52419055,null,349219.71322020883,15780.286779791175,2272808858.7290649,null,365000,1,1480,5044,2,2,42510,33,3,3,3,1,2]
["Parameter Estimates",null,null,null,null,null,null,{"$f":"$D$8*H3","v":-2256304.9420476682},2616.1811973938652,41.986782716382173,-272696.72556714917,-289663.33694119781,38.128299449856904,14717.433409754121,-29247.817387776016,80838.159569958676,-625655.84957621468,-412028.98058514606,-272733.30937543372,null,437138.87966730894,37861.120332691062,487563210.39086944,null,475000,1,1527,5016,2,2,42937,15,2,1,3,1,1]
[null,null,null,null,null,null,null,{"$f":"$D$8*H4","v":-262529.32281807135},41.986782716386735,25.243873531950964,-20854.125538878307,-24046.505789855128,4.487364419420028,799.1890497817858,3381.9117532010091,4875.5846273054021,-27765.972702982042,14952.074359241908,10060.165586403711,null,461121.40138615976,39878.598613840237,4070218.6149086296,null,501000,1,1527,5000,2,2,43278,14,3,1,3,1,1]
["Predictor","Coef Est","Std Error","t value","P-value","VIFs",null,{"$f":"$D$8*H5","v":188940138.65619406},-272696.72556714067,-20854.125538877168,333536549.92417902,40458120.198661119,-10702.037886023947,-3135586.9140025321,-3248706.4493352631,-19053465.364368122,72013244.818617597,-126395742.11621454,23308320.422635082,null,410202.16743731295,3597.8325626870501,1316293985.2585096,null,413800,1,1527,5000,2,2,42496,14,3,1,3,1,1]
["Constant",{"$f":"MMULT($H$2:$S$13,MMULT(TRANSPOSE($Z$2:$AK$63),$Y$2:$Y$63))","v":-2586629.4049620293},{"$f":"SQRT(H$15)","v":269415.70500293007},{"$f":"B19/C19","v":-9.6008857573239759},{"$f":"TDIST(ABS(D19),$C$8,1)*2","v":6.21556430576398E-13},null,null,{"$f":"$D$8*H6","v":1221776944.8649173},-289663.33694123599,-24046.505789855844,40458120.198673919,435559428.49753797,-42348.914928544837,-2067759.6618066346,-19905593.497128479,31925153.712031558,112569680.3930234,-106228166.44854836,12039275.504314333,null,392685.80116329371,2314.1988367062877,1647715.542475255,null,395000,1,1527,4930,2,2,42258,15,2,1,3,1,1]
["GLA sqft 2",56.497037892335356,{"$f":"SQRT(I$16)","v":51.148618724202763},1.1045662483472267,0.27463482019136287,{"$f":"H$40","v":7.179052355415128},null,{"$f":"$D$8*H7","v":-1669814.8198016633},38.128299449908084,4.487364419421608,-10702.037886045049,-42348.914928558617,39.99469221148788,-351.69200285176788,2349.28916597342,-2498.3248504288299,-7900.9619366877505,26787.11188471628,-11047.326856787337,null,392663.22292380041,-32763.222923800407,1230425517.3644686,null,359900,1,1527,4930,2,2,42277,15,3,1,3,1,1]
["Lot Size Sq Ft2",2.7976497185684366,{"$f":"SQRT(J$17)","v":5.0243281672230529},0.55682065849506368,0.58013393257476087,{"$f":"I$41","v":1.6963375432076948},null,{"$f":"$D$8*H8","v":5433944.9242850598},14717.433409753241,799.18904978174442,-3135586.9140022849,-2067759.6618061878,-351.69200285209183,418575.32672206109,482148.27013319015,-221461.06108236735,-3641319.8308467763,459527.00474153651,-4314695.1265798779,null,380682.22670054209,-30682.226700542087,4330545.281215393,null,350000,1,1527,4930,2,2,42093,15,3,1,3,1,1]
["Baths 2",44809.317435269244,{"$f":"SQRT(K$18)","v":18262.983051083935},2.453559602499316,1.7673461860032304E-2,{"$f":"J$42","v":1.8775374106742926},null,{"$f":"$D$8*H9","v":-76399632.476925254},-29247.817387772338,3381.9117532011774,-3248706.4493361604,-19905593.497129511,2349.289165973682,482148.27013320714,14091202.184320716,-6603547.7141824905,-3510645.8470016476,20023163.653740082,2655354.6389912008,null,423550.06681808719,-13550.066818087187,293510902.23799711,null,410000,1,1527,4930,2,2,42704,14,3,1,3,1,1]
["Garage 2",6649.2944585066289,{"$f":"SQRT(L$19)","v":20870.060577236905},0.3186044637435817,0.75135357503724143,{"$f":"K$43","v":1.7785907381220878},null,{"$f":"$D$8*H10","v":-38705139.178556688},80838.159569955518,4875.584627305042,-19053465.364367433,31925153.712033469,-2498.324850430386,-221461.06108237046,-6603547.7141826022,46886061.916727997,-7013060.3821061039,-31003455.969316196,-1922228.018747353,null,379513.35903622914,-39513.359036229143,674092542.80463064,null,340000,1,1025,4920,2,2,43774,34,1,1,2,1,1]
["closing Date2",65.114109909011177,{"$f":"SQRT(M$20)","v":6.3241356888896592},10.296127899881192,5.9669314012709556E-14,{"$f":"L$44","v":1.3815757709962424},null,{"$f":"$D$8*H11","v":297264215.74840748},-625655.84957620793,-27765.97270298058,72013244.818614408,112569680.39301018,-7900.9619366740289,-3641319.830846963,-3510645.8470006553,-7013060.3821067875,235493740.85441595,103824968.98105898,20486422.920311779,null,451061.91673451551,38938.083265484485,6154628799.2191029,null,490000,1,1480,4888,3,2,43330,33,2,1,3,1,2]
["Age of Home2",-3083.1189631393645,{"$f":"SQRT(N$21)","v":646.9739768507394},-4.7654450927794549,1.6620285758735878E-5,{"$f":"M$45","v":2.5752983800948375},null,{"$f":"$D$8*H12","v":-850150451.04662013},-412028.98058511649,14952.074359243505,-126395742.11622745,-106228166.44855824,26787.111884714264,459527.00474170822,20023163.653740175,-31003455.969315298,103824968.98104902,378731041.11141872,2621823.4461196102,null,454482.1971109013,-4482.1971109012957,1885320747.9639521,null,450000,1,1480,4888,2,2,44032,33,0,1,3,1,2]
["Kitchen Counters 2",-1259.7463277645438,{"$f":"SQRT(O$22)","v":3753.8250071521338},-0.33559005157788624,0.73858412752817237,{"$f":"N$46","v":1.3692783756520048},null,{"$f":"$D$8*H13","v":604723623.52407539},-272733.30937544629,10060.165586403362,23308320.422642522,12039275.504316529,-11047.326856784799,-4314695.1265800167,2655354.6389914467,-1922228.0187479765,20486422.920315515,2621823.4461190226,131269059.98518184,null,410197.33869687322,9802.6613031267771,204057179.90882862,null,420000,1,1224,4880,2,2,43250,17,0,1,2,1,1]
["Floors 2",-1408.0014909902529,{"$f":"SQRT(P$23)","v":6847.3397693358256},-0.20562751936097154,0.83791680610776909,{"$f":"O$47","v":1.3975315180790859},null,"Correlation matrix",null,null,null,null,null,null,null,null,null,null,null,null,357133.20049605839,-12133.200496058387,481182032.87295097,null,345000,1,1224,4880,2,2,42517,17,2,3,2,1,1]
["Bedrooms 2",26176.429258103715,{"$f":"SQRT(Q$24)","v":15345.805317884622},1.7057709723188426,9.4256320865470047E-2,{"$f":"P$48","v":4.8081496916987465},null,1,{"$f":"H29","v":3.2990227733884693E-2},{"$f":"H30","v":0.33433961514503202},{"$f":"H31","v":0.29783511786380512},{"$f":"H32","v":-7.5119402077928193E-2},{"$f":"H33","v":-1.9122311849848157E-2},{"$f":"H34","v":0.26456284851019918},{"$f":"H35","v":-0.24004153026055941},{"$f":"H36","v":0.69546975832489444},{"$f":"H37","v":0.40721659364190138},{"$f":"H38","v":0.52612502250005311},null,null,469656.07413853845,15343.925861461554,754992472.86711705,null,485000,1,1408,4844,2,2,43588,15,3,2,3,1,1]
["Fireplaces2",-5645.9490711844555,{"$f":"SQRT(R$25)","v":19461.013362911468},-0.29011588275996086,0.77292740636788437,{"$f":"Q$49","v":2.9357936033452354},null,{"$f":"CORREL($AA$2:$AA$63,$AB$2:$AB$63)","v":3.2990227733884693E-2},1,{"$f":"I30","v":-7.4383664120412321E-2},{"$f":"I31","v":-7.005366853977615E-3},{"$f":"I32","v":-0.20855553585812428},{"$f":"I33","v":-0.36080479915938291},{"$f":"I34","v":-3.6429736035006557E-4},{"$f":"I35","v":-0.27879119184401757},{"$f":"I36","v":0.23562735992039444},{"$f":"I37","v":-0.21930450556338363},{"$f":"I38","v":-0.34854729183993988},null,null,431953.07381370646,23046.926186293538,59336214.004361659,null,455000,1,1408,4844,2,2,42968,15,2,1,3,1,1]
["Storys 2",2033.4757191212848,{"$f":"SQRT(S$26)","v":11457.271053142709},0.17748342599990299,0.85984574846919448,{"$f":"R$50","v":3.0920282855394241},null,{"$f":"CORREL($AA$2:$AA$63,$AC$2:$AC$63)","v":0.33433961514503202},{"$f":"CORREL($AB$2:$AB$63,$AC$2:$AC$63)","v":-7.4383664120412321E-2},1,{"$f":"J31","v":0.26946755427042168},{"$f":"J32","v":-1.1448607778254598E-3},{"$f":"J33","v":0.11900823804543885},{"$f":"J34","v":3.9456712457134682E-3},{"$f":"J35","v":0.16029365783657201},{"$f":"J36","v":-5.595086427164718E-2},{"$f":"J37","v":0.6076936473969845},{"$f":"J38","v":0.21637942943222388},null,null,400568.39351264457,4431.6064873554278,346530127.49367326,null,405000,1,1102,4800,1,2,43753,23,3,1,3,0,1]
[null,null,null,null,null,null,null,{"$f":"CORREL($AA$2:$AA$63,$AD$2:$AD$63)","v":0.29783511786380512},{"$f":"CORREL($AB$2:$AB$63,$AD$2:$AD$63)","v":-7.005366853977615E-3},{"$f":"CORREL($AC$2:$AC$63,$AD$2:$AD$63)","v":0.26946755427042168},1,{"$f":"K32","v":0.17225068482544284},{"$f":"K33","v":-1.1498499313236177E-2},{"$f":"K34","v":0.15056101638683556},{"$f":"K35","v":-0.17147308538991193},{"$f":"K36","v":-9.8538588838973012E-2},{"$f":"K37","v":0.43465991765285883},{"$f":"K38","v":0.16231161033308286},null,null,334407.42320587242,12992.576794127584,73290212.593434557,null,347400,1,1102,4800,1,1,42781,23,0,1,3,0,1]
["62 observations were used in the analysis.",null,null,null,null,null,null,{"$f":"CORREL($AA$2:$AA$63,$AE$2:$AE$63)","v":-7.5119402077928193E-2},{"$f":"CORREL($AB$2:$AB$63,$AE$2:$AE$63)","v":-0.20855553585812428},{"$f":"CORREL($AC$2:$AC$63,$AE$2:$AE$63)","v":-1.1448607778254598E-3},{"$f":"CORREL($AD$2:$AD$63,$AE$2:$AE$63)","v":0.17225068482544284},1,{"$f":"L33","v":0.37924007518282438},{"$f":"L34","v":-9.8254958325400668E-2},{"$f":"L35","v":5.3229597915094642E-2},{"$f":"L36","v":-1.4837397326728987E-3},{"$f":"L37","v":-0.12766160836343229},{"$f":"L38","v":0.27721467995956189},null,null,399972.57242937549,-14972.57242937549,782049571.09279466,null,385000,1,1026,4795,2,2,44006,34,1,1,2,0,1]
[null,null,null,null,null,null,null,{"$f":"CORREL($AA$2:$AA$63,$AF$2:$AF$63)","v":-1.9122311849848157E-2},{"$f":"CORREL($AB$2:$AB$63,$AF$2:$AF$63)","v":-0.36080479915938291},{"$f":"CORREL($AC$2:$AC$63,$AF$2:$AF$63)","v":0.11900823804543885},{"$f":"CORREL($AD$2:$AD$63,$AF$2:$AF$63)","v":-1.1498499313236177E-2},{"$f":"CORREL($AE$2:$AE$63,$AF$2:$AF$63)","v":0.37924007518282438},1,{"$f":"M34","v":-0.23398249208245639},{"$f":"M35","v":0.14901213062559904},{"$f":"M36","v":0.12165735541186284},{"$f":"M37","v":-2.3240943111345488E-2},{"$f":"M38","v":0.58777998545634846},null,null,365324.66387543158,-324.66387543157907,214561225.00470319,null,365000,1,1511,4795,2,2,42741,33,2,1,3,1,0]
["Computational time: 0.43 seconds.",null,null,null,null,null,null,{"$f":"CORREL($AA$2:$AA$63,$AG$2:$AG$63)","v":0.26456284851019918},{"$f":"CORREL($AB$2:$AB$63,$AG$2:$AG$63)","v":-3.6429736035006557E-4},{"$f":"CORREL($AC$2:$AC$63,$AG$2:$AG$63)","v":3.9456712457134682E-3},{"$f":"CORREL($AD$2:$AD$63,$AG$2:$AG$63)","v":0.15056101638683556},{"$f":"CORREL($AE$2:$AE$63,$AG$2:$AG$63)","v":-9.8254958325400668E-2},{"$f":"CORREL($AF$2:$AF$63,$AG$2:$AG$63)","v":-0.23398249208245639},1,{"$f":"N35","v":6.773008940258117E-2},{"$f":"N36","v":0.20614236557871521},{"$f":"N37","v":-4.202968976866691E-2},{"$f":"N38","v":-2.2182004005613019E-2},null,null,{"$f":"MMULT(Z34:AK34,$B$19:$B$30)","v":444203.71950419882},{"$f":"Y34-U34","v":5796.2804958011839},37465959.995726041,null,450000,1,1589,4794,2,2,43889,34,3,1,3,1,2]
[null,null,null,null,null,null,null,{"$f":"CORREL($AA$2:$AA$63,$AH$2:$AH$63)","v":-0.24004153026055941},{"$f":"CORREL($AB$2:$AB$63,$AH$2:$AH$63)","v":-0.27879119184401757},{"$f":"CORREL($AC$2:$AC$63,$AH$2:$AH$63)","v":0.16029365783657201},{"$f":"CORREL($AD$2:$AD$63,$AH$2:$AH$63)","v":-0.17147308538991193},{"$f":"CORREL($AE$2:$AE$63,$AH$2:$AH$63)","v":5.3229597915094642E-2},{"$f":"CORREL($AF$2:$AF$63,$AH$2:$AH$63)","v":0.14901213062559904},{"$f":"CORREL($AG$2:$AG$63,$AH$2:$AH$63)","v":6.773008940258117E-2},1,{"$f":"O36","v":-0.23566638966183959},{"$f":"O37","v":0.12749066620360988},{"$f":"O38","v":-1.0448095129289825E-2},null,null,368412.10601532023,-3412.106015320227,{"$f":"(V35-V34)^2","v":84794382.138202757},null,365000,1,1511,4794,2,2,42726,33,2,1,3,1,2]
[null,null,null,null,null,null,null,{"$f":"CORREL($AA$2:$AA$63,$AI$2:$AI$63)","v":0.69546975832489444},{"$f":"CORREL($AB$2:$AB$63,$AI$2:$AI$63)","v":0.23562735992039444},{"$f":"CORREL($AC$2:$AC$63,$AI$2:$AI$63)","v":-5.595086427164718E-2},{"$f":"CORREL($AD$2:$AD$63,$AI$2:$AI$63)","v":-9.8538588838973012E-2},{"$f":"CORREL($AE$2:$AE$63,$AI$2:$AI$63)","v":-1.4837397326728987E-3},{"$f":"CORREL($AF$2:$AF$63,$AI$2:$AI$63)","v":0.12165735541186284},{"$f":"CORREL($AG$2:$AG$63,$AI$2:$AI$63)","v":0.20614236557871521},{"$f":"CORREL($AH$2:$AH$63,$AI$2:$AI$63)","v":-0.23566638966183959},1,{"$f":"P37","v":-0.14303862564409009},{"$f":"P38","v":0.37977178469984113},null,null,474810.39321651479,-24810.393216514785,457886695.14480686,null,450000,1,1480,4784,2,2,43966,33,1,1,4,1,2]
[null,null,null,null,null,null,null,{"$f":"CORREL($AA$2:$AA$63,$AJ$2:$AJ$63)","v":0.40721659364190138},{"$f":"CORREL($AB$2:$AB$63,$AJ$2:$AJ$63)","v":-0.21930450556338363},{"$f":"CORREL($AC$2:$AC$63,$AJ$2:$AJ$63)","v":0.6076936473969845},{"$f":"CORREL($AD$2:$AD$63,$AJ$2:$AJ$63)","v":0.43465991765285883},{"$f":"CORREL($AE$2:$AE$63,$AJ$2:$AJ$63)","v":-0.12766160836343229},{"$f":"CORREL($AF$2:$AF$63,$AJ$2:$AJ$63)","v":-2.3240943111345488E-2},{"$f":"CORREL($AG$2:$AG$63,$AJ$2:$AJ$63)","v":-4.202968976866691E-2},{"$f":"CORREL($AH$2:$AH$63,$AJ$2:$AJ$63)","v":0.12749066620360988},{"$f":"CORREL($AI$2:$AI$63,$AJ$2:$AJ$63)","v":-0.14303862564409009},1,{"$f":"Q38","v":0.23561155017211441},null,null,431977.28171159729,-22089.281711597287,7404447.8221943742,null,409888,1,1480,4750,2,2,43731,33,2,1,3,1,2]
[null,null,null,null,null,null,null,{"$f":"CORREL($AA$2:$AA$63,$AK$2:$AK$63)","v":0.52612502250005311},{"$f":"CORREL($AB$2:$AB$63,$AK$2:$AK$63)","v":-0.34854729183993988},{"$f":"CORREL($AC$2:$AC$63,$AK$2:$AK$63)","v":0.21637942943222388},{"$f":"CORREL($AD$2:$AD$63,$AK$2:$AK$63)","v":0.16231161033308286},{"$f":"CORREL($AE$2:$AE$63,$AK$2:$AK$63)","v":0.27721467995956189},{"$f":"CORREL($AF$2:$AF$63,$AK$2:$AK$63)","v":0.58777998545634846},{"$f":"CORREL($AG$2:$AG$63,$AK$2:$AK$63)","v":-2.2182004005613019E-2},{"$f":"CORREL($AH$2:$AH$63,$AK$2:$AK$63)","v":-1.0448095129289825E-2},{"$f":"CORREL($AI$2:$AI$63,$AK$2:$AK$63)","v":0.37977178469984113},{"$f":"CORREL($AJ$2:$AJ$63,$AK$2:$AK$63)","v":0.23561155017211441},1,null,null,453492.40810994996,-3492.4081099499599,345843707.75564724,null,450000,1,1511,4747,2,2,44054,33,3,1,3,1,2]
[null,null,null,null,null,null,null,"Inverse Correlation Matrix",null,null,null,null,null,null,null,null,null,null,null,null,326537.08698741317,-28537.086987413175,627235940.07525218,null,298000,1,1480,4680,2,2,42076,33,0,1,3,1,2]
[null,null,null,null,null,null,null,{"$f":"MINVERSE($H$28:$R$38)","v":7.179052355415128},0.57015165195507977,-1.0717713831095352,-0.96963321360563204,0.37122161927577824,1.9123117549041579,-0.47760071072263244,0.73109698839334136,-4.6831111480018288,-1.9003111786366056,-2.1926957457327259,null,null,439088.88388899871,-7088.8838889987092,460025416.15083587,null,432000,1,1480,4576,2,2,43809,33,0,1,3,1,2]
[null,null,null,null,null,null,null,0.57015165195507989,1.6963375432076948,-0.40559510618634287,-0.39833128784951011,0.21619998220365622,0.51387161464056175,0.27328277675214036,0.21820453146754501,-1.0284669431136386,0.34125332874573711,0.40024305945332417,null,null,334513.0027665557,-29513.002766555699,502841107.43480778,null,305000,1,1480,4576,2,2,42261,33,3,1,3,1,2]
[null,null,null,null,null,null,null,-1.0717713831095352,-0.40559510618634287,1.8775374106742926,0.1939735827640964,-0.14923656433415411,-0.58353699116464497,-7.5980982629134886E-2,-0.24680587053346267,0.77203016467594232,-0.83493436552277189,0.26839480456577719,null,null,391273.00781561068,8626.9921843893244,1454659214.8581119,null,399900,1,1511,4532,2,2,43069,33,1,1,3,1,2]
[null,null,null,null,null,null,null,-0.96963321360563304,-0.39833128784951011,0.19397358276409646,1.7785907381220878,-0.50297079154993962,-0.32774896374224416,-0.39651652009805899,0.35221368630058913,1.027862548696894,-0.59765601955904757,0.11807425060520721,null,null,454248.90938522742,-38448.909385227424,2216140508.5922446,null,415800,1,1511,4218,2,2,44069,33,2,1,3,1,2]
[null,null,null,null,null,null,null,0.37122161927577818,0.21619998220365619,-0.14923656433415411,-0.50297079154993962,1.3815757709962424,-0.16213457315590632,0.1361114003758544,-8.0166700588221507E-2,-0.20982897058192082,0.43833825604170773,-0.31512576992978175,null,null,347423.54748813302,-17423.547488133016,442065842.90378934,null,330000,1,1224,4150,2,2,42356,17,2,1,2,1,1]
[null,null,null,null,null,null,null,1.9123117549041584,0.51387161464056141,-0.58353699116464475,-0.32774896374224405,-0.1621345731559059,2.5752983800948375,0.37280302654690295,-9.4838192554366277E-2,-1.2905804943350752,0.10035414434882106,-1.6425463008523,null,null,360460.92884316511,-5460.9288431651075,143104244.84493384,null,355000,1,1224,4140,2,2,42576,17,3,1,2,1,1]
[null,null,null,null,null,null,null,-0.47760071072263244,0.27328277675214041,-7.5980982629134913E-2,-0.39651652009805904,0.13611140037585442,0.37280302654690312,1.3692783756520048,-0.35539236955716585,-0.15637170716857168,0.5495432245141092,0.12703837359413311,null,null,434606.11995652906,-16606.119956529059,124215284.9534068,null,418000,1,1224,4140,2,2,43648,16,2,1,2,1,1]
[null,null,null,null,null,null,null,0.73109698839334136,0.21820453146754509,-0.24680587053346265,0.3522136863005893,-8.0166700588221521E-2,-9.4838192554366332E-2,-0.35539236955716585,1.3975315180790859,-0.17300785080278047,-0.47126625565136832,-5.0933599842635881E-2,null,null,419978.4950072738,21.504992726200726,276477911.45309597,null,420000,1,1224,4040,2,2,43475,17,2,1,2,1,1]
[null,null,null,null,null,null,null,-4.6831111480018297,-1.0284669431136386,0.7720301646759421,1.0278625486968931,-0.20982897058192065,-1.2905804943350752,-0.15637170716857166,-0.17300785080278058,4.8081496916987465,1.3061661507680928,0.44926851203975793,null,null,371273.14079533337,-6273.1407953333692,39622565.59713608,null,365000,1,1224,4040,2,2,42727,17,2,1,2,1,1]
[null,null,null,null,null,null,null,-1.9003111786366054,0.34125332874573727,-0.834934365522772,-0.59765601955904812,0.43833825604170795,0.10035414434882127,0.5495432245141092,-0.47126625565136837,1.3061661507680926,2.9357936033452354,3.5427564175462604E-2,null,null,359721.07949175505,-34721.079491755052,809285216.07536614,null,325000,1,1297,4028,2,2,42823,33,1,1,3,1,1]
[null,null,null,null,null,null,null,-2.1926957457327263,0.40024305945332439,0.26839480456577713,0.11807425060520721,-0.31512576992978214,-1.6425463008522996,0.12703837359413317,-5.0933599842635909E-2,0.44926851203975804,3.5427564175462715E-2,3.0920282855394241,null,null,317944.61087976478,17055.389120235224,2680802701.9284143,null,335000,1,1026,3675,2,2,42836,33,0,2,2,1,1]
[null,null,null,null,null,null,null,null,null,null,null,null,null,null,null,null,null,null,null,null,361830.7116984406,18169.288301559398,1240771.3861546644,null,380000,1,1026,3536,2,2,43574,33,3,2,2,1,1]
[null,null,null,null,null,null,null,null,null,null,null,null,null,null,null,null,null,null,null,null,387142.07350963814,-7142.0735096381395,640665036.73734903,null,380000,1,1026,3536,2,2,43965,33,2,3,2,1,1]
[null,null,null,null,null,null,null,null,null,null,null,null,null,null,null,null,null,null,null,null,421710.05119610537,-1710.0511961053708,29506866.414717894,null,420000,1,1511,3332,2,2,43588,33,1,1,3,1,2]
[null,null,null,null,null,null,null,null,null,null,null,null,null,null,null,null,null,null,null,null,372202.68011327833,32797.319886721671,1190758659.0479279,null,405000,1,1511,3332,2,2,42888,33,3,2,3,1,2]
[null,null,null,null,null,null,null,null,null,null,null,null,null,null,null,null,null,null,null,null,347890.6081902092,17109.391809790803,246111087.34695584,null,365000,1,1511,3332,2,2,42493,33,3,1,3,1,2]
[null,null,null,null,null,null,null,null,null,null,null,null,null,null,null,null,null,null,null,null,305437.2413329074,19562.758667092596,6019008.9365068767,null,325000,1,1026,3332,2,2,42678,33,1,2,2,1,1]
[null,null,null,null,null,null,null,null,null,null,null,null,null,null,null,null,null,null,null,null,322886.78998514876,-17886.78998514876,1402468694.2565923,null,305000,1,1511,3332,2,2,42109,33,3,1,3,1,2]
[null,null,null,null,null,null,null,null,null,null,null,null,null,null,null,null,null,null,null,null,275477.09552697482,18522.904473025177,1325665850.5375819,null,294000,1,1026,3332,2,1,42320,33,1,2,2,1,1]
[null,null,null,null,null,null,null,null,null,null,null,null,null,null,null,null,null,null,null,null,399756.54780716874,50243.452192831261,1006193147.6444949,null,450000,1,1511,3298,2,2,43291,33,3,1,3,1,2]
[null,null,null,null,null,null,null,null,null,null,null,null,null,null,null,null,null,null,null,null,445716.1152959023,-30716.115295902302,6554451567.9628048,null,415000,1,1511,3230,2,2,44043,33,3,3,3,1,2]
[null,null,null,null,null,null,null,null,null,null,null,null,null,null,null,null,null,null,null,null,376140.37855752656,48859.621442473435,6332297877.4552822,null,425000,1,1511,3196,2,2,42894,33,1,1,3,1,2]
[null,null,null,null,null,null,null,null,null,null,null,null,null,null,null,null,null,null,null,null,434567.69277683186,-24567.692776831856,5391570473.4605932,null,410000,1,1511,3196,2,2,43830,33,3,1,3,1,2]
[null,null,null,null,null,null,null,null,null,null,null,null,null,null,null,null,null,null,null,null,416400.85611221759,-41399.856112217589,283321722.54910374,null,375001,1,1511,3196,2,2,43551,33,3,1,3,1,2]

{"sheet":"Sheet2","index":3,"n_rows":63,"n_cols":31,"rows_kept":63,"cut":false,"hidden":false,"merged":[]}
["Regression Analysis of *****SOLD PRICE 2***************",null,null,null,null,null,null,"X'X inverse",null,null,null,null,null,null,null,null,null,"Fits","Resids","Durbin-Watson",null,"*****SOLD PRICE 2***************","Intercept","GLA sqft 2","Lot Size Sq Ft2","Baths 2","Garage 2","closing Date2","Age of Home2","Kitchen Counters 2","Floors 2"]
[null,null,null,null,null,null,null,{"$f":"MINVERSE(MMULT(TRANSPOSE(W2:AE63),W2:AE63))","v":95.682958059985879},-1.3038598696950374E-3,-2.912383162764089E-4,-0.61306356445286914,0.8920294286419167,-2.1860463638553331E-3,4.7558596980144953E-2,-3.2917446785305914E-2,-0.14890208393288479,null,{"$f":"MMULT(W2:AE2,$B$19:$B$27)","v":365200.05616160709},{"$f":"V2-R2","v":-35200.056161607092},null,null,330000,1,1224,6840,2,2,42279,17,2,1]
["Regression equation:",{"$f":" \"Y\" & \" = \" & ROUND(B19,2) & IF(SIGN(B20)=-1, \" \",\" + \") & ROUND(B20, 2) & \" \" & A20 & IF(SIGN(B21)=-1, \" \",\" + \") & ROUND(B21, 2) & \" \" & A21 & IF(SIGN(B22)=-1, \" \",\" + \") & ROUND(B22, 2) & \" \" & A22 & IF(SIGN(B23)=-1, \" \",\" + \") & ROUND(B23, 2) & \" \" & A23 & IF(SIGN(B24)=-1, \" \",\" + \") & ROUND(B24, 2) & \" \" & A24 & IF(SIGN(B25)=-1, \" \",\" + \") & ROUND(B25, 2) & \" \" & A25 & IF(SIGN(B26)=-1, \" \",\" + \") & ROUND(B26, 2) & \" \" & A26 & IF(SIGN(B27)=-1, \" \",\" + \") & ROUND(B27, 2) & \" \" & A27","v":"Y = -2667833.14 + 118.03 GLA sqft 2 + 7.35 Lot Size Sq Ft2 + 28703.64 Baths 2 -13911.94 Garage 2 + 67.51 closing Date2 -2589.36 Age of Home2 + 258.93 Kitchen Counters 2 -2077.42 Floors 2"},null,null,null,null,null,-1.3038598696940721E-3,7.4514021400396141E-7,2.20501571811713E-9,-1.7472127687145469E-4,-7.9569080108842706E-5,1.8338849755514063E-8,-1.2471746272923639E-6,-3.4308870106160595E-5,6.8129438508879162E-5,null,417155.61288844433,32794.387111555669,{"$f":"(S3-S2)^2","v":4623244316.0273485},null,449950,1,1297,6760,2,2,43551,33,0,1]
[null,null,null,null,null,null,null,-2.9123831627643948E-4,2.2050157181195172E-9,2.6380089296497911E-8,-1.221342716175774E-6,2.905458586748766E-6,2.95510854020035E-9,8.5671556930252145E-7,1.2400932119452973E-6,9.3176545772513998E-6,null,388732.87663438404,11267.12336561596,463423084.38725013,null,400000,1,1408,6316,2,2,42244,14,3,1]
[null,"Sum of","Degrees of","Mean",null,null,null,-0.61306356445359245,-1.7472127687144089E-4,-1.2213427161746635E-6,0.33597242405341721,-9.7138983878278032E-2,1.0226730339822246E-5,-8.7677685862225609E-4,1.1021112326010229E-2,-4.2862262338712806E-2,null,314747.69974429428,-9747.6997442942811,441622790.34081757,null,305000,1,1297,6300,2,2,42111,34,3,1]
["Source of Variation","Squares","Freedom","Square","F","P-value",null,0.892029428641677,-7.9569080108852206E-5,2.9054585867489434E-6,-9.7138983878269025E-2,0.44167859392161762,-3.4985888024978609E-5,8.8163015897096042E-4,-1.1600736490357776E-2,3.1755885860236602E-2,null,378563.37417089357,-13563.37417089357,14559371.329803815,null,365000,1,1292,5750,2,1,42566,24,3,2]
["Regression",{"$f":"B9-B8","v":120772578121.88843},8,{"$f":"B7/C7","v":15096572265.236053},{"$f":"D7/D8","v":21.272776941534755},{"$f":"FDIST(E7,C7,C8)","v":5.0265316666233185E-14},null,-2.1860463638553166E-3,1.833884975553632E-8,2.9551085401996494E-9,1.0226730339805394E-5,-3.4985888024984152E-5,5.1834490857761847E-8,-1.3742196629483369E-6,7.5173944739969196E-7,-4.803816137448435E-7,null,432058.52779461571,7941.4722053842852,462458417.66731083,null,440000,1,1408,5692,2,2,42992,15,3,1]
["Error",{"$f":"SUMSQ($S$2:$S$63)","v":37612312311.482605},53,{"$f":"B8/C8","v":709666270.02797365},null,null,null,4.7558596980144384E-2,-1.2471746272929235E-6,8.5671556930254135E-7,-8.7677685862184345E-4,8.8163015897111167E-4,-1.3742196629483339E-6,3.2663272237594485E-4,5.6840572532141406E-4,-3.0522488273790983E-4,null,336498.89614969702,28501.103850302985,422698453.37474239,null,365000,1,1102,5500,1,2,42872,24,3,0]
["Total",{"$f":"DEVSQ($V$2:$V$63)","v":158384890433.37103},61,null,null,null,null,-3.2917446785358906E-2,-3.430887010615949E-5,1.2400932119454161E-6,1.1021112326010284E-2,-1.1600736490358591E-2,7.5173944740092577E-7,5.6840572532138262E-4,1.7955755336531782E-2,-6.9394898822462978E-3,null,416860.42903087346,13139.570969126537,235976692.45946521,null,430000,1,1297,5456,2,2,43677,33,3,1]
[null,null,null,null,null,null,null,-0.14890208393278226,6.8129438508878715E-5,9.3176545772510492E-6,-4.2862262338713916E-2,3.1755885860237774E-2,-4.8038161374720291E-7,-3.0522488273785866E-4,-6.9394898822464045E-3,6.3380874999943562E-2,null,396522.71091195417,-6572.710911954171,388574056.95918274,null,389950,1,1527,5279,2,2,42268,14,2,1]
[null,"s",{"$f":"SQRT(D8)","v":26639.562121550978},"Determinant",{"$f":"MDETERM($H$22:$O$29)","v":0.34395880804842599},null,null,"Variance-covariance matrix",null,null,null,null,null,null,null,null,null,359403.04444889643,-4403.0444488964276,4707452.5609174985,null,355000,1,1480,5148,2,2,42551,33,0,1]
[null,"R-sq",{"$f":"B7/B9","v":0.7625258810447878},"DW",{"$f":"SUM($T$3:$T$63)/$B$8","v":1.8176850977354544},null,null,{"$f":"$D$8*H2","v":67902967951.673218},-925305.37036563701,-206682.0096011064,-435070533.07532185,633043197.37949347,-1551363.3691454288,33750732.126663119,-23360401.67897236,-105670786.50404261,null,394144.04608794634,10855.953912053665,232837030.97947761,null,405000,1,1408,5100,2,2,42537,16,2,1]
[null,"R-Sq(adj)",{"$f":"1-$D$8/($B$9/$C$8)","v":0.7625258810447878},null,null,null,null,{"$f":"$D$8*H3","v":-925305.3703649519},528.80087632003733,1.5648252800292375,-123993.7968518901,-56467.492290399437,13.01446310259908,-885.07776582410008,-24347.84787711324,48349.16450569647,null,408030.02717276959,-3030.0271727695945,192820470.68806934,null,405000,1,1527,5075,2,2,42499,15,2,1]
[null,null,null,null,null,null,null,{"$f":"$D$8*H4","v":-206682.00960112808},1.5648252800309315,18.721059574050546,-866.7457298142956,2061.9059579787445,2.0971408552517925,607.98214254181232,880.05232420822847,6612.4251692470762,null,406943.96963622805,57056.030363771948,3610334310.2845807,null,464000,1,1480,5044,2,2,43255,33,3,1]
[null,null,null,null,null,null,null,{"$f":"$D$8*H5","v":-435070533.07583517},-123993.79685188032,-866.74572981350752,238428297.01024523,-68936260.363205031,7257.5655748435647,-622218.96290530043,7821311.6759590041,-30417901.838874809,null,352493.10651628871,12506.89348371129,1984625596.7583807,null,365000,1,1480,5044,2,2,42510,33,3,3]
["Parameter Estimates",null,null,null,null,null,null,{"$f":"$D$8*H6","v":633043197.37932336},-56467.492290406175,2061.9059579788704,-68936260.363198638,313444400.29955441,-24828.304658302921,625663.18646109093,-8232651.3946896084,22536081.069868177,null,437166.65475696808,37833.345243031916,641429158.7171948,null,475000,1,1527,5016,2,2,42937,15,2,1]
[null,null,null,null,null,null,null,{"$f":"$D$8*H7","v":-1551363.3691454171},13.014463102614878,2.0971408552512956,7257.5655748316049,-24828.304658306854,36.785189785826951,-975.23734240364536,533.48412966902947,-340.91062801632182,null,462918.81920570508,38081.180794294924,61422.460469838967,null,501000,1,1527,5000,2,2,43278,14,3,1]
["Predictor","Coef Est","Std Error","t value","P-value","VIFs",null,{"$f":"$D$8*H8","v":33750732.126662716},-885.07776582449731,607.98214254182653,-622218.96290500765,625663.18646119826,-975.23734240364331,231800.22575761942,403378.37095139286,-216607.80405233812,null,410124.87935177376,3675.1206482262351,1183776974.7748961,null,413800,1,1527,5000,2,2,42496,14,3,1]
["Constant",{"$f":"MMULT($H$2:$P$10,MMULT(TRANSPOSE($W$2:$AE$63),$V$2:$V$63))","v":-2667833.1399351466},{"$f":"SQRT(H$12)","v":260581.97933025457},{"$f":"B19/C19","v":-10.237980181100731},{"$f":"TDIST(ABS(D19),$C$8,1)*2","v":3.6728042635741291E-14},null,null,{"$f":"$D$8*H9","v":-23360401.679009967},-24347.847877112454,880.05232420831283,7821311.6759590432,-8232651.3946901867,533.48412966990509,403378.37095137051,12742593.915211393,-4924721.9006305924,null,390694.68647455954,4305.3135254404624,397143.06249154621,null,395000,1,1527,4930,2,2,42258,15,2,1]
["GLA sqft 2",118.03102211858459,{"$f":"SQRT(I$13)","v":22.995670816917634},5.1327496839861961,4.1543660331119781E-6,{"$f":"H$31","v":1.4295201205489103},null,{"$f":"$D$8*H10","v":-105670786.50396985},48349.16450569615,6612.4251692468279,-30417901.838875595,22536081.069869012,-340.91062801799626,-216607.8040523018,-4924721.9006306678,44979269.152319193,null,392236.33717685554,-32336.337176855537,1342610566.189069,null,359900,1,1527,4930,2,2,42277,15,3,1]
["Lot Size Sq Ft2",7.3454177723155567,{"$f":"SQRT(J$14)","v":4.3267839758937061},1.6976622390301668,9.5436663726376117E-2,{"$f":"I$32","v":1.2393258524963471},null,"Correlation matrix",null,null,null,null,null,null,null,null,null,379814.23368181277,-29814.233681812766,6361006.0397069613,null,350000,1,1527,4930,2,2,42093,15,3,1]
["Baths 2",28703.636115199653,{"$f":"SQRT(K$15)","v":15441.123566963812},1.8589085172928028,6.8596183778725631E-2,{"$f":"J$33","v":1.3222140559521507},null,1,{"$f":"H23","v":3.2990227733884693E-2},{"$f":"H24","v":0.33433961514503202},{"$f":"H25","v":0.29783511786380512},{"$f":"H26","v":-7.5119402077928193E-2},{"$f":"H27","v":-1.9122311849848157E-2},{"$f":"H28","v":0.26456284851019918},{"$f":"H29","v":-0.24004153026055941},null,null,423653.0779716731,-13653.077971673105,261182953.88737977,null,410000,1,1527,4930,2,2,42704,14,3,1]
["Garage 2",-13911.937715522829,{"$f":"SQRT(L$16)","v":17704.361053129098},-0.78579157269637867,0.43548865784723756,{"$f":"K$34","v":1.2609211471633373},null,{"$f":"CORREL($X$2:$X$63,$Y$2:$Y$63)","v":3.2990227733884693E-2},1,{"$f":"I24","v":-7.4383664120412321E-2},{"$f":"I25","v":-7.005366853977615E-3},{"$f":"I26","v":-0.20855553585812428},{"$f":"I27","v":-0.36080479915938291},{"$f":"I28","v":-3.6429736035006557E-4},{"$f":"I29","v":-0.27879119184401757},null,null,384260.22969475866,-44260.229694758658,936797736.59997892,null,340000,1,1025,4920,2,2,43774,34,1,1]
["closing Date2",67.511432038275402,{"$f":"SQRT(M$17)","v":6.0650795366447543},11.131170107560241,1.7381798435909298E-15,{"$f":"L$35","v":1.2518265439244594},null,{"$f":"CORREL($X$2:$X$63,$Z$2:$Z$63)","v":0.33433961514503202},{"$f":"CORREL($Y$2:$Y$63,$Z$2:$Z$63)","v":-7.4383664120412321E-2},1,{"$f":"J25","v":0.26946755427042168},{"$f":"J26","v":-1.1448607778254598E-3},{"$f":"J27","v":0.11900823804543885},{"$f":"J28","v":3.9456712457134682E-3},{"$f":"J29","v":0.16029365783657201},null,null,439306.14448824798,50693.855511752015,9016278297.4052887,null,490000,1,1480,4888,3,2,43330,33,2,1]
["Age of Home2",-2589.3593144739571,{"$f":"SQRT(N$18)","v":481.45635914132384},-5.3781807329164222,1.7304730634633042E-6,{"$f":"M$36","v":1.404968509142374},null,{"$f":"CORREL($X$2:$X$63,$AA$2:$AA$63)","v":0.29783511786380512},{"$f":"CORREL($Y$2:$Y$63,$AA$2:$AA$63)","v":-7.005366853977615E-3},{"$f":"CORREL($Z$2:$Z$63,$AA$2:$AA$63)","v":0.26946755427042168},1,{"$f":"K26","v":0.17225068482544284},{"$f":"K27","v":-1.1498499313236177E-2},{"$f":"K28","v":0.15056101638683556},{"$f":"K29","v":-0.17147308538991193},null,null,457477.66667678033,-7477.6666767803254,3383925993.7309103,null,450000,1,1480,4888,2,2,44032,33,0,1]
["Kitchen Counters 2",258.93349356870749,{"$f":"SQRT(O$19)","v":3569.6770043256565},7.2536953134677881E-2,0.94244765155486254,{"$f":"N$37","v":1.2198329270559969},null,{"$f":"CORREL($X$2:$X$63,$AB$2:$AB$63)","v":-7.5119402077928193E-2},{"$f":"CORREL($Y$2:$Y$63,$AB$2:$AB$63)","v":-0.20855553585812428},{"$f":"CORREL($Z$2:$Z$63,$AB$2:$AB$63)","v":-1.1448607778254598E-3},{"$f":"CORREL($AA$2:$AA$63,$AB$2:$AB$63)","v":0.17225068482544284},1,{"$f":"L27","v":0.37924007518282438},{"$f":"L28","v":-9.8254958325400668E-2},{"$f":"L29","v":5.3229597915094642E-2},null,null,415838.77084989671,4161.2291501032887,135463896.06904879,null,420000,1,1224,4880,2,2,43250,17,0,1]
["Floors 2",-2077.4231257119682,{"$f":"SQRT(P$20)","v":6706.6585683423},-0.30975531325213257,0.75796168601878289,{"$f":"O$38","v":1.320775653224634},null,{"$f":"CORREL($X$2:$X$63,$AC$2:$AC$63)","v":-1.9122311849848157E-2},{"$f":"CORREL($Y$2:$Y$63,$AC$2:$AC$63)","v":-0.36080479915938291},{"$f":"CORREL($Z$2:$Z$63,$AC$2:$AC$63)","v":0.11900823804543885},{"$f":"CORREL($AA$2:$AA$63,$AC$2:$AC$63)","v":-1.1498499313236177E-2},{"$f":"CORREL($AB$2:$AB$63,$AC$2:$AC$63)","v":0.37924007518282438},1,{"$f":"M28","v":-0.23398249208245639},{"$f":"M29","v":0.14901213062559904},null,null,362715.91190155403,-17715.911901554035,478609300.59411007,null,345000,1,1224,4880,2,2,42517,17,2,3]
[null,null,null,null,null,null,null,{"$f":"CORREL($X$2:$X$63,$AD$2:$AD$63)","v":0.26456284851019918},{"$f":"CORREL($Y$2:$Y$63,$AD$2:$AD$63)","v":-3.6429736035006557E-4},{"$f":"CORREL($Z$2:$Z$63,$AD$2:$AD$63)","v":3.9456712457134682E-3},{"$f":"CORREL($AA$2:$AA$63,$AD$2:$AD$63)","v":0.15056101638683556},{"$f":"CORREL($AB$2:$AB$63,$AD$2:$AD$63)","v":-9.8254958325400668E-2},{"$f":"CORREL($AC$2:$AC$63,$AD$2:$AD$63)","v":-0.23398249208245639},1,{"$f":"N29","v":6.773008940258117E-2},null,null,463989.00389279204,21010.99610720796,1499773403.9191139,null,485000,1,1408,4844,2,2,43588,15,3,2]
["62 observations were used in the analysis.",null,null,null,null,null,null,{"$f":"CORREL($X$2:$X$63,$AE$2:$AE$63)","v":-0.24004153026055941},{"$f":"CORREL($Y$2:$Y$63,$AE$2:$AE$63)","v":-0.27879119184401757},{"$f":"CORREL($Z$2:$Z$63,$AE$2:$AE$63)","v":0.16029365783657201},{"$f":"CORREL($AA$2:$AA$63,$AE$2:$AE$63)","v":-0.17147308538991193},{"$f":"CORREL($AB$2:$AB$63,$AE$2:$AE$63)","v":5.3229597915094642E-2},{"$f":"CORREL($AC$2:$AC$63,$AE$2:$AE$63)","v":0.14901213062559904},{"$f":"CORREL($AD$2:$AD$63,$AE$2:$AE$63)","v":6.773008940258117E-2},1,null,null,423950.40566120454,31049.594338795461,100773454.4552317,null,455000,1,1408,4844,2,2,42968,15,2,1]
[null,null,null,null,null,null,null,"Inverse Correlation Matrix",null,null,null,null,null,null,null,null,null,391346.6115235585,13653.388476441498,302627978.40539843,null,405000,1,1102,4800,1,2,43753,23,3,1]
["Computational time: 0.31 seconds.",null,null,null,null,null,null,{"$f":"MINVERSE($H$22:$O$29)","v":1.4295201205489103},2.0933529014554177E-2,-0.4800881632678039,-0.18621354192857881,0.12482767661170911,-0.11329398470321481,-0.39167954110556857,0.43077089932586465,null,null,338860.63681717182,8539.3631828281796,26153254.703716788,null,347400,1,1102,4800,1,1,42781,23,0,1]
[null,null,null,null,null,null,null,2.0933529014554208E-2,1.2393258524963471,-1.6607002043237912E-2,3.3648065593438206E-2,9.9538414898092814E-2,0.38511881198891729,7.0057928329341504E-2,0.29153898829718083,null,null,399122.73572821741,-14122.735728217405,513570727.05401349,null,385000,1,1026,4795,2,2,44006,34,1,1]
[null,null,null,null,null,null,null,-0.48008816326780385,-1.6607002043237923E-2,1.3222140559521507,-0.32559926292013419,9.9700774613090529E-2,-0.1140752940247718,0.18020748831427033,-0.38815891977311745,null,null,373814.11273535521,-8814.1127353552147,28181478.08034512,null,365000,1,1511,4795,2,2,42741,33,2,1]
[null,null,null,null,null,null,null,-0.18621354192857886,3.3648065593438171E-2,-0.32559926292013419,1.2609211471633373,-0.29050014252600087,9.7696875915910975E-2,-0.161556593352435,0.24493476578668899,null,null,{"$f":"MMULT(W34:AE34,$B$19:$B$27)","v":458185.88520186755},{"$f":"V34-R34","v":-8185.8852018675534},394669.83383199055,null,450000,1,1589,4794,2,2,43889,34,3,1]
[null,null,null,null,null,null,null,0.12482767661170913,9.9538414898092842E-2,9.9700774613090529E-2,-0.29050014252600093,1.2518265439244594,-0.44291691634604036,3.0449371750225621E-2,-1.0776666629159002E-2,null,null,372794.09583700862,-7794.0958370086155,{"$f":"(S35-S34)^2","v":153498.90641656998},null,365000,1,1511,4794,2,2,42726,33,2,1]
[null,null,null,null,null,null,null,-0.11329398470321481,0.38511881198891729,-0.11407529402477176,9.7696875915910961E-2,-0.4429169163460403,1.404968509142374,0.30726297416109177,-9.1381608319580948E-2,null,null,452516.92220750242,-2516.9222075024154,27848561.515955642,null,450000,1,1480,4784,2,2,43966,33,1,1]
[null,null,null,null,null,null,null,-0.39167954110556852,7.005792832934149E-2,0.18020748831427036,-0.16155659335243497,3.0449371750225621E-2,0.30726297416109172,1.2198329270559969,-0.2611026595431849,null,null,436660.92496781744,-26772.924967817438,588353669.90840995,null,409888,1,1480,4750,2,2,43731,33,2,1]
[null,null,null,null,null,null,null,0.43077089932586465,0.29153898829718083,-0.38815891977311739,0.24493476578668902,-1.0776666629159014E-2,-9.1381608319580934E-2,-0.2611026595431849,1.320775653224634,null,null,462362.97644210805,-12362.976442108047,207646616.51359424,null,450000,1,1511,4747,2,2,44054,33,3,1]
[null,null,null,null,null,null,null,null,null,null,null,null,null,null,null,null,null,323897.4587132727,-25897.458713272703,183182210.34847039,null,298000,1,1480,4680,2,2,42076,33,0,1]
[null,null,null,null,null,null,null,null,null,null,null,null,null,null,null,null,null,440130.84698728251,-8130.8469872825081,315652492.22209227,null,432000,1,1480,4576,2,2,43809,33,0,1]
[null,null,null,null,null,null,null,null,null,null,null,null,null,null,null,null,null,336399.95067273837,-31399.95067273837,541451186.32449555,null,305000,1,1480,4576,2,2,42261,33,3,1]
[null,null,null,null,null,null,null,null,null,null,null,null,null,null,null,null,null,393767.0840762218,6132.9159237782005,1408716074.9519093,null,399900,1,1511,4532,2,2,43069,33,1,1]
[null,null,null,null,null,null,null,null,null,null,null,null,null,null,null,null,null,459230.98842755839,-43430.98842755839,2456580614.5484424,null,415800,1,1511,4218,2,2,44069,33,2,1]
[null,null,null,null,null,null,null,null,null,null,null,null,null,null,null,null,null,350639.26262102457,-20639.262621024565,519462765.24021989,null,330000,1,1224,4150,2,2,42356,17,2,1]
[null,null,null,null,null,null,null,null,null,null,null,null,null,null,null,null,null,365677.25698529149,-10677.256985291489,99241556.286377564,null,355000,1,1224,4140,2,2,42576,17,3,1]
[null,null,null,null,null,null,null,null,null,null,null,null,null,null,null,null,null,440379.93795122817,-22379.937951228174,136952741.79049677,null,418000,1,1224,4140,2,2,43648,16,2,1]
[null,null,null,null,null,null,null,null,null,null,null,null,null,null,null,null,null,425376.55911690084,-5376.5591169008403,289114891.78365076,null,420000,1,1224,4040,2,2,43475,17,2,1]
[null,null,null,null,null,null,null,null,null,null,null,null,null,null,null,null,null,374878.00795227097,-9878.0079522709711,20263041.617455106,null,365000,1,1224,4040,2,2,42727,17,2,1]
[null,null,null,null,null,null,null,null,null,null,null,null,null,null,null,null,null,348198.54250418278,-23198.542504182784,177436640.74867645,null,325000,1,1297,4028,2,2,42823,33,1,1]
[null,null,null,null,null,null,null,null,null,null,null,null,null,null,null,null,null,312160.49503363564,22839.504966364359,2119501814.9003522,null,335000,1,1026,3675,2,2,42836,33,0,2]
[null,null,null,null,null,null,null,null,null,null,null,null,null,null,null,null,null,361739.71928823681,18260.280711763189,20969294.773927636,null,380000,1,1026,3536,2,2,43574,33,3,2]
[null,null,null,null,null,null,null,null,null,null,null,null,null,null,null,null,null,385800.33259592153,-5800.332595921529,578913112.7419349,null,380000,1,1026,3536,2,2,43965,33,2,3]
[null,null,null,null,null,null,null,null,null,null,null,null,null,null,null,null,null,419991.01597730746,8.9840226925443858,33748159.575305648,null,420000,1,1511,3332,2,2,43588,33,1,1]
[null,null,null,null,null,null,null,null,null,null,null,null,null,null,null,null,null,371173.45741194056,33826.542588059441,1143627267.3220201,null,405000,1,1511,3332,2,2,42888,33,3,2]
[null,null,null,null,null,null,null,null,null,null,null,null,null,null,null,null,null,346583.86488253355,18416.135117466445,237480658.40970841,null,365000,1,1511,3332,2,2,42493,33,3,1]
[null,null,null,null,null,null,null,null,null,null,null,null,null,null,null,null,null,299233.14396925224,25766.85603074776,54033097.944951288,null,325000,1,1026,3332,2,2,42678,33,1,2]
[null,null,null,null,null,null,null,null,null,null,null,null,null,null,null,null,null,320659.47497983568,-15659.474979835679,1716140900.9984272,null,305000,1,1511,3332,2,2,42109,33,3,1]
[null,null,null,null,null,null,null,null,null,null,null,null,null,null,null,null,null,288975.98901507212,5024.0109849278815,427806591.65457118,null,294000,1,1026,3332,2,1,42320,33,1,2]
[null,null,null,null,null,null,null,null,null,null,null,null,null,null,null,null,null,400208.24344481865,49791.756555181346,2004151043.4429486,null,450000,1,1511,3298,2,2,43291,33,3,1]
[null,null,null,null,null,null,null,null,null,null,null,null,null,null,null,null,null,446322.50567766104,-31322.505677661044,6579523537.5783215,null,415000,1,1511,3230,2,2,44043,33,3,3]
[null,null,null,null,null,null,null,null,null,null,null,null,null,null,null,null,null,372139.10532571026,52860.894674289739,7086844894.8168268,null,425000,1,1511,3196,2,2,42894,33,1,1]
[null,null,null,null,null,null,null,null,null,null,null,null,null,null,null,null,null,435847.67270067346,-25847.672700673458,6195038578.219121,null,410000,1,1511,3196,2,2,43830,33,3,1]
[null,null,null,null,null,null,null,null,null,null,null,null,null,null,null,null,null,417011.98316199484,-42010.983161994838,261252605.06906116,null,375001,1,1511,3196,2,2,43551,33,3,1]